Workbook

Sheet CFO review
C2: IT services finance demonstration
C4: Selected case | E4: ='Assumptions'!$G$4 -> Base | H4: EUR. Entirely fictional.
C6: 31 August 2026. Jan–Aug actuals; Sep–Dec forecast.
Q8: Month | R8: Revenue | S8: EBITDA
C9: August revenue | F9: ='P&L'!L12 -> €260,360 | Q9: Jan | R9: ='P&L'!E12 -> 196,920.0 | S9: ='P&L'!E22 -> 38,040.0
C10: August gross margin | F10: ='P&L'!L20 -> 40.8% | Q10: Feb | R10: ='P&L'!F12 -> 204,200.0 | S10: ='P&L'!F22 -> 42,550.0
C11: August EBITDA | F11: ='P&L'!L22 -> €58,340 | Q11: Mar | R11: ='P&L'!G12 -> 216,400.0 | S11: ='P&L'!G22 -> 48,870.0
C12: August cash | F12: ='Balance sheet'!L8 -> €342,327 | Q12: Apr | R12: ='P&L'!H12 -> 220,580.0 | S12: ='P&L'!H22 -> 45,600.0
C13: August receivables | F13: ='Balance sheet'!L9 -> €330,000 | Q13: May | R13: ='P&L'!I12 -> 231,860.0 | S13: ='P&L'!I22 -> 51,600.0
C14: August unbilled work | F14: ='Balance sheet'!L10 -> €15,120 | Q14: Jun | R14: ='P&L'!J12 -> 236,225.0 | S14: ='P&L'!J22 -> 49,825.0
C15: December cash / (funding gap) | F15: ='Balance sheet'!P8 -> €545,270 | Q15: Jul | R15: ='P&L'!K12 -> 254,350.0 | S15: ='P&L'!K22 -> 57,175.0
Q16: Aug | R16: ='P&L'!L12 -> 260,360.0 | S16: ='P&L'!L22 -> 58,340.0
Q17: Sep | R17: ='P&L'!M12 -> 283,160.0 | S17: ='P&L'!M22 -> 75,820.0
C18: Lowest daily available cash in 13 weeks | F18: ='13 week cash'!F25 -> €335,988 | Q18: Oct | R18: ='P&L'!N12 -> 302,300.0 | S18: ='P&L'!N22 -> 81,650.0
Q19: Nov | R19: ='P&L'!O12 -> 308,080.0 | S19: ='P&L'!O22 -> 81,470.0
C20: Protect contract and licence renewal contribution while matching support commitments to staffed capacity. | Q20: Dec | R20: ='P&L'!P12 -> 291,400.0 | S20: ='P&L'!P22 -> 73,600.0
C25: Review topic | D25: Owner | E25: Due date | F25: Status | G25: Next action
C26: Receivables | D26: Finance lead | E26: 2026-09-04 | F26: Open | G26: Confirm invoice-specific payment commitments.
C27: Contract economics | D27: CFO | E27: 2026-09-08 | F27: Open | G27: Review renewal price and vendor cost exposure.
C28: Capacity | D28: Delivery lead | E28: 2026-09-09 | F28: Open | G28: Compare committed delivery with staffed hours.
C29: Cash reserve | D29: CEO / CFO | E29: 2026-09-07 | F29: Open | G29: Review capital commitments before payment.
C30: Invoice approval | D30: Operations | E30: 2026-09-04 | F30: Awaiting review | G30: Resolve approval, review and hold separately.

Sheet Assumptions
C2: Assumptions
C4: Selected case | E4: 1 | G4: =CHOOSE($E$4,"Base","Downside") -> Base | H4: EUR. Entirely fictional.
C5: 1 = Base. 2 = Downside.
E6: Actual | F6: Actual | G6: Actual | H6: Actual | I6: Actual | J6: Actual | K6: Actual | L6: Actual | M6: Forecast | N6: Forecast | O6: Forecast | P6: Forecast
E7: 2026-01-01 | F7: 2026-02-01 | G7: 2026-03-01 | H7: 2026-04-01 | I7: 2026-05-01 | J7: 2026-06-01 | K7: 2026-07-01 | L7: 2026-08-01 | M7: 2026-09-01 | N7: 2026-10-01 | O7: 2026-11-01 | P7: 2026-12-01
C8: Managed-service contracts — active | E8: ='Source inputs'!E8 -> 28.0 | F8: ='Source inputs'!F8 -> 29.0 | G8: ='Source inputs'!G8 -> 29.0 | H8: ='Source inputs'!H8 -> 30.0 | I8: ='Source inputs'!I8 -> 31.0 | J8: ='Source inputs'!J8 -> 32.0 | K8: ='Source inputs'!K8 -> 33.0 | L8: ='Source inputs'!L8 -> 34.0 | M8: =IF($E$4=1,IF(ISNUMBER(M9),M9,NA()),IF($E$4=2,IF(ISNUMBER(M10),M10,NA()),NA())) -> 35.0 | N8: =IF($E$4=1,IF(ISNUMBER(N9),N9,NA()),IF($E$4=2,IF(ISNUMBER(N10),N10,NA()),NA())) -> 36.0 | O8: =IF($E$4=1,IF(ISNUMBER(O9),O9,NA()),IF($E$4=2,IF(ISNUMBER(O10),O10,NA()),NA())) -> 36.0 | P8: =IF($E$4=1,IF(ISNUMBER(P9),P9,NA()),IF($E$4=2,IF(ISNUMBER(P10),P10,NA()),NA())) -> 37.0
C9: Base | M9: 35.0 | N9: 36.0 | O9: 36.0 | P9: 37.0
C10: Downside | M10: 33.0 | N10: 32.0 | O10: 31.0 | P10: 31.0
C11: Monthly managed-service fee — active | E11: ='Source inputs'!E9 -> €3,000 | F11: ='Source inputs'!F9 -> €3,000 | G11: ='Source inputs'!G9 -> €3,050 | H11: ='Source inputs'!H9 -> €3,050 | I11: ='Source inputs'!I9 -> €3,100 | J11: ='Source inputs'!J9 -> €3,100 | K11: ='Source inputs'!K9 -> €3,150 | L11: ='Source inputs'!L9 -> €3,200 | M11: =IF($E$4=1,IF(ISNUMBER(M12),M12,NA()),IF($E$4=2,IF(ISNUMBER(M13),M13,NA()),NA())) -> €3,300 | N11: =IF($E$4=1,IF(ISNUMBER(N12),N12,NA()),IF($E$4=2,IF(ISNUMBER(N13),N13,NA()),NA())) -> €3,350 | O11: =IF($E$4=1,IF(ISNUMBER(O12),O12,NA()),IF($E$4=2,IF(ISNUMBER(O13),O13,NA()),NA())) -> €3,350 | P11: =IF($E$4=1,IF(ISNUMBER(P12),P12,NA()),IF($E$4=2,IF(ISNUMBER(P13),P13,NA()),NA())) -> €3,400
C12: Base | M12: €3,300 | N12: €3,350 | O12: €3,350 | P12: €3,400
C13: Downside | M13: €3,200 | N13: €3,200 | O13: €3,200 | P13: €3,200
C14: Monthly support hours per contract — active | E14: ='Source inputs'!E10 -> 35.0 | F14: ='Source inputs'!F10 -> 35.0 | G14: ='Source inputs'!G10 -> 36.0 | H14: ='Source inputs'!H10 -> 36.0 | I14: ='Source inputs'!I10 -> 37.0 | J14: ='Source inputs'!J10 -> 37.0 | K14: ='Source inputs'!K10 -> 38.0 | L14: ='Source inputs'!L10 -> 38.0 | M14: =IF($E$4=1,IF(ISNUMBER(M15),M15,NA()),IF($E$4=2,IF(ISNUMBER(M16),M16,NA()),NA())) -> 38.0 | N14: =IF($E$4=1,IF(ISNUMBER(N15),N15,NA()),IF($E$4=2,IF(ISNUMBER(N16),N16,NA()),NA())) -> 38.0 | O14: =IF($E$4=1,IF(ISNUMBER(O15),O15,NA()),IF($E$4=2,IF(ISNUMBER(O16),O16,NA()),NA())) -> 38.0 | P14: =IF($E$4=1,IF(ISNUMBER(P15),P15,NA()),IF($E$4=2,IF(ISNUMBER(P16),P16,NA()),NA())) -> 37.0
C15: Base | M15: 38.0 | N15: 38.0 | O15: 38.0 | P15: 37.0
C16: Downside | M16: 43.0 | N16: 45.0 | O16: 47.0 | P16: 47.0
C17: Monthly tickets per contract — active | E17: ='Source inputs'!E11 -> 29.0 | F17: ='Source inputs'!F11 -> 30.0 | G17: ='Source inputs'!G11 -> 30.0 | H17: ='Source inputs'!H11 -> 31.0 | I17: ='Source inputs'!I11 -> 31.0 | J17: ='Source inputs'!J11 -> 32.0 | K17: ='Source inputs'!K11 -> 32.0 | L17: ='Source inputs'!L11 -> 33.0 | M17: =IF($E$4=1,IF(ISNUMBER(M18),M18,NA()),IF($E$4=2,IF(ISNUMBER(M19),M19,NA()),NA())) -> 32.0 | N17: =IF($E$4=1,IF(ISNUMBER(N18),N18,NA()),IF($E$4=2,IF(ISNUMBER(N19),N19,NA()),NA())) -> 32.0 | O17: =IF($E$4=1,IF(ISNUMBER(O18),O18,NA()),IF($E$4=2,IF(ISNUMBER(O19),O19,NA()),NA())) -> 33.0 | P17: =IF($E$4=1,IF(ISNUMBER(P18),P18,NA()),IF($E$4=2,IF(ISNUMBER(P19),P19,NA()),NA())) -> 33.0
C18: Base | M18: 32.0 | N18: 32.0 | O18: 33.0 | P18: 33.0
C19: Downside | M19: 38.0 | N19: 40.0 | O19: 41.0 | P19: 42.0
C20: Implementation hours — active | E20: ='Source inputs'!E12 -> 500.0 | F20: ='Source inputs'!F12 -> 520.0 | G20: ='Source inputs'!G12 -> 550.0 | H20: ='Source inputs'!H12 -> 560.0 | I20: ='Source inputs'!I12 -> 580.0 | J20: ='Source inputs'!J12 -> 550.0 | K20: ='Source inputs'!K12 -> 620.0 | L20: ='Source inputs'!L12 -> 600.0 | M20: =IF($E$4=1,IF(ISNUMBER(M21),M21,NA()),IF($E$4=2,IF(ISNUMBER(M22),M22,NA()),NA())) -> 650.0 | N20: =IF($E$4=1,IF(ISNUMBER(N21),N21,NA()),IF($E$4=2,IF(ISNUMBER(N22),N22,NA()),NA())) -> 700.0 | O20: =IF($E$4=1,IF(ISNUMBER(O21),O21,NA()),IF($E$4=2,IF(ISNUMBER(O22),O22,NA()),NA())) -> 680.0 | P20: =IF($E$4=1,IF(ISNUMBER(P21),P21,NA()),IF($E$4=2,IF(ISNUMBER(P22),P22,NA()),NA())) -> 600.0
C21: Base | M21: 650.0 | N21: 700.0 | O21: 680.0 | P21: 600.0
C22: Downside | M22: 540.0 | N22: 530.0 | O22: 500.0 | P22: 450.0
C23: Implementation hourly rate — active | E23: ='Source inputs'!E13 -> €130 | F23: ='Source inputs'!F13 -> €130 | G23: ='Source inputs'!G13 -> €135 | H23: ='Source inputs'!H13 -> €135 | I23: ='Source inputs'!I13 -> €135 | J23: ='Source inputs'!J13 -> €138 | K23: ='Source inputs'!K13 -> €140 | L23: ='Source inputs'!L13 -> €140 | M23: =IF($E$4=1,IF(ISNUMBER(M24),M24,NA()),IF($E$4=2,IF(ISNUMBER(M25),M25,NA()),NA())) -> €145 | N23: =IF($E$4=1,IF(ISNUMBER(N24),N24,NA()),IF($E$4=2,IF(ISNUMBER(N25),N25,NA()),NA())) -> €145 | O23: =IF($E$4=1,IF(ISNUMBER(O24),O24,NA()),IF($E$4=2,IF(ISNUMBER(O25),O25,NA()),NA())) -> €150 | P23: =IF($E$4=1,IF(ISNUMBER(P24),P24,NA()),IF($E$4=2,IF(ISNUMBER(P25),P25,NA()),NA())) -> €150
C24: Base | M24: €145 | N24: €145 | O24: €150 | P24: €150
C25: Downside | M25: €138 | N25: €138 | O25: €135 | P25: €135
C26: Hardware units delivered — active | E26: ='Source inputs'!E14 -> 24.0 | F26: ='Source inputs'!F14 -> 25.0 | G26: ='Source inputs'!G14 -> 27.0 | H26: ='Source inputs'!H14 -> 26.0 | I26: ='Source inputs'!I14 -> 28.0 | J26: ='Source inputs'!J14 -> 30.0 | K26: ='Source inputs'!K14 -> 30.0 | L26: ='Source inputs'!L14 -> 32.0 | M26: =IF($E$4=1,IF(ISNUMBER(M27),M27,NA()),IF($E$4=2,IF(ISNUMBER(M28),M28,NA()),NA())) -> 34.0 | N26: =IF($E$4=1,IF(ISNUMBER(N27),N27,NA()),IF($E$4=2,IF(ISNUMBER(N28),N28,NA()),NA())) -> 38.0 | O26: =IF($E$4=1,IF(ISNUMBER(O27),O27,NA()),IF($E$4=2,IF(ISNUMBER(O28),O28,NA()),NA())) -> 40.0 | P26: =IF($E$4=1,IF(ISNUMBER(P27),P27,NA()),IF($E$4=2,IF(ISNUMBER(P28),P28,NA()),NA())) -> 32.0
C27: Base | M27: 34.0 | N27: 38.0 | O27: 40.0 | P27: 32.0
C28: Downside | M28: 30.0 | N28: 28.0 | O28: 26.0 | P28: 24.0
C29: Hardware selling price per unit — active | E29: ='Source inputs'!E15 -> €1,280 | F29: ='Source inputs'!F15 -> €1,280 | G29: ='Source inputs'!G15 -> €1,300 | H29: ='Source inputs'!H15 -> €1,300 | I29: ='Source inputs'!I15 -> €1,320 | J29: ='Source inputs'!J15 -> €1,320 | K29: ='Source inputs'!K15 -> €1,350 | L29: ='Source inputs'!L15 -> €1,350 | M29: =IF($E$4=1,IF(ISNUMBER(M30),M30,NA()),IF($E$4=2,IF(ISNUMBER(M31),M31,NA()),NA())) -> €1,375 | N29: =IF($E$4=1,IF(ISNUMBER(N30),N30,NA()),IF($E$4=2,IF(ISNUMBER(N31),N31,NA()),NA())) -> €1,375 | O29: =IF($E$4=1,IF(ISNUMBER(O30),O30,NA()),IF($E$4=2,IF(ISNUMBER(O31),O31,NA()),NA())) -> €1,400 | P29: =IF($E$4=1,IF(ISNUMBER(P30),P30,NA()),IF($E$4=2,IF(ISNUMBER(P31),P31,NA()),NA())) -> €1,400
C30: Base | M30: €1,375 | N30: €1,375 | O30: €1,400 | P30: €1,400
C31: Downside | M31: €1,350 | N31: €1,330 | O31: €1,320 | P31: €1,320
C32: Hardware supplier cost per unit — active | E32: ='Source inputs'!E16 -> €1,020 | F32: ='Source inputs'!F16 -> €1,020 | G32: ='Source inputs'!G16 -> €1,040 | H32: ='Source inputs'!H16 -> €1,040 | I32: ='Source inputs'!I16 -> €1,050 | J32: ='Source inputs'!J16 -> €1,050 | K32: ='Source inputs'!K16 -> €1,080 | L32: ='Source inputs'!L16 -> €1,080 | M32: =IF($E$4=1,IF(ISNUMBER(M33),M33,NA()),IF($E$4=2,IF(ISNUMBER(M34),M34,NA()),NA())) -> €1,090 | N32: =IF($E$4=1,IF(ISNUMBER(N33),N33,NA()),IF($E$4=2,IF(ISNUMBER(N34),N34,NA()),NA())) -> €1,090 | O32: =IF($E$4=1,IF(ISNUMBER(O33),O33,NA()),IF($E$4=2,IF(ISNUMBER(O34),O34,NA()),NA())) -> €1,100 | P32: =IF($E$4=1,IF(ISNUMBER(P33),P33,NA()),IF($E$4=2,IF(ISNUMBER(P34),P34,NA()),NA())) -> €1,100
C33: Base | M33: €1,090 | N33: €1,090 | O33: €1,100 | P33: €1,100
C34: Downside | M34: €1,110 | N34: €1,120 | O34: €1,125 | P34: €1,125
C35: Monthly licence seats — active | E35: ='Source inputs'!E17 -> 430.0 | F35: ='Source inputs'!F17 -> 440.0 | G35: ='Source inputs'!G17 -> 465.0 | H35: ='Source inputs'!H17 -> 480.0 | I35: ='Source inputs'!I17 -> 500.0 | J35: ='Source inputs'!J17 -> 525.0 | K35: ='Source inputs'!K17 -> 550.0 | L35: ='Source inputs'!L17 -> 580.0 | M35: =IF($E$4=1,IF(ISNUMBER(M36),M36,NA()),IF($E$4=2,IF(ISNUMBER(M37),M37,NA()),NA())) -> 620.0 | N35: =IF($E$4=1,IF(ISNUMBER(N36),N36,NA()),IF($E$4=2,IF(ISNUMBER(N37),N37,NA()),NA())) -> 650.0 | O35: =IF($E$4=1,IF(ISNUMBER(O36),O36,NA()),IF($E$4=2,IF(ISNUMBER(O37),O37,NA()),NA())) -> 670.0 | P35: =IF($E$4=1,IF(ISNUMBER(P36),P36,NA()),IF($E$4=2,IF(ISNUMBER(P37),P37,NA()),NA())) -> 700.0
C36: Base | M36: 620.0 | N36: 650.0 | O36: 670.0 | P36: 700.0
C37: Downside | M37: 560.0 | N37: 545.0 | O37: 530.0 | P37: 520.0
C38: Licence selling price per seat — active | E38: ='Source inputs'!E18 -> €40 | F38: ='Source inputs'!F18 -> €40 | G38: ='Source inputs'!G18 -> €40 | H38: ='Source inputs'!H18 -> €41 | I38: ='Source inputs'!I18 -> €41 | J38: ='Source inputs'!J18 -> €41 | K38: ='Source inputs'!K18 -> €42 | L38: ='Source inputs'!L18 -> €42 | M38: =IF($E$4=1,IF(ISNUMBER(M39),M39,NA()),IF($E$4=2,IF(ISNUMBER(M40),M40,NA()),NA())) -> €43 | N38: =IF($E$4=1,IF(ISNUMBER(N39),N39,NA()),IF($E$4=2,IF(ISNUMBER(N40),N40,NA()),NA())) -> €43 | O38: =IF($E$4=1,IF(ISNUMBER(O39),O39,NA()),IF($E$4=2,IF(ISNUMBER(O40),O40,NA()),NA())) -> €44 | P38: =IF($E$4=1,IF(ISNUMBER(P39),P39,NA()),IF($E$4=2,IF(ISNUMBER(P40),P40,NA()),NA())) -> €44
C39: Base | M39: €43 | N39: €43 | O39: €44 | P39: €44
C40: Downside | M40: €42 | N40: €42 | O40: €41 | P40: €41
C41: Licence supplier cost per seat — active | E41: ='Source inputs'!E19 -> €30 | F41: ='Source inputs'!F19 -> €30 | G41: ='Source inputs'!G19 -> €30 | H41: ='Source inputs'!H19 -> €31 | I41: ='Source inputs'!I19 -> €31 | J41: ='Source inputs'!J19 -> €31 | K41: ='Source inputs'!K19 -> €32 | L41: ='Source inputs'!L19 -> €32 | M41: =IF($E$4=1,IF(ISNUMBER(M42),M42,NA()),IF($E$4=2,IF(ISNUMBER(M43),M43,NA()),NA())) -> €32 | N41: =IF($E$4=1,IF(ISNUMBER(N42),N42,NA()),IF($E$4=2,IF(ISNUMBER(N43),N43,NA()),NA())) -> €32 | O41: =IF($E$4=1,IF(ISNUMBER(O42),O42,NA()),IF($E$4=2,IF(ISNUMBER(O43),O43,NA()),NA())) -> €33 | P41: =IF($E$4=1,IF(ISNUMBER(P42),P42,NA()),IF($E$4=2,IF(ISNUMBER(P43),P43,NA()),NA())) -> €33
C42: Base | M42: €32 | N42: €32 | O42: €33 | P42: €33
C43: Downside | M43: €33 | N43: €34 | O43: €34 | P43: €34
C44: Paid delivery FTE — active | E44: ='Source inputs'!E20 -> 12.0 | F44: ='Source inputs'!F20 -> 12.0 | G44: ='Source inputs'!G20 -> 12.0 | H44: ='Source inputs'!H20 -> 13.0 | I44: ='Source inputs'!I20 -> 13.0 | J44: ='Source inputs'!J20 -> 13.0 | K44: ='Source inputs'!K20 -> 14.0 | L44: ='Source inputs'!L20 -> 14.0 | M44: =IF($E$4=1,IF(ISNUMBER(M45),M45,NA()),IF($E$4=2,IF(ISNUMBER(M46),M46,NA()),NA())) -> 14.0 | N44: =IF($E$4=1,IF(ISNUMBER(N45),N45,NA()),IF($E$4=2,IF(ISNUMBER(N46),N46,NA()),NA())) -> 15.0 | O44: =IF($E$4=1,IF(ISNUMBER(O45),O45,NA()),IF($E$4=2,IF(ISNUMBER(O46),O46,NA()),NA())) -> 15.0 | P44: =IF($E$4=1,IF(ISNUMBER(P45),P45,NA()),IF($E$4=2,IF(ISNUMBER(P46),P46,NA()),NA())) -> 15.0
C45: Base | M45: 14.0 | N45: 15.0 | O45: 15.0 | P45: 15.0
C46: Downside | M46: 14.0 | N46: 14.0 | O46: 14.0 | P46: 14.0
C47: Loaded monthly pay per FTE — active | E47: ='Source inputs'!E21 -> €5,200 | F47: ='Source inputs'!F21 -> €5,200 | G47: ='Source inputs'!G21 -> €5,250 | H47: ='Source inputs'!H21 -> €5,300 | I47: ='Source inputs'!I21 -> €5,300 | J47: ='Source inputs'!J21 -> €5,400 | K47: ='Source inputs'!K21 -> €5,400 | L47: ='Source inputs'!L21 -> €5,500 | M47: =IF($E$4=1,IF(ISNUMBER(M48),M48,NA()),IF($E$4=2,IF(ISNUMBER(M49),M49,NA()),NA())) -> €5,500 | N47: =IF($E$4=1,IF(ISNUMBER(N48),N48,NA()),IF($E$4=2,IF(ISNUMBER(N49),N49,NA()),NA())) -> €5,500 | O47: =IF($E$4=1,IF(ISNUMBER(O48),O48,NA()),IF($E$4=2,IF(ISNUMBER(O49),O49,NA()),NA())) -> €5,600 | P47: =IF($E$4=1,IF(ISNUMBER(P48),P48,NA()),IF($E$4=2,IF(ISNUMBER(P49),P49,NA()),NA())) -> €5,600
C48: Base | M48: €5,500 | N48: €5,500 | O48: €5,600 | P48: €5,600
C49: Downside | M49: €5,500 | N49: €5,500 | O49: €5,600 | P49: €5,600
C50: Subcontractor hours — active | E50: ='Source inputs'!E22 -> 90.0 | F50: ='Source inputs'!F22 -> 95.0 | G50: ='Source inputs'!G22 -> 100.0 | H50: ='Source inputs'!H22 -> 105.0 | I50: ='Source inputs'!I22 -> 105.0 | J50: ='Source inputs'!J22 -> 115.0 | K50: ='Source inputs'!K22 -> 125.0 | L50: ='Source inputs'!L22 -> 120.0 | M50: =IF($E$4=1,IF(ISNUMBER(M51),M51,NA()),IF($E$4=2,IF(ISNUMBER(M52),M52,NA()),NA())) -> 130.0 | N50: =IF($E$4=1,IF(ISNUMBER(N51),N51,NA()),IF($E$4=2,IF(ISNUMBER(N52),N52,NA()),NA())) -> 135.0 | O50: =IF($E$4=1,IF(ISNUMBER(O51),O51,NA()),IF($E$4=2,IF(ISNUMBER(O52),O52,NA()),NA())) -> 130.0 | P50: =IF($E$4=1,IF(ISNUMBER(P51),P51,NA()),IF($E$4=2,IF(ISNUMBER(P52),P52,NA()),NA())) -> 115.0
C51: Base | M51: 130.0 | N51: 135.0 | O51: 130.0 | P51: 115.0
C52: Downside | M52: 175.0 | N52: 180.0 | O52: 185.0 | P52: 185.0
C53: Subcontractor hourly rate — active | E53: ='Source inputs'!E23 -> €90 | F53: ='Source inputs'!F23 -> €90 | G53: ='Source inputs'!G23 -> €90 | H53: ='Source inputs'!H23 -> €92 | I53: ='Source inputs'!I23 -> €92 | J53: ='Source inputs'!J23 -> €95 | K53: ='Source inputs'!K23 -> €95 | L53: ='Source inputs'!L23 -> €95 | M53: =IF($E$4=1,IF(ISNUMBER(M54),M54,NA()),IF($E$4=2,IF(ISNUMBER(M55),M55,NA()),NA())) -> €98 | N53: =IF($E$4=1,IF(ISNUMBER(N54),N54,NA()),IF($E$4=2,IF(ISNUMBER(N55),N55,NA()),NA())) -> €98 | O53: =IF($E$4=1,IF(ISNUMBER(O54),O54,NA()),IF($E$4=2,IF(ISNUMBER(O55),O55,NA()),NA())) -> €100 | P53: =IF($E$4=1,IF(ISNUMBER(P54),P54,NA()),IF($E$4=2,IF(ISNUMBER(P55),P55,NA()),NA())) -> €100
C54: Base | M54: €98 | N54: €98 | O54: €100 | P54: €100
C55: Downside | M55: €105 | N55: €105 | O55: €108 | P55: €108
C56: Direct delivery software — active | E56: ='Source inputs'!E24 -> €10,000 | F56: ='Source inputs'!F24 -> €10,500 | G56: ='Source inputs'!G24 -> €10,500 | H56: ='Source inputs'!H24 -> €11,000 | I56: ='Source inputs'!I24 -> €11,500 | J56: ='Source inputs'!J24 -> €12,000 | K56: ='Source inputs'!K24 -> €12,500 | L56: ='Source inputs'!L24 -> €12,500 | M56: =IF($E$4=1,IF(ISNUMBER(M57),M57,NA()),IF($E$4=2,IF(ISNUMBER(M58),M58,NA()),NA())) -> €13,000 | N56: =IF($E$4=1,IF(ISNUMBER(N57),N57,NA()),IF($E$4=2,IF(ISNUMBER(N58),N58,NA()),NA())) -> €13,500 | O56: =IF($E$4=1,IF(ISNUMBER(O57),O57,NA()),IF($E$4=2,IF(ISNUMBER(O58),O58,NA()),NA())) -> €13,500 | P56: =IF($E$4=1,IF(ISNUMBER(P57),P57,NA()),IF($E$4=2,IF(ISNUMBER(P58),P58,NA()),NA())) -> €14,000
C57: Base | M57: €13,000 | N57: €13,500 | O57: €13,500 | P57: €14,000
C58: Downside | M58: €13,000 | N58: €13,500 | O58: €13,500 | P58: €13,500
C59: Management and admin payroll — active | E59: ='Source inputs'!E25 -> €24,000 | F59: ='Source inputs'!F25 -> €24,000 | G59: ='Source inputs'!G25 -> €25,000 | H59: ='Source inputs'!H25 -> €25,000 | I59: ='Source inputs'!I25 -> €26,000 | J59: ='Source inputs'!J25 -> €26,000 | K59: ='Source inputs'!K25 -> €27,000 | L59: ='Source inputs'!L25 -> €27,500 | M59: =IF($E$4=1,IF(ISNUMBER(M60),M60,NA()),IF($E$4=2,IF(ISNUMBER(M61),M61,NA()),NA())) -> €27,500 | N59: =IF($E$4=1,IF(ISNUMBER(N60),N60,NA()),IF($E$4=2,IF(ISNUMBER(N61),N61,NA()),NA())) -> €28,500 | O59: =IF($E$4=1,IF(ISNUMBER(O60),O60,NA()),IF($E$4=2,IF(ISNUMBER(O61),O61,NA()),NA())) -> €28,500 | P59: =IF($E$4=1,IF(ISNUMBER(P60),P60,NA()),IF($E$4=2,IF(ISNUMBER(P61),P61,NA()),NA())) -> €29,000
C60: Base | M60: €27,500 | N60: €28,500 | O60: €28,500 | P60: €29,000
C61: Downside | M61: €27,500 | N61: €27,500 | O61: €27,500 | P61: €27,500
C62: Sales and marketing — active | E62: ='Source inputs'!E26 -> €7,000 | F62: ='Source inputs'!F26 -> €7,000 | G62: ='Source inputs'!G26 -> €7,500 | H62: ='Source inputs'!H26 -> €7,500 | I62: ='Source inputs'!I26 -> €8,000 | J62: ='Source inputs'!J26 -> €8,000 | K62: ='Source inputs'!K26 -> €8,500 | L62: ='Source inputs'!L26 -> €8,500 | M62: =IF($E$4=1,IF(ISNUMBER(M63),M63,NA()),IF($E$4=2,IF(ISNUMBER(M64),M64,NA()),NA())) -> €8,500 | N62: =IF($E$4=1,IF(ISNUMBER(N63),N63,NA()),IF($E$4=2,IF(ISNUMBER(N64),N64,NA()),NA())) -> €9,000 | O62: =IF($E$4=1,IF(ISNUMBER(O63),O63,NA()),IF($E$4=2,IF(ISNUMBER(O64),O64,NA()),NA())) -> €9,000 | P62: =IF($E$4=1,IF(ISNUMBER(P63),P63,NA()),IF($E$4=2,IF(ISNUMBER(P64),P64,NA()),NA())) -> €8,500
C63: Base | M63: €8,500 | N63: €9,000 | O63: €9,000 | P63: €8,500
C64: Downside | M64: €8,500 | N64: €8,500 | O64: €8,500 | P64: €8,000
C65: Office and general costs — active | E65: ='Source inputs'!E27 -> €6,500 | F65: ='Source inputs'!F27 -> €6,500 | G65: ='Source inputs'!G27 -> €6,500 | H65: ='Source inputs'!H27 -> €6,800 | I65: ='Source inputs'!I27 -> €6,800 | J65: ='Source inputs'!J27 -> €7,000 | K65: ='Source inputs'!K27 -> €7,200 | L65: ='Source inputs'!L27 -> €7,200 | M65: =IF($E$4=1,IF(ISNUMBER(M66),M66,NA()),IF($E$4=2,IF(ISNUMBER(M67),M67,NA()),NA())) -> €7,200 | N65: =IF($E$4=1,IF(ISNUMBER(N66),N66,NA()),IF($E$4=2,IF(ISNUMBER(N67),N67,NA()),NA())) -> €7,200 | O65: =IF($E$4=1,IF(ISNUMBER(O66),O66,NA()),IF($E$4=2,IF(ISNUMBER(O67),O67,NA()),NA())) -> €7,500 | P65: =IF($E$4=1,IF(ISNUMBER(P66),P66,NA()),IF($E$4=2,IF(ISNUMBER(P67),P67,NA()),NA())) -> €7,500
C66: Base | M66: €7,200 | N66: €7,200 | O66: €7,500 | P66: €7,500
C67: Downside | M67: €7,200 | N67: €7,200 | O67: €7,200 | P67: €7,200
C68: Professional fees — active | E68: ='Source inputs'!E28 -> €3,500 | F68: ='Source inputs'!F28 -> €4,000 | G68: ='Source inputs'!G28 -> €4,000 | H68: ='Source inputs'!H28 -> €4,200 | I68: ='Source inputs'!I28 -> €4,500 | J68: ='Source inputs'!J28 -> €4,500 | K68: ='Source inputs'!K28 -> €4,500 | L68: ='Source inputs'!L28 -> €4,800 | M68: =IF($E$4=1,IF(ISNUMBER(M69),M69,NA()),IF($E$4=2,IF(ISNUMBER(M70),M70,NA()),NA())) -> €4,500 | N68: =IF($E$4=1,IF(ISNUMBER(N69),N69,NA()),IF($E$4=2,IF(ISNUMBER(N70),N70,NA()),NA())) -> €4,500 | O68: =IF($E$4=1,IF(ISNUMBER(O69),O69,NA()),IF($E$4=2,IF(ISNUMBER(O70),O70,NA()),NA())) -> €5,000 | P68: =IF($E$4=1,IF(ISNUMBER(P69),P69,NA()),IF($E$4=2,IF(ISNUMBER(P70),P70,NA()),NA())) -> €5,000
C69: Base | M69: €4,500 | N69: €4,500 | O69: €5,000 | P69: €5,000
C70: Downside | M70: €5,000 | N70: €5,000 | O70: €5,000 | P70: €5,000
C71: Target closing AR days — active | E71: ='Source inputs'!E29 -> 37.0 | F71: ='Source inputs'!F29 -> 37.0 | G71: ='Source inputs'!G29 -> 37.0 | H71: ='Source inputs'!H29 -> 37.0 | I71: ='Source inputs'!I29 -> 37.0 | J71: ='Source inputs'!J29 -> 37.0 | K71: ='Source inputs'!K29 -> 37.0 | L71: ='Source inputs'!L29 -> 37.0 | M71: =IF($E$4=1,IF(ISNUMBER(M72),M72,NA()),IF($E$4=2,IF(ISNUMBER(M73),M73,NA()),NA())) -> 36.0 | N71: =IF($E$4=1,IF(ISNUMBER(N72),N72,NA()),IF($E$4=2,IF(ISNUMBER(N73),N73,NA()),NA())) -> 35.0 | O71: =IF($E$4=1,IF(ISNUMBER(O72),O72,NA()),IF($E$4=2,IF(ISNUMBER(O73),O73,NA()),NA())) -> 34.0 | P71: =IF($E$4=1,IF(ISNUMBER(P72),P72,NA()),IF($E$4=2,IF(ISNUMBER(P73),P73,NA()),NA())) -> 34.0
C72: Base | M72: 36.0 | N72: 35.0 | O72: 34.0 | P72: 34.0
C73: Downside | M73: 48.0 | N73: 52.0 | O73: 55.0 | P73: 55.0
C74: New supplier payable days — active | E74: ='Source inputs'!E30 -> 28.0 | F74: ='Source inputs'!F30 -> 28.0 | G74: ='Source inputs'!G30 -> 28.0 | H74: ='Source inputs'!H30 -> 28.0 | I74: ='Source inputs'!I30 -> 28.0 | J74: ='Source inputs'!J30 -> 28.0 | K74: ='Source inputs'!K30 -> 28.0 | L74: ='Source inputs'!L30 -> 28.0 | M74: =IF($E$4=1,IF(ISNUMBER(M75),M75,NA()),IF($E$4=2,IF(ISNUMBER(M76),M76,NA()),NA())) -> 28.0 | N74: =IF($E$4=1,IF(ISNUMBER(N75),N75,NA()),IF($E$4=2,IF(ISNUMBER(N76),N76,NA()),NA())) -> 28.0 | O74: =IF($E$4=1,IF(ISNUMBER(O75),O75,NA()),IF($E$4=2,IF(ISNUMBER(O76),O76,NA()),NA())) -> 28.0 | P74: =IF($E$4=1,IF(ISNUMBER(P75),P75,NA()),IF($E$4=2,IF(ISNUMBER(P76),P76,NA()),NA())) -> 28.0
C75: Base | M75: 28.0 | N75: 28.0 | O75: 28.0 | P75: 28.0
C76: Downside | M76: 28.0 | N76: 28.0 | O76: 28.0 | P76: 28.0
C77: Unbilled project revenue share — active | E77: ='Source inputs'!E31 -> 10.0% | F77: ='Source inputs'!F31 -> 10.0% | G77: ='Source inputs'!G31 -> 12.0% | H77: ='Source inputs'!H31 -> 12.0% | I77: ='Source inputs'!I31 -> 13.0% | J77: ='Source inputs'!J31 -> 14.0% | K77: ='Source inputs'!K31 -> 15.0% | L77: ='Source inputs'!L31 -> 18.0% | M77: =IF($E$4=1,IF(ISNUMBER(M78),M78,NA()),IF($E$4=2,IF(ISNUMBER(M79),M79,NA()),NA())) -> 12.0% | N77: =IF($E$4=1,IF(ISNUMBER(N78),N78,NA()),IF($E$4=2,IF(ISNUMBER(N79),N79,NA()),NA())) -> 12.0% | O77: =IF($E$4=1,IF(ISNUMBER(O78),O78,NA()),IF($E$4=2,IF(ISNUMBER(O79),O79,NA()),NA())) -> 10.0% | P77: =IF($E$4=1,IF(ISNUMBER(P78),P78,NA()),IF($E$4=2,IF(ISNUMBER(P79),P79,NA()),NA())) -> 10.0%
C78: Base | M78: 12.0% | N78: 12.0% | O78: 10.0% | P78: 10.0%
C79: Downside | M79: 20.0% | N79: 25.0% | O79: 25.0% | P79: 28.0%
C80: Advance contract billing share — active | E80: ='Source inputs'!E32 -> 30.0% | F80: ='Source inputs'!F32 -> 30.0% | G80: ='Source inputs'!G32 -> 30.0% | H80: ='Source inputs'!H32 -> 30.0% | I80: ='Source inputs'!I32 -> 30.0% | J80: ='Source inputs'!J32 -> 30.0% | K80: ='Source inputs'!K32 -> 30.0% | L80: ='Source inputs'!L32 -> 30.0% | M80: =IF($E$4=1,IF(ISNUMBER(M81),M81,NA()),IF($E$4=2,IF(ISNUMBER(M82),M82,NA()),NA())) -> 30.0% | N80: =IF($E$4=1,IF(ISNUMBER(N81),N81,NA()),IF($E$4=2,IF(ISNUMBER(N82),N82,NA()),NA())) -> 30.0% | O80: =IF($E$4=1,IF(ISNUMBER(O81),O81,NA()),IF($E$4=2,IF(ISNUMBER(O82),O82,NA()),NA())) -> 30.0% | P80: =IF($E$4=1,IF(ISNUMBER(P81),P81,NA()),IF($E$4=2,IF(ISNUMBER(P82),P82,NA()),NA())) -> 30.0%
C81: Base | M81: 30.0% | N81: 30.0% | O81: 30.0% | P81: 30.0%
C82: Downside | M82: 25.0% | N82: 25.0% | O82: 25.0% | P82: 25.0%
C83: Capital purchases — active | E83: ='Source inputs'!E33 -> €12,000 | F83: ='Source inputs'!F33 -> 0 | G83: ='Source inputs'!G33 -> €18,000 | H83: ='Source inputs'!H33 -> 0 | I83: ='Source inputs'!I33 -> €10,000 | J83: ='Source inputs'!J33 -> 0 | K83: ='Source inputs'!K33 -> €16,000 | L83: ='Source inputs'!L33 -> 0 | M83: =IF($E$4=1,IF(ISNUMBER(M84),M84,NA()),IF($E$4=2,IF(ISNUMBER(M85),M85,NA()),NA())) -> €45,000 | N83: =IF($E$4=1,IF(ISNUMBER(N84),N84,NA()),IF($E$4=2,IF(ISNUMBER(N85),N85,NA()),NA())) -> €10,000 | O83: =IF($E$4=1,IF(ISNUMBER(O84),O84,NA()),IF($E$4=2,IF(ISNUMBER(O85),O85,NA()),NA())) -> €12,000 | P83: =IF($E$4=1,IF(ISNUMBER(P84),P84,NA()),IF($E$4=2,IF(ISNUMBER(P85),P85,NA()),NA())) -> €10,000
C84: Base | M84: €45,000 | N84: €10,000 | O84: €12,000 | P84: €10,000
C85: Downside | M85: €45,000 | N85: €10,000 | O85: €12,000 | P85: €10,000
C86: Cash tax paid — active | E86: ='Source inputs'!E34 -> 0 | F86: ='Source inputs'!F34 -> 0 | G86: ='Source inputs'!G34 -> €18,000 | H86: ='Source inputs'!H34 -> 0 | I86: ='Source inputs'!I34 -> 0 | J86: ='Source inputs'!J34 -> €20,000 | K86: ='Source inputs'!K34 -> 0 | L86: ='Source inputs'!L34 -> 0 | M86: =IF($E$4=1,IF(ISNUMBER(M87),M87,NA()),IF($E$4=2,IF(ISNUMBER(M88),M88,NA()),NA())) -> €28,000 | N86: =IF($E$4=1,IF(ISNUMBER(N87),N87,NA()),IF($E$4=2,IF(ISNUMBER(N88),N88,NA()),NA())) -> 0 | O86: =IF($E$4=1,IF(ISNUMBER(O87),O87,NA()),IF($E$4=2,IF(ISNUMBER(O88),O88,NA()),NA())) -> 0 | P86: =IF($E$4=1,IF(ISNUMBER(P87),P87,NA()),IF($E$4=2,IF(ISNUMBER(P88),P88,NA()),NA())) -> €22,000
C87: Base | M87: €28,000 | N87: 0 | O87: 0 | P87: €22,000
C88: Downside | M88: €28,000 | N88: 0 | O88: 0 | P88: €16,000
C89: Opening AR collection delay days — active | E89: ='Source inputs'!E35 -> 0 | F89: ='Source inputs'!F35 -> 0 | G89: ='Source inputs'!G35 -> 0 | H89: ='Source inputs'!H35 -> 0 | I89: ='Source inputs'!I35 -> 0 | J89: ='Source inputs'!J35 -> 0 | K89: ='Source inputs'!K35 -> 0 | L89: ='Source inputs'!L35 -> 0 | M89: =IF($E$4=1,IF(ISNUMBER(M90),M90,NA()),IF($E$4=2,IF(ISNUMBER(M91),M91,NA()),NA())) -> 0 | N89: =IF($E$4=1,IF(ISNUMBER(N90),N90,NA()),IF($E$4=2,IF(ISNUMBER(N91),N91,NA()),NA())) -> 0 | O89: =IF($E$4=1,IF(ISNUMBER(O90),O90,NA()),IF($E$4=2,IF(ISNUMBER(O91),O91,NA()),NA())) -> 0 | P89: =IF($E$4=1,IF(ISNUMBER(P90),P90,NA()),IF($E$4=2,IF(ISNUMBER(P91),P91,NA()),NA())) -> 0
C90: Base | M90: 0 | N90: 0 | O90: 0 | P90: 0
C91: Downside | M91: 14.0 | N91: 14.0 | O91: 14.0 | P91: 14.0

Sheet P&L
C2: P&L
C4: Selected case | E4: ='Assumptions'!$G$4 -> Base | H4: EUR. Entirely fictional.
E6: Actual | F6: Actual | G6: Actual | H6: Actual | I6: Actual | J6: Actual | K6: Actual | L6: Actual | M6: Forecast | N6: Forecast | O6: Forecast | P6: Forecast
E7: 2026-01-01 | F7: 2026-02-01 | G7: 2026-03-01 | H7: 2026-04-01 | I7: 2026-05-01 | J7: 2026-06-01 | K7: 2026-07-01 | L7: 2026-08-01 | M7: 2026-09-01 | N7: 2026-10-01 | O7: 2026-11-01 | P7: 2026-12-01
C8: Recurring fees | E8: ='Operating model'!E8 -> €84,000 | F8: ='Operating model'!F8 -> €87,000 | G8: ='Operating model'!G8 -> €88,450 | H8: ='Operating model'!H8 -> €91,500 | I8: ='Operating model'!I8 -> €96,100 | J8: ='Operating model'!J8 -> €99,200 | K8: ='Operating model'!K8 -> €103,950 | L8: ='Operating model'!L8 -> €108,800 | M8: ='Operating model'!M8 -> €115,500 | N8: ='Operating model'!N8 -> €120,600 | O8: ='Operating model'!O8 -> €120,600 | P8: ='Operating model'!P8 -> €125,800
C9: Project fees | E9: ='Operating model'!E9 -> €65,000 | F9: ='Operating model'!F9 -> €67,600 | G9: ='Operating model'!G9 -> €74,250 | H9: ='Operating model'!H9 -> €75,600 | I9: ='Operating model'!I9 -> €78,300 | J9: ='Operating model'!J9 -> €75,900 | K9: ='Operating model'!K9 -> €86,800 | L9: ='Operating model'!L9 -> €84,000 | M9: ='Operating model'!M9 -> €94,250 | N9: ='Operating model'!N9 -> €101,500 | O9: ='Operating model'!O9 -> €102,000 | P9: ='Operating model'!P9 -> €90,000
C10: Hardware resale revenue | E10: ='Operating model'!E10 -> €30,720 | F10: ='Operating model'!F10 -> €32,000 | G10: ='Operating model'!G10 -> €35,100 | H10: ='Operating model'!H10 -> €33,800 | I10: ='Operating model'!I10 -> €36,960 | J10: ='Operating model'!J10 -> €39,600 | K10: ='Operating model'!K10 -> €40,500 | L10: ='Operating model'!L10 -> €43,200 | M10: ='Operating model'!M10 -> €46,750 | N10: ='Operating model'!N10 -> €52,250 | O10: ='Operating model'!O10 -> €56,000 | P10: ='Operating model'!P10 -> €44,800
C11: Licence resale revenue | E11: ='Operating model'!E11 -> €17,200 | F11: ='Operating model'!F11 -> €17,600 | G11: ='Operating model'!G11 -> €18,600 | H11: ='Operating model'!H11 -> €19,680 | I11: ='Operating model'!I11 -> €20,500 | J11: ='Operating model'!J11 -> €21,525 | K11: ='Operating model'!K11 -> €23,100 | L11: ='Operating model'!L11 -> €24,360 | M11: ='Operating model'!M11 -> €26,660 | N11: ='Operating model'!N11 -> €27,950 | O11: ='Operating model'!O11 -> €29,480 | P11: ='Operating model'!P11 -> €30,800
C12: Revenue | E12: ='Operating model'!E19 -> €196,920 | F12: ='Operating model'!F19 -> €204,200 | G12: ='Operating model'!G19 -> €216,400 | H12: ='Operating model'!H19 -> €220,580 | I12: ='Operating model'!I19 -> €231,860 | J12: ='Operating model'!J19 -> €236,225 | K12: ='Operating model'!K19 -> €254,350 | L12: ='Operating model'!L19 -> €260,360 | M12: ='Operating model'!M19 -> €283,160 | N12: ='Operating model'!N19 -> €302,300 | O12: ='Operating model'!O19 -> €308,080 | P12: ='Operating model'!P19 -> €291,400
C13: Delivery payroll | E13: ='Operating model'!E16 -> €62,400 | F13: ='Operating model'!F16 -> €62,400 | G13: ='Operating model'!G16 -> €63,000 | H13: ='Operating model'!H16 -> €68,900 | I13: ='Operating model'!I16 -> €68,900 | J13: ='Operating model'!J16 -> €70,200 | K13: ='Operating model'!K16 -> €75,600 | L13: ='Operating model'!L16 -> €77,000 | M13: ='Operating model'!M16 -> €77,000 | N13: ='Operating model'!N16 -> €82,500 | O13: ='Operating model'!O16 -> €84,000 | P13: ='Operating model'!P16 -> €84,000
C14: Subcontractors | E14: ='Operating model'!E17 -> €8,100 | F14: ='Operating model'!F17 -> €8,550 | G14: ='Operating model'!G17 -> €9,000 | H14: ='Operating model'!H17 -> €9,660 | I14: ='Operating model'!I17 -> €9,660 | J14: ='Operating model'!J17 -> €10,925 | K14: ='Operating model'!K17 -> €11,875 | L14: ='Operating model'!L17 -> €11,400 | M14: ='Operating model'!M17 -> €12,740 | N14: ='Operating model'!N17 -> €13,230 | O14: ='Operating model'!O17 -> €13,000 | P14: ='Operating model'!P17 -> €11,500
C15: Delivery software | E15: ='Operating model'!E18 -> €10,000 | F15: ='Operating model'!F18 -> €10,500 | G15: ='Operating model'!G18 -> €10,500 | H15: ='Operating model'!H18 -> €11,000 | I15: ='Operating model'!I18 -> €11,500 | J15: ='Operating model'!J18 -> €12,000 | K15: ='Operating model'!K18 -> €12,500 | L15: ='Operating model'!L18 -> €12,500 | M15: ='Operating model'!M18 -> €13,000 | N15: ='Operating model'!N18 -> €13,500 | O15: ='Operating model'!O18 -> €13,500 | P15: ='Operating model'!P18 -> €14,000
C16: Hardware supplier cost | E16: ='Operating model'!E12 -> €24,480 | F16: ='Operating model'!F12 -> €25,500 | G16: ='Operating model'!G12 -> €28,080 | H16: ='Operating model'!H12 -> €27,040 | I16: ='Operating model'!I12 -> €29,400 | J16: ='Operating model'!J12 -> €31,500 | K16: ='Operating model'!K12 -> €32,400 | L16: ='Operating model'!L12 -> €34,560 | M16: ='Operating model'!M12 -> €37,060 | N16: ='Operating model'!N12 -> €41,420 | O16: ='Operating model'!O12 -> €44,000 | P16: ='Operating model'!P12 -> €35,200
C17: Licence supplier cost | E17: ='Operating model'!E13 -> €12,900 | F17: ='Operating model'!F13 -> €13,200 | G17: ='Operating model'!G13 -> €13,950 | H17: ='Operating model'!H13 -> €14,880 | I17: ='Operating model'!I13 -> €15,500 | J17: ='Operating model'!J13 -> €16,275 | K17: ='Operating model'!K13 -> €17,600 | L17: ='Operating model'!L13 -> €18,560 | M17: ='Operating model'!M13 -> €19,840 | N17: ='Operating model'!N13 -> €20,800 | O17: ='Operating model'!O13 -> €22,110 | P17: ='Operating model'!P13 -> €23,100
C18: Direct costs | E18: ='Operating model'!E20 -> €117,880 | F18: ='Operating model'!F20 -> €120,150 | G18: ='Operating model'!G20 -> €124,530 | H18: ='Operating model'!H20 -> €131,480 | I18: ='Operating model'!I20 -> €134,960 | J18: ='Operating model'!J20 -> €140,900 | K18: ='Operating model'!K20 -> €149,975 | L18: ='Operating model'!L20 -> €154,020 | M18: ='Operating model'!M20 -> €159,640 | N18: ='Operating model'!N20 -> €171,450 | O18: ='Operating model'!O20 -> €176,610 | P18: ='Operating model'!P20 -> €167,800
C19: Gross profit | E19: ='Operating model'!E21 -> €79,040 | F19: ='Operating model'!F21 -> €84,050 | G19: ='Operating model'!G21 -> €91,870 | H19: ='Operating model'!H21 -> €89,100 | I19: ='Operating model'!I21 -> €96,900 | J19: ='Operating model'!J21 -> €95,325 | K19: ='Operating model'!K21 -> €104,375 | L19: ='Operating model'!L21 -> €106,340 | M19: ='Operating model'!M21 -> €123,520 | N19: ='Operating model'!N21 -> €130,850 | O19: ='Operating model'!O21 -> €131,470 | P19: ='Operating model'!P21 -> €123,600
C20: Gross margin | E20: ='Operating model'!E22 -> 40.1% | F20: ='Operating model'!F22 -> 41.2% | G20: ='Operating model'!G22 -> 42.5% | H20: ='Operating model'!H22 -> 40.4% | I20: ='Operating model'!I22 -> 41.8% | J20: ='Operating model'!J22 -> 40.4% | K20: ='Operating model'!K22 -> 41.0% | L20: ='Operating model'!L22 -> 40.8% | M20: ='Operating model'!M22 -> 43.6% | N20: ='Operating model'!N22 -> 43.3% | O20: ='Operating model'!O22 -> 42.7% | P20: ='Operating model'!P22 -> 42.4%
C21: Operating expenses | E21: ='Operating model'!E23 -> €41,000 | F21: ='Operating model'!F23 -> €41,500 | G21: ='Operating model'!G23 -> €43,000 | H21: ='Operating model'!H23 -> €43,500 | I21: ='Operating model'!I23 -> €45,300 | J21: ='Operating model'!J23 -> €45,500 | K21: ='Operating model'!K23 -> €47,200 | L21: ='Operating model'!L23 -> €48,000 | M21: ='Operating model'!M23 -> €47,700 | N21: ='Operating model'!N23 -> €49,200 | O21: ='Operating model'!O23 -> €50,000 | P21: ='Operating model'!P23 -> €50,000
C22: EBITDA | E22: ='Operating model'!E24 -> €38,040 | F22: ='Operating model'!F24 -> €42,550 | G22: ='Operating model'!G24 -> €48,870 | H22: ='Operating model'!H24 -> €45,600 | I22: ='Operating model'!I24 -> €51,600 | J22: ='Operating model'!J24 -> €49,825 | K22: ='Operating model'!K24 -> €57,175 | L22: ='Operating model'!L24 -> €58,340 | M22: ='Operating model'!M24 -> €75,820 | N22: ='Operating model'!N24 -> €81,650 | O22: ='Operating model'!O24 -> €81,470 | P22: ='Operating model'!P24 -> €73,600
C23: Depreciation | E23: ='Assets debt tax'!E12 -> €2,133 | F23: ='Assets debt tax'!F12 -> €2,133 | G23: ='Assets debt tax'!G12 -> €2,633 | H23: ='Assets debt tax'!H12 -> €2,633 | I23: ='Assets debt tax'!I12 -> €2,911 | J23: ='Assets debt tax'!J12 -> €2,911 | K23: ='Assets debt tax'!K12 -> €3,356 | L23: ='Assets debt tax'!L12 -> €3,356 | M23: ='Assets debt tax'!M12 -> €4,606 | N23: ='Assets debt tax'!N12 -> €4,883 | O23: ='Assets debt tax'!O12 -> €5,217 | P23: ='Assets debt tax'!P12 -> €5,494
C24: Interest | E24: ='Assets debt tax'!E18 -> €975 | F24: ='Assets debt tax'!F18 -> €953 | G24: ='Assets debt tax'!G18 -> €932 | H24: ='Assets debt tax'!H18 -> €910 | I24: ='Assets debt tax'!I18 -> €888 | J24: ='Assets debt tax'!J18 -> €867 | K24: ='Assets debt tax'!K18 -> €845 | L24: ='Assets debt tax'!L18 -> €823 | M24: ='Assets debt tax'!M18 -> €802 | N24: ='Assets debt tax'!N18 -> €780 | O24: ='Assets debt tax'!O18 -> €758 | P24: ='Assets debt tax'!P18 -> €737
C25: Profit before tax | E25: =E22-E23-E24 -> €34,932 | F25: =F22-F23-F24 -> €39,463 | G25: =G22-G23-G24 -> €45,305 | H25: =H22-H23-H24 -> €42,057 | I25: =I22-I23-I24 -> €47,801 | J25: =J22-J23-J24 -> €46,047 | K25: =K22-K23-K24 -> €52,974 | L25: =L22-L23-L24 -> €54,161 | M25: =M22-M23-M24 -> €70,413 | N25: =N22-N23-N24 -> €75,987 | O25: =O22-O23-O24 -> €75,495 | P25: =P22-P23-P24 -> €67,369
C26: Illustrative tax | E26: =MAX(0,E25)*0.2 -> €6,986 | F26: =MAX(0,F25)*0.2 -> €7,893 | G26: =MAX(0,G25)*0.2 -> €9,061 | H26: =MAX(0,H25)*0.2 -> €8,411 | I26: =MAX(0,I25)*0.2 -> €9,560 | J26: =MAX(0,J25)*0.2 -> €9,209 | K26: =MAX(0,K25)*0.2 -> €10,595 | L26: =MAX(0,L25)*0.2 -> €10,832 | M26: =MAX(0,M25)*0.2 -> €14,083 | N26: =MAX(0,N25)*0.2 -> €15,197 | O26: =MAX(0,O25)*0.2 -> €15,099 | P26: =MAX(0,P25)*0.2 -> €13,474
C27: Net profit | E27: =E25-E26 -> €27,945 | F27: =F25-F26 -> €31,571 | G27: =G25-G26 -> €36,244 | H27: =H25-H26 -> €33,645 | I27: =I25-I26 -> €38,240 | J27: =J25-J26 -> €36,838 | K27: =K25-K26 -> €42,380 | L27: =L25-L26 -> €43,329 | M27: =M25-M26 -> €56,330 | N27: =N25-N26 -> €60,789 | O27: =O25-O26 -> €60,396 | P27: =P25-P26 -> €53,895
C31: Revenue variance versus original budget | E31: =E12-'Original budget'!E12 -> (€9,900) | F31: =F12-'Original budget'!F12 -> (€10,287) | G31: =G12-'Original budget'!G12 -> (€11,121) | H31: =H12-'Original budget'!H12 -> (€11,360) | I31: =I12-'Original budget'!I12 -> (€11,799) | J31: =J12-'Original budget'!J12 -> (€11,588) | K31: =K12-'Original budget'!K12 -> (€13,015) | L31: =L12-'Original budget'!L12 -> (€12,800) | M31: =M12-'Original budget'!M12 -> 0 | N31: =N12-'Original budget'!N12 -> 0 | O31: =O12-'Original budget'!O12 -> 0 | P31: =P12-'Original budget'!P12 -> 0
C32: EBITDA variance versus original budget | E32: =E22-'Original budget'!E22 -> (€9,900) | F32: =F22-'Original budget'!F22 -> (€10,287) | G32: =G22-'Original budget'!G22 -> (€11,121) | H32: =H22-'Original budget'!H22 -> (€11,360) | I32: =I22-'Original budget'!I22 -> (€11,799) | J32: =J22-'Original budget'!J22 -> (€11,588) | K32: =K22-'Original budget'!K22 -> (€13,015) | L32: =L22-'Original budget'!L22 -> (€12,800) | M32: =M22-'Original budget'!M22 -> 0 | N32: =N22-'Original budget'!N22 -> 0 | O32: =O22-'Original budget'!O22 -> 0 | P32: =P22-'Original budget'!P22 -> 0
C35: Costs shown positive and deducted. Forecast starts September 2026.

Sheet Balance sheet
C2: Balance sheet
C4: Selected case | E4: ='Assumptions'!$G$4 -> Base | H4: EUR. Entirely fictional.
E6: Actual | F6: Actual | G6: Actual | H6: Actual | I6: Actual | J6: Actual | K6: Actual | L6: Actual | M6: Forecast | N6: Forecast | O6: Forecast | P6: Forecast
E7: 2026-01-01 | F7: 2026-02-01 | G7: 2026-03-01 | H7: 2026-04-01 | I7: 2026-05-01 | J7: 2026-06-01 | K7: 2026-07-01 | L7: 2026-08-01 | M7: 2026-09-01 | N7: 2026-10-01 | O7: 2026-11-01 | P7: 2026-12-01
C8: Cash / (unfunded requirement) | E8: ='Cash flow'!E20 -> €227,765 | F8: ='Cash flow'!F20 -> €255,002 | G8: ='Cash flow'!G20 -> €249,225 | H8: ='Cash flow'!H20 -> €273,668 | I8: ='Cash flow'!I20 -> €294,653 | J8: ='Cash flow'!J20 -> €296,094 | K8: ='Cash flow'!K20 -> €315,455 | L8: ='Cash flow'!L20 -> €342,327 | M8: ='Cash flow'!M20 -> €403,486 | N8: ='Cash flow'!N20 -> €421,900 | O8: ='Cash flow'!O20 -> €486,835 | P8: ='Cash flow'!P20 -> €545,270
C9: Accounts receivable | E9: ='Working capital'!E19 -> €185,000 | F9: ='Working capital'!F19 -> €198,000 | G9: ='Working capital'!G19 -> €213,000 | H9: ='Working capital'!H19 -> €231,000 | I9: ='Working capital'!I19 -> €250,000 | J9: ='Working capital'!J19 -> €276,000 | K9: ='Working capital'!K19 -> €297,000 | L9: ='Working capital'!L19 -> €330,000 | M9: ='Working capital'!M19 -> €288,980 | N9: ='Working capital'!N19 -> €341,306 | O9: ='Working capital'!O19 -> €349,157 | P9: ='Working capital'!P19 -> €319,600
C10: Unbilled contract assets | E10: ='Working capital'!E9 -> €6,500 | F10: ='Working capital'!F9 -> €6,760 | G10: ='Working capital'!G9 -> €8,910 | H10: ='Working capital'!H9 -> €9,072 | I10: ='Working capital'!I9 -> €10,179 | J10: ='Working capital'!J9 -> €10,626 | K10: ='Working capital'!K9 -> €13,020 | L10: ='Working capital'!L9 -> €15,120 | M10: ='Working capital'!M9 -> €11,310 | N10: ='Working capital'!N9 -> €12,180 | O10: ='Working capital'!O9 -> €10,200 | P10: ='Working capital'!P9 -> €9,000
C11: Net fixed assets | E11: ='Assets debt tax'!E14 -> €88,867 | F11: ='Assets debt tax'!F14 -> €86,733 | G11: ='Assets debt tax'!G14 -> €102,100 | H11: ='Assets debt tax'!H14 -> €99,467 | I11: ='Assets debt tax'!I14 -> €106,556 | J11: ='Assets debt tax'!J14 -> €103,644 | K11: ='Assets debt tax'!K14 -> €116,289 | L11: ='Assets debt tax'!L14 -> €112,933 | M11: ='Assets debt tax'!M14 -> €153,328 | N11: ='Assets debt tax'!N14 -> €158,444 | O11: ='Assets debt tax'!O14 -> €165,228 | P11: ='Assets debt tax'!P14 -> €169,733
C12: Current tax prepayment | E12: =MAX(0,-'Assets debt tax'!E23) -> 0 | F12: =MAX(0,-'Assets debt tax'!F23) -> 0 | G12: =MAX(0,-'Assets debt tax'!G23) -> 0 | H12: =MAX(0,-'Assets debt tax'!H23) -> 0 | I12: =MAX(0,-'Assets debt tax'!I23) -> 0 | J12: =MAX(0,-'Assets debt tax'!J23) -> 0 | K12: =MAX(0,-'Assets debt tax'!K23) -> 0 | L12: =MAX(0,-'Assets debt tax'!L23) -> 0 | M12: =MAX(0,-'Assets debt tax'!M23) -> 0 | N12: =MAX(0,-'Assets debt tax'!N23) -> 0 | O12: =MAX(0,-'Assets debt tax'!O23) -> 0 | P12: =MAX(0,-'Assets debt tax'!P23) -> 0
C13: Total assets | E13: =SUM(E8:E12) -> €508,132 | F13: =SUM(F8:F12) -> €546,495 | G13: =SUM(G8:G12) -> €573,235 | H13: =SUM(H8:H12) -> €613,207 | I13: =SUM(I8:I12) -> €661,387 | J13: =SUM(J8:J12) -> €686,364 | K13: =SUM(K8:K12) -> €741,764 | L13: =SUM(L8:L12) -> €800,380 | M13: =SUM(M8:M12) -> €857,103 | N13: =SUM(N8:N12) -> €933,831 | O13: =SUM(O8:O12) -> €1,011,420 | P13: =SUM(P8:P12) -> €1,043,604
C14: Accounts payable | E14: ='Working capital'!E26 -> €56,000 | F14: ='Working capital'!F26 -> €58,000 | G14: ='Working capital'!G26 -> €61,000 | H14: ='Working capital'!H26 -> €62,000 | I14: ='Working capital'!I26 -> €65,000 | J14: ='Working capital'!J26 -> €67,000 | K14: ='Working capital'!K26 -> €72,000 | L14: ='Working capital'!L26 -> €79,000 | M14: ='Working capital'!M26 -> €95,301 | N14: ='Working capital'!N26 -> €98,512 | O14: ='Working capital'!O26 -> €104,606 | P14: ='Working capital'!P26 -> €93,860
C15: Payroll accruals | E15: ='Source inputs'!$E$55 -> €20,000 | F15: ='Source inputs'!$E$55 -> €20,000 | G15: ='Source inputs'!$E$55 -> €20,000 | H15: ='Source inputs'!$E$55 -> €20,000 | I15: ='Source inputs'!$E$55 -> €20,000 | J15: ='Source inputs'!$E$55 -> €20,000 | K15: ='Source inputs'!$E$55 -> €20,000 | L15: ='Source inputs'!$E$55 -> €20,000 | M15: ='Source inputs'!$E$55 -> €20,000 | N15: ='Source inputs'!$E$55 -> €20,000 | O15: ='Source inputs'!$E$55 -> €20,000 | P15: ='Source inputs'!$E$55 -> €20,000
C16: Advance contract billings | E16: ='Working capital'!E11 -> €25,200 | F16: ='Working capital'!F11 -> €26,100 | G16: ='Working capital'!G11 -> €26,535 | H16: ='Working capital'!H11 -> €27,450 | I16: ='Working capital'!I11 -> €28,830 | J16: ='Working capital'!J11 -> €29,760 | K16: ='Working capital'!K11 -> €31,185 | L16: ='Working capital'!L11 -> €32,640 | M16: ='Working capital'!M11 -> €34,650 | N16: ='Working capital'!N11 -> €36,180 | O16: ='Working capital'!O11 -> €36,180 | P16: ='Working capital'!P11 -> €37,740
C17: Current tax payable | E17: =MAX(0,'Assets debt tax'!E23) -> €18,986 | F17: =MAX(0,'Assets debt tax'!F23) -> €26,879 | G17: =MAX(0,'Assets debt tax'!G23) -> €17,940 | H17: =MAX(0,'Assets debt tax'!H23) -> €26,351 | I17: =MAX(0,'Assets debt tax'!I23) -> €35,911 | J17: =MAX(0,'Assets debt tax'!J23) -> €25,121 | K17: =MAX(0,'Assets debt tax'!K23) -> €35,716 | L17: =MAX(0,'Assets debt tax'!L23) -> €46,548 | M17: =MAX(0,'Assets debt tax'!M23) -> €32,631 | N17: =MAX(0,'Assets debt tax'!N23) -> €47,828 | O17: =MAX(0,'Assets debt tax'!O23) -> €62,927 | P17: =MAX(0,'Assets debt tax'!P23) -> €54,401
C18: Debt | E18: ='Assets debt tax'!E17 -> €176,000 | F18: ='Assets debt tax'!F17 -> €172,000 | G18: ='Assets debt tax'!G17 -> €168,000 | H18: ='Assets debt tax'!H17 -> €164,000 | I18: ='Assets debt tax'!I17 -> €160,000 | J18: ='Assets debt tax'!J17 -> €156,000 | K18: ='Assets debt tax'!K17 -> €152,000 | L18: ='Assets debt tax'!L17 -> €148,000 | M18: ='Assets debt tax'!M17 -> €144,000 | N18: ='Assets debt tax'!N17 -> €140,000 | O18: ='Assets debt tax'!O17 -> €136,000 | P18: ='Assets debt tax'!P17 -> €132,000
C19: Total liabilities | E19: =SUM(E14:E18) -> €296,186 | F19: =SUM(F14:F18) -> €302,979 | G19: =SUM(G14:G18) -> €293,475 | H19: =SUM(H14:H18) -> €299,801 | I19: =SUM(I14:I18) -> €309,741 | J19: =SUM(J14:J18) -> €297,881 | K19: =SUM(K14:K18) -> €310,901 | L19: =SUM(L14:L18) -> €326,188 | M19: =SUM(M14:M18) -> €326,581 | N19: =SUM(N14:N18) -> €342,520 | O19: =SUM(O14:O18) -> €359,713 | P19: =SUM(P14:P18) -> €338,001
C20: Share capital | E20: ='Source inputs'!$E$60 -> €65,000 | F20: ='Source inputs'!$E$60 -> €65,000 | G20: ='Source inputs'!$E$60 -> €65,000 | H20: ='Source inputs'!$E$60 -> €65,000 | I20: ='Source inputs'!$E$60 -> €65,000 | J20: ='Source inputs'!$E$60 -> €65,000 | K20: ='Source inputs'!$E$60 -> €65,000 | L20: ='Source inputs'!$E$60 -> €65,000 | M20: ='Source inputs'!$E$60 -> €65,000 | N20: ='Source inputs'!$E$60 -> €65,000 | O20: ='Source inputs'!$E$60 -> €65,000 | P20: ='Source inputs'!$E$60 -> €65,000
C21: Retained earnings | E21: ='Source inputs'!$E$61+'P&L'!E27 -> €146,945 | F21: =E21+'P&L'!F27 -> €178,516 | G21: =F21+'P&L'!G27 -> €214,760 | H21: =G21+'P&L'!H27 -> €248,405 | I21: =H21+'P&L'!I27 -> €286,646 | J21: =I21+'P&L'!J27 -> €323,484 | K21: =J21+'P&L'!K27 -> €365,863 | L21: =K21+'P&L'!L27 -> €409,192 | M21: =L21+'P&L'!M27 -> €465,522 | N21: =M21+'P&L'!N27 -> €526,312 | O21: =N21+'P&L'!O27 -> €586,708 | P21: =O21+'P&L'!P27 -> €640,603
C22: Total equity | E22: =SUM(E20:E21) -> €211,945 | F22: =SUM(F20:F21) -> €243,516 | G22: =SUM(G20:G21) -> €279,760 | H22: =SUM(H20:H21) -> €313,405 | I22: =SUM(I20:I21) -> €351,646 | J22: =SUM(J20:J21) -> €388,484 | K22: =SUM(K20:K21) -> €430,863 | L22: =SUM(L20:L21) -> €474,192 | M22: =SUM(M20:M21) -> €530,522 | N22: =SUM(N20:N21) -> €591,312 | O22: =SUM(O20:O21) -> €651,708 | P22: =SUM(P20:P21) -> €705,603
C23: Assets less liabilities and equity | E23: =E13-E19-E22 -> (€0) | F23: =F13-F19-F22 -> 0 | G23: =G13-G19-G22 -> 0 | H23: =H13-H19-H22 -> (€0) | I23: =I13-I19-I22 -> €0 | J23: =J13-J19-J22 -> €0 | K23: =K13-K19-K22 -> €0 | L23: =L13-L19-L22 -> €0 | M23: =M13-M19-M22 -> €0 | N23: =N13-N19-N22 -> €0 | O23: =O13-O19-O22 -> €0 | P23: =P13-P19-P22 -> €0
C27: Negative cash is an unfunded need. No overdraft facility assumed.

Sheet Cash flow
C2: Cash flow
C4: Selected case | E4: ='Assumptions'!$G$4 -> Base | H4: EUR. Entirely fictional.
E6: Actual | F6: Actual | G6: Actual | H6: Actual | I6: Actual | J6: Actual | K6: Actual | L6: Actual | M6: Forecast | N6: Forecast | O6: Forecast | P6: Forecast
E7: 2026-01-01 | F7: 2026-02-01 | G7: 2026-03-01 | H7: 2026-04-01 | I7: 2026-05-01 | J7: 2026-06-01 | K7: 2026-07-01 | L7: 2026-08-01 | M7: 2026-09-01 | N7: 2026-10-01 | O7: 2026-11-01 | P7: 2026-12-01
C8: Net profit | E8: ='P&L'!E27 -> €27,945 | F8: ='P&L'!F27 -> €31,571 | G8: ='P&L'!G27 -> €36,244 | H8: ='P&L'!H27 -> €33,645 | I8: ='P&L'!I27 -> €38,240 | J8: ='P&L'!J27 -> €36,838 | K8: ='P&L'!K27 -> €42,380 | L8: ='P&L'!L27 -> €43,329 | M8: ='P&L'!M27 -> €56,330 | N8: ='P&L'!N27 -> €60,789 | O8: ='P&L'!O27 -> €60,396 | P8: ='P&L'!P27 -> €53,895
C9: Depreciation add-back | E9: ='Assets debt tax'!E12 -> €2,133 | F9: ='Assets debt tax'!F12 -> €2,133 | G9: ='Assets debt tax'!G12 -> €2,633 | H9: ='Assets debt tax'!H12 -> €2,633 | I9: ='Assets debt tax'!I12 -> €2,911 | J9: ='Assets debt tax'!J12 -> €2,911 | K9: ='Assets debt tax'!K12 -> €3,356 | L9: ='Assets debt tax'!L12 -> €3,356 | M9: ='Assets debt tax'!M12 -> €4,606 | N9: ='Assets debt tax'!N12 -> €4,883 | O9: ='Assets debt tax'!O12 -> €5,217 | P9: ='Assets debt tax'!P12 -> €5,494
C10: Receivables cash effect | E10: ='Working capital'!E14-'Working capital'!E19 -> (€10,000) | F10: ='Working capital'!F14-'Working capital'!F19 -> (€13,000) | G10: ='Working capital'!G14-'Working capital'!G19 -> (€15,000) | H10: ='Working capital'!H14-'Working capital'!H19 -> (€18,000) | I10: ='Working capital'!I14-'Working capital'!I19 -> (€19,000) | J10: ='Working capital'!J14-'Working capital'!J19 -> (€26,000) | K10: ='Working capital'!K14-'Working capital'!K19 -> (€21,000) | L10: ='Working capital'!L14-'Working capital'!L19 -> (€33,000) | M10: ='Working capital'!M14-'Working capital'!M19 -> €41,020 | N10: ='Working capital'!N14-'Working capital'!N19 -> (€52,326) | O10: ='Working capital'!O14-'Working capital'!O19 -> (€7,851) | P10: ='Working capital'!P14-'Working capital'!P19 -> €29,557
C11: Unbilled work cash effect | E11: ='Working capital'!E8-'Working capital'!E9 -> €11,500 | F11: ='Working capital'!F8-'Working capital'!F9 -> (€260) | G11: ='Working capital'!G8-'Working capital'!G9 -> (€2,150) | H11: ='Working capital'!H8-'Working capital'!H9 -> (€162) | I11: ='Working capital'!I8-'Working capital'!I9 -> (€1,107) | J11: ='Working capital'!J8-'Working capital'!J9 -> (€447) | K11: ='Working capital'!K8-'Working capital'!K9 -> (€2,394) | L11: ='Working capital'!L8-'Working capital'!L9 -> (€2,100) | M11: ='Working capital'!M8-'Working capital'!M9 -> €3,810 | N11: ='Working capital'!N8-'Working capital'!N9 -> (€870) | O11: ='Working capital'!O8-'Working capital'!O9 -> €1,980 | P11: ='Working capital'!P8-'Working capital'!P9 -> €1,200
C12: Payables cash effect | E12: ='Working capital'!E26-'Working capital'!E22 -> €4,000 | F12: ='Working capital'!F26-'Working capital'!F22 -> €2,000 | G12: ='Working capital'!G26-'Working capital'!G22 -> €3,000 | H12: ='Working capital'!H26-'Working capital'!H22 -> €1,000 | I12: ='Working capital'!I26-'Working capital'!I22 -> €3,000 | J12: ='Working capital'!J26-'Working capital'!J22 -> €2,000 | K12: ='Working capital'!K26-'Working capital'!K22 -> €5,000 | L12: ='Working capital'!L26-'Working capital'!L22 -> €7,000 | M12: ='Working capital'!M26-'Working capital'!M22 -> €16,301 | N12: ='Working capital'!N26-'Working capital'!N22 -> €3,211 | O12: ='Working capital'!O26-'Working capital'!O22 -> €6,094 | P12: ='Working capital'!P26-'Working capital'!P22 -> (€10,746)
C13: Advance billings cash effect | E13: ='Working capital'!E11-'Working capital'!E10 -> €1,200 | F13: ='Working capital'!F11-'Working capital'!F10 -> €900 | G13: ='Working capital'!G11-'Working capital'!G10 -> €435 | H13: ='Working capital'!H11-'Working capital'!H10 -> €915 | I13: ='Working capital'!I11-'Working capital'!I10 -> €1,380 | J13: ='Working capital'!J11-'Working capital'!J10 -> €930 | K13: ='Working capital'!K11-'Working capital'!K10 -> €1,425 | L13: ='Working capital'!L11-'Working capital'!L10 -> €1,455 | M13: ='Working capital'!M11-'Working capital'!M10 -> €2,010 | N13: ='Working capital'!N11-'Working capital'!N10 -> €1,530 | O13: ='Working capital'!O11-'Working capital'!O10 -> 0 | P13: ='Working capital'!P11-'Working capital'!P10 -> €1,560
C14: Tax balance cash effect | E14: ='Assets debt tax'!E23-'Assets debt tax'!E20 -> €6,986 | F14: ='Assets debt tax'!F23-'Assets debt tax'!F20 -> €7,893 | G14: ='Assets debt tax'!G23-'Assets debt tax'!G20 -> (€8,939) | H14: ='Assets debt tax'!H23-'Assets debt tax'!H20 -> €8,411 | I14: ='Assets debt tax'!I23-'Assets debt tax'!I20 -> €9,560 | J14: ='Assets debt tax'!J23-'Assets debt tax'!J20 -> (€10,791) | K14: ='Assets debt tax'!K23-'Assets debt tax'!K20 -> €10,595 | L14: ='Assets debt tax'!L23-'Assets debt tax'!L20 -> €10,832 | M14: ='Assets debt tax'!M23-'Assets debt tax'!M20 -> (€13,917) | N14: ='Assets debt tax'!N23-'Assets debt tax'!N20 -> €15,197 | O14: ='Assets debt tax'!O23-'Assets debt tax'!O20 -> €15,099 | P14: ='Assets debt tax'!P23-'Assets debt tax'!P20 -> (€8,526)
C15: Operating cash flow | E15: =SUM(E8:E14) -> €43,765 | F15: =SUM(F8:F14) -> €31,237 | G15: =SUM(G8:G14) -> €16,223 | H15: =SUM(H8:H14) -> €28,443 | I15: =SUM(I8:I14) -> €34,985 | J15: =SUM(J8:J14) -> €5,441 | K15: =SUM(K8:K14) -> €39,361 | L15: =SUM(L8:L14) -> €30,872 | M15: =SUM(M8:M14) -> €110,159 | N15: =SUM(N8:N14) -> €32,415 | O15: =SUM(O8:O14) -> €80,935 | P15: =SUM(P8:P14) -> €72,435
C16: Capital expenditure | E16: =-'Assumptions'!E83 -> (€12,000) | F16: =-'Assumptions'!F83 -> 0 | G16: =-'Assumptions'!G83 -> (€18,000) | H16: =-'Assumptions'!H83 -> 0 | I16: =-'Assumptions'!I83 -> (€10,000) | J16: =-'Assumptions'!J83 -> 0 | K16: =-'Assumptions'!K83 -> (€16,000) | L16: =-'Assumptions'!L83 -> 0 | M16: =-'Assumptions'!M83 -> (€45,000) | N16: =-'Assumptions'!N83 -> (€10,000) | O16: =-'Assumptions'!O83 -> (€12,000) | P16: =-'Assumptions'!P83 -> (€10,000)
C17: Debt principal | E17: =-4000 -> (€4,000) | F17: =-4000 -> (€4,000) | G17: =-4000 -> (€4,000) | H17: =-4000 -> (€4,000) | I17: =-4000 -> (€4,000) | J17: =-4000 -> (€4,000) | K17: =-4000 -> (€4,000) | L17: =-4000 -> (€4,000) | M17: =-4000 -> (€4,000) | N17: =-4000 -> (€4,000) | O17: =-4000 -> (€4,000) | P17: =-4000 -> (€4,000)
C18: Net cash change | E18: =SUM(E15:E17) -> €27,765 | F18: =SUM(F15:F17) -> €27,237 | G18: =SUM(G15:G17) -> (€5,777) | H18: =SUM(H15:H17) -> €24,443 | I18: =SUM(I15:I17) -> €20,985 | J18: =SUM(J15:J17) -> €1,441 | K18: =SUM(K15:K17) -> €19,361 | L18: =SUM(L15:L17) -> €26,872 | M18: =SUM(M15:M17) -> €61,159 | N18: =SUM(N15:N17) -> €18,415 | O18: =SUM(O15:O17) -> €64,935 | P18: =SUM(P15:P17) -> €58,435
C19: Opening cash | E19: ='Source inputs'!$E$50 -> €200,000 | F19: =E20 -> €227,765 | G19: =F20 -> €255,002 | H19: =G20 -> €249,225 | I19: =H20 -> €273,668 | J19: =I20 -> €294,653 | K19: =J20 -> €296,094 | L19: =K20 -> €315,455 | M19: =L20 -> €342,327 | N19: =M20 -> €403,486 | O19: =N20 -> €421,900 | P19: =O20 -> €486,835
C20: Closing cash | E20: =SUM(E18:E19) -> €227,765 | F20: =SUM(F18:F19) -> €255,002 | G20: =SUM(G18:G19) -> €249,225 | H20: =SUM(H18:H19) -> €273,668 | I20: =SUM(I18:I19) -> €294,653 | J20: =SUM(J18:J19) -> €296,094 | K20: =SUM(K18:K19) -> €315,455 | L20: =SUM(L18:L19) -> €342,327 | M20: =SUM(M18:M19) -> €403,486 | N20: =SUM(N18:N19) -> €421,900 | O20: =SUM(O18:O19) -> €486,835 | P20: =SUM(P18:P19) -> €545,270

Sheet 13 week cash
C2: 13 week cash
C4: Selected case | E4: ='Assumptions'!$G$4 -> Base | H4: EUR. Entirely fictional.
C6: Opening bank: 31 August close. Forecast starts 1 September.
C8: Week | D8: Start | E8: End | F8: Opening cash | G8: Net cash | H8: Closing cash | I8: Client funds | J8: Available cash
C9: W1 | D9: 2026-09-01 | E9: 2026-09-06 | F9: ='Balance sheet'!L8 -> €342,327 | G9: =SUMIFS($F$40:$F$103,$D$40:$D$103,">="&D9,$D$40:$D$103,"<="&E9) -> €72,230 | H9: =SUM(F9:G9) -> €414,557 | I9: =SUMIFS($F$40:$F$103,$E$40:$E$103,"Client media funds received",$D$40:$D$103,"<="&E9)+SUMIFS($F$40:$F$103,$E$40:$E$103,"Client media funds paid",$D$40:$D$103,"<="&E9) -> 0 | J9: =H9-I9 -> €414,557
C10: W2 | D10: 2026-09-07 | E10: 2026-09-13 | F10: =H9 -> €414,557 | G10: =SUMIFS($F$40:$F$103,$D$40:$D$103,">="&D10,$D$40:$D$103,"<="&E10) -> €2,940 | H10: =SUM(F10:G10) -> €417,497 | I10: =SUMIFS($F$40:$F$103,$E$40:$E$103,"Client media funds received",$D$40:$D$103,"<="&E10)+SUMIFS($F$40:$F$103,$E$40:$E$103,"Client media funds paid",$D$40:$D$103,"<="&E10) -> 0 | J10: =H10-I10 -> €417,497
C11: W3 | D11: 2026-09-14 | E11: 2026-09-20 | F11: =H10 -> €417,497 | G11: =SUMIFS($F$40:$F$103,$D$40:$D$103,">="&D11,$D$40:$D$103,"<="&E11) -> €68,591 | H11: =SUM(F11:G11) -> €486,087 | I11: =SUMIFS($F$40:$F$103,$E$40:$E$103,"Client media funds received",$D$40:$D$103,"<="&E11)+SUMIFS($F$40:$F$103,$E$40:$E$103,"Client media funds paid",$D$40:$D$103,"<="&E11) -> 0 | J11: =H11-I11 -> €486,087
C12: W4 | D12: 2026-09-21 | E12: 2026-09-27 | F12: =H11 -> €486,087 | G12: =SUMIFS($F$40:$F$103,$D$40:$D$103,">="&D12,$D$40:$D$103,"<="&E12) -> (€74,770) | H12: =SUM(F12:G12) -> €411,317 | I12: =SUMIFS($F$40:$F$103,$E$40:$E$103,"Client media funds received",$D$40:$D$103,"<="&E12)+SUMIFS($F$40:$F$103,$E$40:$E$103,"Client media funds paid",$D$40:$D$103,"<="&E12) -> 0 | J12: =H12-I12 -> €411,317
C13: W5 | D13: 2026-09-28 | E13: 2026-10-04 | F13: =H12 -> €411,317 | G13: =SUMIFS($F$40:$F$103,$D$40:$D$103,">="&D13,$D$40:$D$103,"<="&E13) -> (€7,832) | H13: =SUM(F13:G13) -> €403,486 | I13: =SUMIFS($F$40:$F$103,$E$40:$E$103,"Client media funds received",$D$40:$D$103,"<="&E13)+SUMIFS($F$40:$F$103,$E$40:$E$103,"Client media funds paid",$D$40:$D$103,"<="&E13) -> 0 | J13: =H13-I13 -> €403,486
C14: W6 | D14: 2026-10-05 | E14: 2026-10-11 | F14: =H13 -> €403,486 | G14: =SUMIFS($F$40:$F$103,$D$40:$D$103,">="&D14,$D$40:$D$103,"<="&E14) -> (€30,700) | H14: =SUM(F14:G14) -> €372,786 | I14: =SUMIFS($F$40:$F$103,$E$40:$E$103,"Client media funds received",$D$40:$D$103,"<="&E14)+SUMIFS($F$40:$F$103,$E$40:$E$103,"Client media funds paid",$D$40:$D$103,"<="&E14) -> 0 | J14: =H14-I14 -> €372,786
C15: W7 | D15: 2026-10-12 | E15: 2026-10-18 | F15: =H14 -> €372,786 | G15: =SUMIFS($F$40:$F$103,$D$40:$D$103,">="&D15,$D$40:$D$103,"<="&E15) -> €74,203 | H15: =SUM(F15:G15) -> €446,988 | I15: =SUMIFS($F$40:$F$103,$E$40:$E$103,"Client media funds received",$D$40:$D$103,"<="&E15)+SUMIFS($F$40:$F$103,$E$40:$E$103,"Client media funds paid",$D$40:$D$103,"<="&E15) -> 0 | J15: =H15-I15 -> €446,988
C16: W8 | D16: 2026-10-19 | E16: 2026-10-25 | F16: =H15 -> €446,988 | G16: =SUMIFS($F$40:$F$103,$D$40:$D$103,">="&D16,$D$40:$D$103,"<="&E16) -> (€111,000) | H16: =SUM(F16:G16) -> €335,988 | I16: =SUMIFS($F$40:$F$103,$E$40:$E$103,"Client media funds received",$D$40:$D$103,"<="&E16)+SUMIFS($F$40:$F$103,$E$40:$E$103,"Client media funds paid",$D$40:$D$103,"<="&E16) -> 0 | J16: =H16-I16 -> €335,988
C17: W9 | D17: 2026-10-26 | E17: 2026-11-01 | F17: =H16 -> €335,988 | G17: =SUMIFS($F$40:$F$103,$D$40:$D$103,">="&D17,$D$40:$D$103,"<="&E17) -> €85,912 | H17: =SUM(F17:G17) -> €421,900 | I17: =SUMIFS($F$40:$F$103,$E$40:$E$103,"Client media funds received",$D$40:$D$103,"<="&E17)+SUMIFS($F$40:$F$103,$E$40:$E$103,"Client media funds paid",$D$40:$D$103,"<="&E17) -> 0 | J17: =H17-I17 -> €421,900
C18: W10 | D18: 2026-11-02 | E18: 2026-11-08 | F18: =H17 -> €421,900 | G18: =SUMIFS($F$40:$F$103,$D$40:$D$103,">="&D18,$D$40:$D$103,"<="&E18) -> (€12,000) | H18: =SUM(F18:G18) -> €409,900 | I18: =SUMIFS($F$40:$F$103,$E$40:$E$103,"Client media funds received",$D$40:$D$103,"<="&E18)+SUMIFS($F$40:$F$103,$E$40:$E$103,"Client media funds paid",$D$40:$D$103,"<="&E18) -> 0 | J18: =H18-I18 -> €409,900
C19: W11 | D19: 2026-11-09 | E19: 2026-11-15 | F19: =H18 -> €409,900 | G19: =SUMIFS($F$40:$F$103,$D$40:$D$103,">="&D19,$D$40:$D$103,"<="&E19) -> €75,562 | H19: =SUM(F19:G19) -> €485,462 | I19: =SUMIFS($F$40:$F$103,$E$40:$E$103,"Client media funds received",$D$40:$D$103,"<="&E19)+SUMIFS($F$40:$F$103,$E$40:$E$103,"Client media funds paid",$D$40:$D$103,"<="&E19) -> 0 | J19: =H19-I19 -> €485,462
C20: W12 | D20: 2026-11-16 | E20: 2026-11-22 | F20: =H19 -> €485,462 | G20: =SUMIFS($F$40:$F$103,$D$40:$D$103,">="&D20,$D$40:$D$103,"<="&E20) -> 0 | H20: =SUM(F20:G20) -> €485,462 | I20: =SUMIFS($F$40:$F$103,$E$40:$E$103,"Client media funds received",$D$40:$D$103,"<="&E20)+SUMIFS($F$40:$F$103,$E$40:$E$103,"Client media funds paid",$D$40:$D$103,"<="&E20) -> 0 | J20: =H20-I20 -> €485,462
C21: W13 | D21: 2026-11-23 | E21: 2026-11-29 | F21: =H20 -> €485,462 | G21: =SUMIFS($F$40:$F$103,$D$40:$D$103,">="&D21,$D$40:$D$103,"<="&E21) -> €1,373 | H21: =SUM(F21:G21) -> €486,835 | I21: =SUMIFS($F$40:$F$103,$E$40:$E$103,"Client media funds received",$D$40:$D$103,"<="&E21)+SUMIFS($F$40:$F$103,$E$40:$E$103,"Client media funds paid",$D$40:$D$103,"<="&E21) -> 0 | J21: =H21-I21 -> €486,835
C24: Lowest weekly available cash | F24: =MIN(J9:J21) -> €335,988
C25: Lowest daily available cash | F25: =MIN(O40:O129) -> €335,988
C26: Minimum reserve | F26: €85,000
C27: Funding to keep reserve | F27: =MAX(0,F26-F25) -> 0
C28: Unfunded requirement | F28: =MAX(0,-F25) -> 0
C32: Daily lows can be below weekly closes.
C34: Client media funds are reserved. No new borrowing assumed.
C39: Record | D39: Effective date | E39: Type | F39: Cash amount | J39: Date | K39: Opening | L39: Net cash | M39: Closing | N39: Client funds reserved | O39: Available cash
C40: AR-1 | D40: ='AR and AP'!I9 -> 2026-09-04 | E40: Customer receipts | F40: ='AR and AP'!F9 -> €36,300 | J40: 2026-09-01 | K40: ='Balance sheet'!L8 -> €342,327 | L40: =SUMIFS($F$40:$F$103,$D$40:$D$103,J40) -> 0 | M40: =K40+L40 -> €342,327 | N40: =SUMIFS($F$40:$F$103,$E$40:$E$103,"Client media funds received",$D$40:$D$103,"<="&J40)+SUMIFS($F$40:$F$103,$E$40:$E$103,"Client media funds paid",$D$40:$D$103,"<="&J40) -> 0 | O40: =M40-N40 -> €342,327
C41: AR-2 | D41: ='AR and AP'!I10 -> 2026-09-11 | E41: Customer receipts | F41: ='AR and AP'!F10 -> €39,600 | J41: 2026-09-02 | K41: =M40 -> €342,327 | L41: =SUMIFS($F$40:$F$103,$D$40:$D$103,J41) -> 0 | M41: =K41+L41 -> €342,327 | N41: =SUMIFS($F$40:$F$103,$E$40:$E$103,"Client media funds received",$D$40:$D$103,"<="&J41)+SUMIFS($F$40:$F$103,$E$40:$E$103,"Client media funds paid",$D$40:$D$103,"<="&J41) -> 0 | O41: =M41-N41 -> €342,327
C42: AR-3 | D42: ='AR and AP'!I11 -> 2026-09-18 | E42: Customer receipts | F42: ='AR and AP'!F11 -> €42,900 | J42: 2026-09-03 | K42: =M41 -> €342,327 | L42: =SUMIFS($F$40:$F$103,$D$40:$D$103,J42) -> 0 | M42: =K42+L42 -> €342,327 | N42: =SUMIFS($F$40:$F$103,$E$40:$E$103,"Client media funds received",$D$40:$D$103,"<="&J42)+SUMIFS($F$40:$F$103,$E$40:$E$103,"Client media funds paid",$D$40:$D$103,"<="&J42) -> 0 | O42: =M42-N42 -> €342,327
C43: AR-4 | D43: ='AR and AP'!I12 -> 2026-09-25 | E43: Customer receipts | F43: ='AR and AP'!F12 -> €33,000 | J43: 2026-09-04 | K43: =M42 -> €342,327 | L43: =SUMIFS($F$40:$F$103,$D$40:$D$103,J43) -> €72,230 | M43: =K43+L43 -> €414,557 | N43: =SUMIFS($F$40:$F$103,$E$40:$E$103,"Client media funds received",$D$40:$D$103,"<="&J43)+SUMIFS($F$40:$F$103,$E$40:$E$103,"Client media funds paid",$D$40:$D$103,"<="&J43) -> 0 | O43: =M43-N43 -> €414,557
C44: AR-5 | D44: ='AR and AP'!I13 -> 2026-09-04 | E44: Customer receipts | F44: ='AR and AP'!F13 -> €46,200 | J44: 2026-09-05 | K44: =M43 -> €414,557 | L44: =SUMIFS($F$40:$F$103,$D$40:$D$103,J44) -> 0 | M44: =K44+L44 -> €414,557 | N44: =SUMIFS($F$40:$F$103,$E$40:$E$103,"Client media funds received",$D$40:$D$103,"<="&J44)+SUMIFS($F$40:$F$103,$E$40:$E$103,"Client media funds paid",$D$40:$D$103,"<="&J44) -> 0 | O44: =M44-N44 -> €414,557
C45: AR-6 | D45: ='AR and AP'!I14 -> 2026-09-11 | E45: Customer receipts | F45: ='AR and AP'!F14 -> €39,600 | J45: 2026-09-06 | K45: =M44 -> €414,557 | L45: =SUMIFS($F$40:$F$103,$D$40:$D$103,J45) -> 0 | M45: =K45+L45 -> €414,557 | N45: =SUMIFS($F$40:$F$103,$E$40:$E$103,"Client media funds received",$D$40:$D$103,"<="&J45)+SUMIFS($F$40:$F$103,$E$40:$E$103,"Client media funds paid",$D$40:$D$103,"<="&J45) -> 0 | O45: =M45-N45 -> €414,557
C46: AR-7 | D46: ='AR and AP'!I15 -> 2026-09-18 | E46: Customer receipts | F46: ='AR and AP'!F15 -> €49,500 | J46: 2026-09-07 | K46: =M45 -> €414,557 | L46: =SUMIFS($F$40:$F$103,$D$40:$D$103,J46) -> 0 | M46: =K46+L46 -> €414,557 | N46: =SUMIFS($F$40:$F$103,$E$40:$E$103,"Client media funds received",$D$40:$D$103,"<="&J46)+SUMIFS($F$40:$F$103,$E$40:$E$103,"Client media funds paid",$D$40:$D$103,"<="&J46) -> 0 | O46: =M46-N46 -> €414,557
C47: AR-8 | D47: ='AR and AP'!I16 -> 2026-09-25 | E47: Customer receipts | F47: ='AR and AP'!F16 -> €42,900 | J47: 2026-09-08 | K47: =M46 -> €414,557 | L47: =SUMIFS($F$40:$F$103,$D$40:$D$103,J47) -> (€45,000) | M47: =K47+L47 -> €369,557 | N47: =SUMIFS($F$40:$F$103,$E$40:$E$103,"Client media funds received",$D$40:$D$103,"<="&J47)+SUMIFS($F$40:$F$103,$E$40:$E$103,"Client media funds paid",$D$40:$D$103,"<="&J47) -> 0 | O47: =M47-N47 -> €369,557
C48: AP-1 | D48: ='AR and AP'!N24 -> 00:00:00 | E48: Supplier payments | F48: =-'AR and AP'!M24 -> 0 | J48: 2026-09-09 | K48: =M47 -> €369,557 | L48: =SUMIFS($F$40:$F$103,$D$40:$D$103,J48) -> 0 | M48: =K48+L48 -> €369,557 | N48: =SUMIFS($F$40:$F$103,$E$40:$E$103,"Client media funds received",$D$40:$D$103,"<="&J48)+SUMIFS($F$40:$F$103,$E$40:$E$103,"Client media funds paid",$D$40:$D$103,"<="&J48) -> 0 | O48: =M48-N48 -> €369,557
C49: AP-2 | D49: ='AR and AP'!N25 -> 2026-09-04 | E49: Supplier payments | F49: =-'AR and AP'!M25 -> (€10,270) | J49: 2026-09-10 | K49: =M48 -> €369,557 | L49: =SUMIFS($F$40:$F$103,$D$40:$D$103,J49) -> (€20,200) | M49: =K49+L49 -> €349,357 | N49: =SUMIFS($F$40:$F$103,$E$40:$E$103,"Client media funds received",$D$40:$D$103,"<="&J49)+SUMIFS($F$40:$F$103,$E$40:$E$103,"Client media funds paid",$D$40:$D$103,"<="&J49) -> 0 | O49: =M49-N49 -> €349,357
C50: AP-3 | D50: ='AR and AP'!N26 -> 2026-09-11 | E50: Supplier payments | F50: =-'AR and AP'!M26 -> (€11,060) | J50: 2026-09-11 | K50: =M49 -> €349,357 | L50: =SUMIFS($F$40:$F$103,$D$40:$D$103,J50) -> €68,140 | M50: =K50+L50 -> €417,497 | N50: =SUMIFS($F$40:$F$103,$E$40:$E$103,"Client media funds received",$D$40:$D$103,"<="&J50)+SUMIFS($F$40:$F$103,$E$40:$E$103,"Client media funds paid",$D$40:$D$103,"<="&J50) -> 0 | O50: =M50-N50 -> €417,497
C51: AP-4 | D51: ='AR and AP'!N27 -> 00:00:00 | E51: Supplier payments | F51: =-'AR and AP'!M27 -> 0 | J51: 2026-09-12 | K51: =M50 -> €417,497 | L51: =SUMIFS($F$40:$F$103,$D$40:$D$103,J51) -> 0 | M51: =K51+L51 -> €417,497 | N51: =SUMIFS($F$40:$F$103,$E$40:$E$103,"Client media funds received",$D$40:$D$103,"<="&J51)+SUMIFS($F$40:$F$103,$E$40:$E$103,"Client media funds paid",$D$40:$D$103,"<="&J51) -> 0 | O51: =M51-N51 -> €417,497
C52: AP-5 | D52: ='AR and AP'!N28 -> 2026-09-18 | E52: Supplier payments | F52: =-'AR and AP'!M28 -> (€12,640) | J52: 2026-09-13 | K52: =M51 -> €417,497 | L52: =SUMIFS($F$40:$F$103,$D$40:$D$103,J52) -> 0 | M52: =K52+L52 -> €417,497 | N52: =SUMIFS($F$40:$F$103,$E$40:$E$103,"Client media funds received",$D$40:$D$103,"<="&J52)+SUMIFS($F$40:$F$103,$E$40:$E$103,"Client media funds paid",$D$40:$D$103,"<="&J52) -> 0 | O52: =M52-N52 -> €417,497
C53: AP-6 | D53: ='AR and AP'!N29 -> 2026-09-18 | E53: Supplier payments | F53: =-'AR and AP'!M29 -> (€8,690) | J53: 2026-09-14 | K53: =M52 -> €417,497 | L53: =SUMIFS($F$40:$F$103,$D$40:$D$103,J53) -> 0 | M53: =K53+L53 -> €417,497 | N53: =SUMIFS($F$40:$F$103,$E$40:$E$103,"Client media funds received",$D$40:$D$103,"<="&J53)+SUMIFS($F$40:$F$103,$E$40:$E$103,"Client media funds paid",$D$40:$D$103,"<="&J53) -> 0 | O53: =M53-N53 -> €417,497
C54: AP-7 | D54: ='AR and AP'!N30 -> 2026-09-25 | E54: Supplier payments | F54: =-'AR and AP'!M30 -> (€9,480) | J54: 2026-09-15 | K54: =M53 -> €417,497 | L54: =SUMIFS($F$40:$F$103,$D$40:$D$103,J54) -> (€2,479) | M54: =K54+L54 -> €415,017 | N54: =SUMIFS($F$40:$F$103,$E$40:$E$103,"Client media funds received",$D$40:$D$103,"<="&J54)+SUMIFS($F$40:$F$103,$E$40:$E$103,"Client media funds paid",$D$40:$D$103,"<="&J54) -> 0 | O54: =M54-N54 -> €415,017
C55: AP-8 | D55: ='AR and AP'!N31 -> 2026-09-25 | E55: Supplier payments | F55: =-'AR and AP'!M31 -> (€8,690) | J55: 2026-09-16 | K55: =M54 -> €415,017 | L55: =SUMIFS($F$40:$F$103,$D$40:$D$103,J55) -> 0 | M55: =K55+L55 -> €415,017 | N55: =SUMIFS($F$40:$F$103,$E$40:$E$103,"Client media funds received",$D$40:$D$103,"<="&J55)+SUMIFS($F$40:$F$103,$E$40:$E$103,"Client media funds paid",$D$40:$D$103,"<="&J55) -> 0 | O55: =M55-N55 -> €415,017
C56: NEW-receipts-9-A | D56: =DATE(2026,9,15) -> 2026-09-15 | E56: Customer receipts | F56: =('Working capital'!M20-'Working capital'!M15)*0.45 -> 0 | J56: 2026-09-17 | K56: =M55 -> €415,017 | L56: =SUMIFS($F$40:$F$103,$D$40:$D$103,J56) -> 0 | M56: =K56+L56 -> €415,017 | N56: =SUMIFS($F$40:$F$103,$E$40:$E$103,"Client media funds received",$D$40:$D$103,"<="&J56)+SUMIFS($F$40:$F$103,$E$40:$E$103,"Client media funds paid",$D$40:$D$103,"<="&J56) -> 0 | O56: =M56-N56 -> €415,017
C57: NEW-receipts-9-B | D57: =DATE(2026,9,28) -> 2026-09-28 | E57: Customer receipts | F57: =('Working capital'!M20-'Working capital'!M15)*0.55 -> 0 | J57: 2026-09-18 | K57: =M56 -> €415,017 | L57: =SUMIFS($F$40:$F$103,$D$40:$D$103,J57) -> €71,070 | M57: =K57+L57 -> €486,087 | N57: =SUMIFS($F$40:$F$103,$E$40:$E$103,"Client media funds received",$D$40:$D$103,"<="&J57)+SUMIFS($F$40:$F$103,$E$40:$E$103,"Client media funds paid",$D$40:$D$103,"<="&J57) -> 0 | O57: =M57-N57 -> €486,087
C58: NEW-supplier-9-A | D58: =DATE(2026,9,15) -> 2026-09-15 | E58: Supplier payments | F58: =(-'Working capital'!M27+SUMIFS('AR and AP'!$M$24:$M$31,'AR and AP'!$N$24:$N$31,">="&DATE(2026,9,1),'AR and AP'!$N$24:$N$31,"<"&DATE(2026,10,1)))*0.45 -> (€2,479) | J58: 2026-09-19 | K58: =M57 -> €486,087 | L58: =SUMIFS($F$40:$F$103,$D$40:$D$103,J58) -> 0 | M58: =K58+L58 -> €486,087 | N58: =SUMIFS($F$40:$F$103,$E$40:$E$103,"Client media funds received",$D$40:$D$103,"<="&J58)+SUMIFS($F$40:$F$103,$E$40:$E$103,"Client media funds paid",$D$40:$D$103,"<="&J58) -> 0 | O58: =M58-N58 -> €486,087
C59: NEW-supplier-9-B | D59: =DATE(2026,9,28) -> 2026-09-28 | E59: Supplier payments | F59: =(-'Working capital'!M27+SUMIFS('AR and AP'!$M$24:$M$31,'AR and AP'!$N$24:$N$31,">="&DATE(2026,9,1),'AR and AP'!$N$24:$N$31,"<"&DATE(2026,10,1)))*0.55 -> (€3,030) | J59: 2026-09-20 | K59: =M58 -> €486,087 | L59: =SUMIFS($F$40:$F$103,$D$40:$D$103,J59) -> 0 | M59: =K59+L59 -> €486,087 | N59: =SUMIFS($F$40:$F$103,$E$40:$E$103,"Client media funds received",$D$40:$D$103,"<="&J59)+SUMIFS($F$40:$F$103,$E$40:$E$103,"Client media funds paid",$D$40:$D$103,"<="&J59) -> 0 | O59: =M59-N59 -> €486,087
C60: SCH-payroll-9 | D60: =DATE(2026,9,25) -> 2026-09-25 | E60: Payroll | F60: =-('P&L'!M13+'Assumptions'!M59) -> (€104,500) | J60: 2026-09-21 | K60: =M59 -> €486,087 | L60: =SUMIFS($F$40:$F$103,$D$40:$D$103,J60) -> (€28,000) | M60: =K60+L60 -> €458,087 | N60: =SUMIFS($F$40:$F$103,$E$40:$E$103,"Client media funds received",$D$40:$D$103,"<="&J60)+SUMIFS($F$40:$F$103,$E$40:$E$103,"Client media funds paid",$D$40:$D$103,"<="&J60) -> 0 | O60: =M60-N60 -> €458,087
C61: SCH-overheads-9 | D61: =DATE(2026,9,10) -> 2026-09-10 | E61: Operating overheads | F61: =-('Assumptions'!M62+'Assumptions'!M65+'Assumptions'!M68) -> (€20,200) | J61: 2026-09-22 | K61: =M60 -> €458,087 | L61: =SUMIFS($F$40:$F$103,$D$40:$D$103,J61) -> 0 | M61: =K61+L61 -> €458,087 | N61: =SUMIFS($F$40:$F$103,$E$40:$E$103,"Client media funds received",$D$40:$D$103,"<="&J61)+SUMIFS($F$40:$F$103,$E$40:$E$103,"Client media funds paid",$D$40:$D$103,"<="&J61) -> 0 | O61: =M61-N61 -> €458,087
C62: SCH-tax-9 | D62: =DATE(2026,9,21) -> 2026-09-21 | E62: Tax paid | F62: =-'Assumptions'!M86 -> (€28,000) | J62: 2026-09-23 | K62: =M61 -> €458,087 | L62: =SUMIFS($F$40:$F$103,$D$40:$D$103,J62) -> 0 | M62: =K62+L62 -> €458,087 | N62: =SUMIFS($F$40:$F$103,$E$40:$E$103,"Client media funds received",$D$40:$D$103,"<="&J62)+SUMIFS($F$40:$F$103,$E$40:$E$103,"Client media funds paid",$D$40:$D$103,"<="&J62) -> 0 | O62: =M62-N62 -> €458,087
C63: SCH-capex-9 | D63: =DATE(2026,9,8) -> 2026-09-08 | E63: Capital purchases | F63: =-'Assumptions'!M83 -> (€45,000) | J63: 2026-09-24 | K63: =M62 -> €458,087 | L63: =SUMIFS($F$40:$F$103,$D$40:$D$103,J63) -> 0 | M63: =K63+L63 -> €458,087 | N63: =SUMIFS($F$40:$F$103,$E$40:$E$103,"Client media funds received",$D$40:$D$103,"<="&J63)+SUMIFS($F$40:$F$103,$E$40:$E$103,"Client media funds paid",$D$40:$D$103,"<="&J63) -> 0 | O63: =M63-N63 -> €458,087
C64: SCH-debt-9 | D64: =DATE(2026,9,28) -> 2026-09-28 | E64: Debt repayment | F64: =-4000 -> (€4,000) | J64: 2026-09-25 | K64: =M63 -> €458,087 | L64: =SUMIFS($F$40:$F$103,$D$40:$D$103,J64) -> (€46,770) | M64: =K64+L64 -> €411,317 | N64: =SUMIFS($F$40:$F$103,$E$40:$E$103,"Client media funds received",$D$40:$D$103,"<="&J64)+SUMIFS($F$40:$F$103,$E$40:$E$103,"Client media funds paid",$D$40:$D$103,"<="&J64) -> 0 | O64: =M64-N64 -> €411,317
C65: SCH-interest-9 | D65: =DATE(2026,9,28) -> 2026-09-28 | E65: Interest paid | F65: =-'P&L'!M24 -> (€802) | J65: 2026-09-26 | K65: =M64 -> €411,317 | L65: =SUMIFS($F$40:$F$103,$D$40:$D$103,J65) -> 0 | M65: =K65+L65 -> €411,317 | N65: =SUMIFS($F$40:$F$103,$E$40:$E$103,"Client media funds received",$D$40:$D$103,"<="&J65)+SUMIFS($F$40:$F$103,$E$40:$E$103,"Client media funds paid",$D$40:$D$103,"<="&J65) -> 0 | O65: =M65-N65 -> €411,317
C66: SCH-mediaIn-9 | D66: =DATE(2026,9,5) -> 2026-09-05 | E66: Client media funds received | F66: =0 -> 0 | J66: 2026-09-27 | K66: =M65 -> €411,317 | L66: =SUMIFS($F$40:$F$103,$D$40:$D$103,J66) -> 0 | M66: =K66+L66 -> €411,317 | N66: =SUMIFS($F$40:$F$103,$E$40:$E$103,"Client media funds received",$D$40:$D$103,"<="&J66)+SUMIFS($F$40:$F$103,$E$40:$E$103,"Client media funds paid",$D$40:$D$103,"<="&J66) -> 0 | O66: =M66-N66 -> €411,317
C67: SCH-mediaOut-9 | D67: =DATE(2026,9,10) -> 2026-09-10 | E67: Client media funds paid | F67: =0 -> 0 | J67: 2026-09-28 | K67: =M66 -> €411,317 | L67: =SUMIFS($F$40:$F$103,$D$40:$D$103,J67) -> (€7,832) | M67: =K67+L67 -> €403,486 | N67: =SUMIFS($F$40:$F$103,$E$40:$E$103,"Client media funds received",$D$40:$D$103,"<="&J67)+SUMIFS($F$40:$F$103,$E$40:$E$103,"Client media funds paid",$D$40:$D$103,"<="&J67) -> 0 | O67: =M67-N67 -> €403,486
C68: NEW-receipts-10-A | D68: =DATE(2026,10,15) -> 2026-10-15 | E68: Customer receipts | F68: =('Working capital'!N20-'Working capital'!N15)*0.45 -> €112,785 | J68: 2026-09-29 | K68: =M67 -> €403,486 | L68: =SUMIFS($F$40:$F$103,$D$40:$D$103,J68) -> 0 | M68: =K68+L68 -> €403,486 | N68: =SUMIFS($F$40:$F$103,$E$40:$E$103,"Client media funds received",$D$40:$D$103,"<="&J68)+SUMIFS($F$40:$F$103,$E$40:$E$103,"Client media funds paid",$D$40:$D$103,"<="&J68) -> 0 | O68: =M68-N68 -> €403,486
C69: NEW-receipts-10-B | D69: =DATE(2026,10,28) -> 2026-10-28 | E69: Customer receipts | F69: =('Working capital'!N20-'Working capital'!N15)*0.55 -> €137,848 | J69: 2026-09-30 | K69: =M68 -> €403,486 | L69: =SUMIFS($F$40:$F$103,$D$40:$D$103,J69) -> 0 | M69: =K69+L69 -> €403,486 | N69: =SUMIFS($F$40:$F$103,$E$40:$E$103,"Client media funds received",$D$40:$D$103,"<="&J69)+SUMIFS($F$40:$F$103,$E$40:$E$103,"Client media funds paid",$D$40:$D$103,"<="&J69) -> 0 | O69: =M69-N69 -> €403,486
C70: NEW-supplier-10-A | D70: =DATE(2026,10,15) -> 2026-10-15 | E70: Supplier payments | F70: =(-'Working capital'!N27+SUMIFS('AR and AP'!$M$24:$M$31,'AR and AP'!$N$24:$N$31,">="&DATE(2026,10,1),'AR and AP'!$N$24:$N$31,"<"&DATE(2026,11,1)))*0.45 -> (€38,582) | J70: 2026-10-01 | K70: =M69 -> €403,486 | L70: =SUMIFS($F$40:$F$103,$D$40:$D$103,J70) -> 0 | M70: =K70+L70 -> €403,486 | N70: =SUMIFS($F$40:$F$103,$E$40:$E$103,"Client media funds received",$D$40:$D$103,"<="&J70)+SUMIFS($F$40:$F$103,$E$40:$E$103,"Client media funds paid",$D$40:$D$103,"<="&J70) -> 0 | O70: =M70-N70 -> €403,486
C71: NEW-supplier-10-B | D71: =DATE(2026,10,28) -> 2026-10-28 | E71: Supplier payments | F71: =(-'Working capital'!N27+SUMIFS('AR and AP'!$M$24:$M$31,'AR and AP'!$N$24:$N$31,">="&DATE(2026,10,1),'AR and AP'!$N$24:$N$31,"<"&DATE(2026,11,1)))*0.55 -> (€47,156) | J71: 2026-10-02 | K71: =M70 -> €403,486 | L71: =SUMIFS($F$40:$F$103,$D$40:$D$103,J71) -> 0 | M71: =K71+L71 -> €403,486 | N71: =SUMIFS($F$40:$F$103,$E$40:$E$103,"Client media funds received",$D$40:$D$103,"<="&J71)+SUMIFS($F$40:$F$103,$E$40:$E$103,"Client media funds paid",$D$40:$D$103,"<="&J71) -> 0 | O71: =M71-N71 -> €403,486
C72: SCH-payroll-10 | D72: =DATE(2026,10,25) -> 2026-10-25 | E72: Payroll | F72: =-('P&L'!N13+'Assumptions'!N59) -> (€111,000) | J72: 2026-10-03 | K72: =M71 -> €403,486 | L72: =SUMIFS($F$40:$F$103,$D$40:$D$103,J72) -> 0 | M72: =K72+L72 -> €403,486 | N72: =SUMIFS($F$40:$F$103,$E$40:$E$103,"Client media funds received",$D$40:$D$103,"<="&J72)+SUMIFS($F$40:$F$103,$E$40:$E$103,"Client media funds paid",$D$40:$D$103,"<="&J72) -> 0 | O72: =M72-N72 -> €403,486
C73: SCH-overheads-10 | D73: =DATE(2026,10,10) -> 2026-10-10 | E73: Operating overheads | F73: =-('Assumptions'!N62+'Assumptions'!N65+'Assumptions'!N68) -> (€20,700) | J73: 2026-10-04 | K73: =M72 -> €403,486 | L73: =SUMIFS($F$40:$F$103,$D$40:$D$103,J73) -> 0 | M73: =K73+L73 -> €403,486 | N73: =SUMIFS($F$40:$F$103,$E$40:$E$103,"Client media funds received",$D$40:$D$103,"<="&J73)+SUMIFS($F$40:$F$103,$E$40:$E$103,"Client media funds paid",$D$40:$D$103,"<="&J73) -> 0 | O73: =M73-N73 -> €403,486
C74: SCH-tax-10 | D74: =DATE(2026,10,21) -> 2026-10-21 | E74: Tax paid | F74: =-'Assumptions'!N86 -> 0 | J74: 2026-10-05 | K74: =M73 -> €403,486 | L74: =SUMIFS($F$40:$F$103,$D$40:$D$103,J74) -> 0 | M74: =K74+L74 -> €403,486 | N74: =SUMIFS($F$40:$F$103,$E$40:$E$103,"Client media funds received",$D$40:$D$103,"<="&J74)+SUMIFS($F$40:$F$103,$E$40:$E$103,"Client media funds paid",$D$40:$D$103,"<="&J74) -> 0 | O74: =M74-N74 -> €403,486
C75: SCH-capex-10 | D75: =DATE(2026,10,8) -> 2026-10-08 | E75: Capital purchases | F75: =-'Assumptions'!N83 -> (€10,000) | J75: 2026-10-06 | K75: =M74 -> €403,486 | L75: =SUMIFS($F$40:$F$103,$D$40:$D$103,J75) -> 0 | M75: =K75+L75 -> €403,486 | N75: =SUMIFS($F$40:$F$103,$E$40:$E$103,"Client media funds received",$D$40:$D$103,"<="&J75)+SUMIFS($F$40:$F$103,$E$40:$E$103,"Client media funds paid",$D$40:$D$103,"<="&J75) -> 0 | O75: =M75-N75 -> €403,486
C76: SCH-debt-10 | D76: =DATE(2026,10,28) -> 2026-10-28 | E76: Debt repayment | F76: =-4000 -> (€4,000) | J76: 2026-10-07 | K76: =M75 -> €403,486 | L76: =SUMIFS($F$40:$F$103,$D$40:$D$103,J76) -> 0 | M76: =K76+L76 -> €403,486 | N76: =SUMIFS($F$40:$F$103,$E$40:$E$103,"Client media funds received",$D$40:$D$103,"<="&J76)+SUMIFS($F$40:$F$103,$E$40:$E$103,"Client media funds paid",$D$40:$D$103,"<="&J76) -> 0 | O76: =M76-N76 -> €403,486
C77: SCH-interest-10 | D77: =DATE(2026,10,28) -> 2026-10-28 | E77: Interest paid | F77: =-'P&L'!N24 -> (€780) | J77: 2026-10-08 | K77: =M76 -> €403,486 | L77: =SUMIFS($F$40:$F$103,$D$40:$D$103,J77) -> (€10,000) | M77: =K77+L77 -> €393,486 | N77: =SUMIFS($F$40:$F$103,$E$40:$E$103,"Client media funds received",$D$40:$D$103,"<="&J77)+SUMIFS($F$40:$F$103,$E$40:$E$103,"Client media funds paid",$D$40:$D$103,"<="&J77) -> 0 | O77: =M77-N77 -> €393,486
C78: SCH-mediaIn-10 | D78: =DATE(2026,10,5) -> 2026-10-05 | E78: Client media funds received | F78: =0 -> 0 | J78: 2026-10-09 | K78: =M77 -> €393,486 | L78: =SUMIFS($F$40:$F$103,$D$40:$D$103,J78) -> 0 | M78: =K78+L78 -> €393,486 | N78: =SUMIFS($F$40:$F$103,$E$40:$E$103,"Client media funds received",$D$40:$D$103,"<="&J78)+SUMIFS($F$40:$F$103,$E$40:$E$103,"Client media funds paid",$D$40:$D$103,"<="&J78) -> 0 | O78: =M78-N78 -> €393,486
C79: SCH-mediaOut-10 | D79: =DATE(2026,10,10) -> 2026-10-10 | E79: Client media funds paid | F79: =0 -> 0 | J79: 2026-10-10 | K79: =M78 -> €393,486 | L79: =SUMIFS($F$40:$F$103,$D$40:$D$103,J79) -> (€20,700) | M79: =K79+L79 -> €372,786 | N79: =SUMIFS($F$40:$F$103,$E$40:$E$103,"Client media funds received",$D$40:$D$103,"<="&J79)+SUMIFS($F$40:$F$103,$E$40:$E$103,"Client media funds paid",$D$40:$D$103,"<="&J79) -> 0 | O79: =M79-N79 -> €372,786
C80: NEW-receipts-11-A | D80: =DATE(2026,11,15) -> 2026-11-15 | E80: Customer receipts | F80: =('Working capital'!O20-'Working capital'!O15)*0.45 -> €135,994 | J80: 2026-10-11 | K80: =M79 -> €372,786 | L80: =SUMIFS($F$40:$F$103,$D$40:$D$103,J80) -> 0 | M80: =K80+L80 -> €372,786 | N80: =SUMIFS($F$40:$F$103,$E$40:$E$103,"Client media funds received",$D$40:$D$103,"<="&J80)+SUMIFS($F$40:$F$103,$E$40:$E$103,"Client media funds paid",$D$40:$D$103,"<="&J80) -> 0 | O80: =M80-N80 -> €372,786
C81: NEW-receipts-11-B | D81: =DATE(2026,11,28) -> 2026-11-28 | E81: Customer receipts | F81: =('Working capital'!O20-'Working capital'!O15)*0.55 -> €166,215 | J81: 2026-10-12 | K81: =M80 -> €372,786 | L81: =SUMIFS($F$40:$F$103,$D$40:$D$103,J81) -> 0 | M81: =K81+L81 -> €372,786 | N81: =SUMIFS($F$40:$F$103,$E$40:$E$103,"Client media funds received",$D$40:$D$103,"<="&J81)+SUMIFS($F$40:$F$103,$E$40:$E$103,"Client media funds paid",$D$40:$D$103,"<="&J81) -> 0 | O81: =M81-N81 -> €372,786
C82: NEW-supplier-11-A | D82: =DATE(2026,11,15) -> 2026-11-15 | E82: Supplier payments | F82: =(-'Working capital'!O27+SUMIFS('AR and AP'!$M$24:$M$31,'AR and AP'!$N$24:$N$31,">="&DATE(2026,11,1),'AR and AP'!$N$24:$N$31,"<"&DATE(2026,12,1)))*0.45 -> (€38,932) | J82: 2026-10-13 | K82: =M81 -> €372,786 | L82: =SUMIFS($F$40:$F$103,$D$40:$D$103,J82) -> 0 | M82: =K82+L82 -> €372,786 | N82: =SUMIFS($F$40:$F$103,$E$40:$E$103,"Client media funds received",$D$40:$D$103,"<="&J82)+SUMIFS($F$40:$F$103,$E$40:$E$103,"Client media funds paid",$D$40:$D$103,"<="&J82) -> 0 | O82: =M82-N82 -> €372,786
C83: NEW-supplier-11-B | D83: =DATE(2026,11,28) -> 2026-11-28 | E83: Supplier payments | F83: =(-'Working capital'!O27+SUMIFS('AR and AP'!$M$24:$M$31,'AR and AP'!$N$24:$N$31,">="&DATE(2026,11,1),'AR and AP'!$N$24:$N$31,"<"&DATE(2026,12,1)))*0.55 -> (€47,584) | J83: 2026-10-14 | K83: =M82 -> €372,786 | L83: =SUMIFS($F$40:$F$103,$D$40:$D$103,J83) -> 0 | M83: =K83+L83 -> €372,786 | N83: =SUMIFS($F$40:$F$103,$E$40:$E$103,"Client media funds received",$D$40:$D$103,"<="&J83)+SUMIFS($F$40:$F$103,$E$40:$E$103,"Client media funds paid",$D$40:$D$103,"<="&J83) -> 0 | O83: =M83-N83 -> €372,786
C84: SCH-payroll-11 | D84: =DATE(2026,11,25) -> 2026-11-25 | E84: Payroll | F84: =-('P&L'!O13+'Assumptions'!O59) -> (€112,500) | J84: 2026-10-15 | K84: =M83 -> €372,786 | L84: =SUMIFS($F$40:$F$103,$D$40:$D$103,J84) -> €74,203 | M84: =K84+L84 -> €446,988 | N84: =SUMIFS($F$40:$F$103,$E$40:$E$103,"Client media funds received",$D$40:$D$103,"<="&J84)+SUMIFS($F$40:$F$103,$E$40:$E$103,"Client media funds paid",$D$40:$D$103,"<="&J84) -> 0 | O84: =M84-N84 -> €446,988
C85: SCH-overheads-11 | D85: =DATE(2026,11,10) -> 2026-11-10 | E85: Operating overheads | F85: =-('Assumptions'!O62+'Assumptions'!O65+'Assumptions'!O68) -> (€21,500) | J85: 2026-10-16 | K85: =M84 -> €446,988 | L85: =SUMIFS($F$40:$F$103,$D$40:$D$103,J85) -> 0 | M85: =K85+L85 -> €446,988 | N85: =SUMIFS($F$40:$F$103,$E$40:$E$103,"Client media funds received",$D$40:$D$103,"<="&J85)+SUMIFS($F$40:$F$103,$E$40:$E$103,"Client media funds paid",$D$40:$D$103,"<="&J85) -> 0 | O85: =M85-N85 -> €446,988
C86: SCH-tax-11 | D86: =DATE(2026,11,21) -> 2026-11-21 | E86: Tax paid | F86: =-'Assumptions'!O86 -> 0 | J86: 2026-10-17 | K86: =M85 -> €446,988 | L86: =SUMIFS($F$40:$F$103,$D$40:$D$103,J86) -> 0 | M86: =K86+L86 -> €446,988 | N86: =SUMIFS($F$40:$F$103,$E$40:$E$103,"Client media funds received",$D$40:$D$103,"<="&J86)+SUMIFS($F$40:$F$103,$E$40:$E$103,"Client media funds paid",$D$40:$D$103,"<="&J86) -> 0 | O86: =M86-N86 -> €446,988
C87: SCH-capex-11 | D87: =DATE(2026,11,8) -> 2026-11-08 | E87: Capital purchases | F87: =-'Assumptions'!O83 -> (€12,000) | J87: 2026-10-18 | K87: =M86 -> €446,988 | L87: =SUMIFS($F$40:$F$103,$D$40:$D$103,J87) -> 0 | M87: =K87+L87 -> €446,988 | N87: =SUMIFS($F$40:$F$103,$E$40:$E$103,"Client media funds received",$D$40:$D$103,"<="&J87)+SUMIFS($F$40:$F$103,$E$40:$E$103,"Client media funds paid",$D$40:$D$103,"<="&J87) -> 0 | O87: =M87-N87 -> €446,988
C88: SCH-debt-11 | D88: =DATE(2026,11,28) -> 2026-11-28 | E88: Debt repayment | F88: =-4000 -> (€4,000) | J88: 2026-10-19 | K88: =M87 -> €446,988 | L88: =SUMIFS($F$40:$F$103,$D$40:$D$103,J88) -> 0 | M88: =K88+L88 -> €446,988 | N88: =SUMIFS($F$40:$F$103,$E$40:$E$103,"Client media funds received",$D$40:$D$103,"<="&J88)+SUMIFS($F$40:$F$103,$E$40:$E$103,"Client media funds paid",$D$40:$D$103,"<="&J88) -> 0 | O88: =M88-N88 -> €446,988
C89: SCH-interest-11 | D89: =DATE(2026,11,28) -> 2026-11-28 | E89: Interest paid | F89: =-'P&L'!O24 -> (€758) | J89: 2026-10-20 | K89: =M88 -> €446,988 | L89: =SUMIFS($F$40:$F$103,$D$40:$D$103,J89) -> 0 | M89: =K89+L89 -> €446,988 | N89: =SUMIFS($F$40:$F$103,$E$40:$E$103,"Client media funds received",$D$40:$D$103,"<="&J89)+SUMIFS($F$40:$F$103,$E$40:$E$103,"Client media funds paid",$D$40:$D$103,"<="&J89) -> 0 | O89: =M89-N89 -> €446,988
C90: SCH-mediaIn-11 | D90: =DATE(2026,11,5) -> 2026-11-05 | E90: Client media funds received | F90: =0 -> 0 | J90: 2026-10-21 | K90: =M89 -> €446,988 | L90: =SUMIFS($F$40:$F$103,$D$40:$D$103,J90) -> 0 | M90: =K90+L90 -> €446,988 | N90: =SUMIFS($F$40:$F$103,$E$40:$E$103,"Client media funds received",$D$40:$D$103,"<="&J90)+SUMIFS($F$40:$F$103,$E$40:$E$103,"Client media funds paid",$D$40:$D$103,"<="&J90) -> 0 | O90: =M90-N90 -> €446,988
C91: SCH-mediaOut-11 | D91: =DATE(2026,11,10) -> 2026-11-10 | E91: Client media funds paid | F91: =0 -> 0 | J91: 2026-10-22 | K91: =M90 -> €446,988 | L91: =SUMIFS($F$40:$F$103,$D$40:$D$103,J91) -> 0 | M91: =K91+L91 -> €446,988 | N91: =SUMIFS($F$40:$F$103,$E$40:$E$103,"Client media funds received",$D$40:$D$103,"<="&J91)+SUMIFS($F$40:$F$103,$E$40:$E$103,"Client media funds paid",$D$40:$D$103,"<="&J91) -> 0 | O91: =M91-N91 -> €446,988
C92: NEW-receipts-12-A | D92: =DATE(2026,12,15) -> 2026-12-15 | E92: Customer receipts | F92: =('Working capital'!P20-'Working capital'!P15)*0.45 -> €145,673 | J92: 2026-10-23 | K92: =M91 -> €446,988 | L92: =SUMIFS($F$40:$F$103,$D$40:$D$103,J92) -> 0 | M92: =K92+L92 -> €446,988 | N92: =SUMIFS($F$40:$F$103,$E$40:$E$103,"Client media funds received",$D$40:$D$103,"<="&J92)+SUMIFS($F$40:$F$103,$E$40:$E$103,"Client media funds paid",$D$40:$D$103,"<="&J92) -> 0 | O92: =M92-N92 -> €446,988
C93: NEW-receipts-12-B | D93: =DATE(2026,12,28) -> 2026-12-28 | E93: Customer receipts | F93: =('Working capital'!P20-'Working capital'!P15)*0.55 -> €178,045 | J93: 2026-10-24 | K93: =M92 -> €446,988 | L93: =SUMIFS($F$40:$F$103,$D$40:$D$103,J93) -> 0 | M93: =K93+L93 -> €446,988 | N93: =SUMIFS($F$40:$F$103,$E$40:$E$103,"Client media funds received",$D$40:$D$103,"<="&J93)+SUMIFS($F$40:$F$103,$E$40:$E$103,"Client media funds paid",$D$40:$D$103,"<="&J93) -> 0 | O93: =M93-N93 -> €446,988
C94: NEW-supplier-12-A | D94: =DATE(2026,12,15) -> 2026-12-15 | E94: Supplier payments | F94: =(-'Working capital'!P27+SUMIFS('AR and AP'!$M$24:$M$31,'AR and AP'!$N$24:$N$31,">="&DATE(2026,12,1),'AR and AP'!$N$24:$N$31,"<"&DATE(2026,13,1)))*0.45 -> (€42,546) | J94: 2026-10-25 | K94: =M93 -> €446,988 | L94: =SUMIFS($F$40:$F$103,$D$40:$D$103,J94) -> (€111,000) | M94: =K94+L94 -> €335,988 | N94: =SUMIFS($F$40:$F$103,$E$40:$E$103,"Client media funds received",$D$40:$D$103,"<="&J94)+SUMIFS($F$40:$F$103,$E$40:$E$103,"Client media funds paid",$D$40:$D$103,"<="&J94) -> 0 | O94: =M94-N94 -> €335,988
C95: NEW-supplier-12-B | D95: =DATE(2026,12,28) -> 2026-12-28 | E95: Supplier payments | F95: =(-'Working capital'!P27+SUMIFS('AR and AP'!$M$24:$M$31,'AR and AP'!$N$24:$N$31,">="&DATE(2026,12,1),'AR and AP'!$N$24:$N$31,"<"&DATE(2026,13,1)))*0.55 -> (€52,000) | J95: 2026-10-26 | K95: =M94 -> €335,988 | L95: =SUMIFS($F$40:$F$103,$D$40:$D$103,J95) -> 0 | M95: =K95+L95 -> €335,988 | N95: =SUMIFS($F$40:$F$103,$E$40:$E$103,"Client media funds received",$D$40:$D$103,"<="&J95)+SUMIFS($F$40:$F$103,$E$40:$E$103,"Client media funds paid",$D$40:$D$103,"<="&J95) -> 0 | O95: =M95-N95 -> €335,988
C96: SCH-payroll-12 | D96: =DATE(2026,12,25) -> 2026-12-25 | E96: Payroll | F96: =-('P&L'!P13+'Assumptions'!P59) -> (€113,000) | J96: 2026-10-27 | K96: =M95 -> €335,988 | L96: =SUMIFS($F$40:$F$103,$D$40:$D$103,J96) -> 0 | M96: =K96+L96 -> €335,988 | N96: =SUMIFS($F$40:$F$103,$E$40:$E$103,"Client media funds received",$D$40:$D$103,"<="&J96)+SUMIFS($F$40:$F$103,$E$40:$E$103,"Client media funds paid",$D$40:$D$103,"<="&J96) -> 0 | O96: =M96-N96 -> €335,988
C97: SCH-overheads-12 | D97: =DATE(2026,12,10) -> 2026-12-10 | E97: Operating overheads | F97: =-('Assumptions'!P62+'Assumptions'!P65+'Assumptions'!P68) -> (€21,000) | J97: 2026-10-28 | K97: =M96 -> €335,988 | L97: =SUMIFS($F$40:$F$103,$D$40:$D$103,J97) -> €85,912 | M97: =K97+L97 -> €421,900 | N97: =SUMIFS($F$40:$F$103,$E$40:$E$103,"Client media funds received",$D$40:$D$103,"<="&J97)+SUMIFS($F$40:$F$103,$E$40:$E$103,"Client media funds paid",$D$40:$D$103,"<="&J97) -> 0 | O97: =M97-N97 -> €421,900
C98: SCH-tax-12 | D98: =DATE(2026,12,21) -> 2026-12-21 | E98: Tax paid | F98: =-'Assumptions'!P86 -> (€22,000) | J98: 2026-10-29 | K98: =M97 -> €421,900 | L98: =SUMIFS($F$40:$F$103,$D$40:$D$103,J98) -> 0 | M98: =K98+L98 -> €421,900 | N98: =SUMIFS($F$40:$F$103,$E$40:$E$103,"Client media funds received",$D$40:$D$103,"<="&J98)+SUMIFS($F$40:$F$103,$E$40:$E$103,"Client media funds paid",$D$40:$D$103,"<="&J98) -> 0 | O98: =M98-N98 -> €421,900
C99: SCH-capex-12 | D99: =DATE(2026,12,8) -> 2026-12-08 | E99: Capital purchases | F99: =-'Assumptions'!P83 -> (€10,000) | J99: 2026-10-30 | K99: =M98 -> €421,900 | L99: =SUMIFS($F$40:$F$103,$D$40:$D$103,J99) -> 0 | M99: =K99+L99 -> €421,900 | N99: =SUMIFS($F$40:$F$103,$E$40:$E$103,"Client media funds received",$D$40:$D$103,"<="&J99)+SUMIFS($F$40:$F$103,$E$40:$E$103,"Client media funds paid",$D$40:$D$103,"<="&J99) -> 0 | O99: =M99-N99 -> €421,900
C100: SCH-debt-12 | D100: =DATE(2026,12,28) -> 2026-12-28 | E100: Debt repayment | F100: =-4000 -> (€4,000) | J100: 2026-10-31 | K100: =M99 -> €421,900 | L100: =SUMIFS($F$40:$F$103,$D$40:$D$103,J100) -> 0 | M100: =K100+L100 -> €421,900 | N100: =SUMIFS($F$40:$F$103,$E$40:$E$103,"Client media funds received",$D$40:$D$103,"<="&J100)+SUMIFS($F$40:$F$103,$E$40:$E$103,"Client media funds paid",$D$40:$D$103,"<="&J100) -> 0 | O100: =M100-N100 -> €421,900
C101: SCH-interest-12 | D101: =DATE(2026,12,28) -> 2026-12-28 | E101: Interest paid | F101: =-'P&L'!P24 -> (€737) | J101: 2026-11-01 | K101: =M100 -> €421,900 | L101: =SUMIFS($F$40:$F$103,$D$40:$D$103,J101) -> 0 | M101: =K101+L101 -> €421,900 | N101: =SUMIFS($F$40:$F$103,$E$40:$E$103,"Client media funds received",$D$40:$D$103,"<="&J101)+SUMIFS($F$40:$F$103,$E$40:$E$103,"Client media funds paid",$D$40:$D$103,"<="&J101) -> 0 | O101: =M101-N101 -> €421,900
C102: SCH-mediaIn-12 | D102: =DATE(2026,12,5) -> 2026-12-05 | E102: Client media funds received | F102: =0 -> 0 | J102: 2026-11-02 | K102: =M101 -> €421,900 | L102: =SUMIFS($F$40:$F$103,$D$40:$D$103,J102) -> 0 | M102: =K102+L102 -> €421,900 | N102: =SUMIFS($F$40:$F$103,$E$40:$E$103,"Client media funds received",$D$40:$D$103,"<="&J102)+SUMIFS($F$40:$F$103,$E$40:$E$103,"Client media funds paid",$D$40:$D$103,"<="&J102) -> 0 | O102: =M102-N102 -> €421,900
C103: SCH-mediaOut-12 | D103: =DATE(2026,12,10) -> 2026-12-10 | E103: Client media funds paid | F103: =0 -> 0 | J103: 2026-11-03 | K103: =M102 -> €421,900 | L103: =SUMIFS($F$40:$F$103,$D$40:$D$103,J103) -> 0 | M103: =K103+L103 -> €421,900 | N103: =SUMIFS($F$40:$F$103,$E$40:$E$103,"Client media funds received",$D$40:$D$103,"<="&J103)+SUMIFS($F$40:$F$103,$E$40:$E$103,"Client media funds paid",$D$40:$D$103,"<="&J103) -> 0 | O103: =M103-N103 -> €421,900
J104: 2026-11-04 | K104: =M103 -> €421,900 | L104: =SUMIFS($F$40:$F$103,$D$40:$D$103,J104) -> 0 | M104: =K104+L104 -> €421,900 | N104: =SUMIFS($F$40:$F$103,$E$40:$E$103,"Client media funds received",$D$40:$D$103,"<="&J104)+SUMIFS($F$40:$F$103,$E$40:$E$103,"Client media funds paid",$D$40:$D$103,"<="&J104) -> 0 | O104: =M104-N104 -> €421,900
J105: 2026-11-05 | K105: =M104 -> €421,900 | L105: =SUMIFS($F$40:$F$103,$D$40:$D$103,J105) -> 0 | M105: =K105+L105 -> €421,900 | N105: =SUMIFS($F$40:$F$103,$E$40:$E$103,"Client media funds received",$D$40:$D$103,"<="&J105)+SUMIFS($F$40:$F$103,$E$40:$E$103,"Client media funds paid",$D$40:$D$103,"<="&J105) -> 0 | O105: =M105-N105 -> €421,900
J106: 2026-11-06 | K106: =M105 -> €421,900 | L106: =SUMIFS($F$40:$F$103,$D$40:$D$103,J106) -> 0 | M106: =K106+L106 -> €421,900 | N106: =SUMIFS($F$40:$F$103,$E$40:$E$103,"Client media funds received",$D$40:$D$103,"<="&J106)+SUMIFS($F$40:$F$103,$E$40:$E$103,"Client media funds paid",$D$40:$D$103,"<="&J106) -> 0 | O106: =M106-N106 -> €421,900
J107: 2026-11-07 | K107: =M106 -> €421,900 | L107: =SUMIFS($F$40:$F$103,$D$40:$D$103,J107) -> 0 | M107: =K107+L107 -> €421,900 | N107: =SUMIFS($F$40:$F$103,$E$40:$E$103,"Client media funds received",$D$40:$D$103,"<="&J107)+SUMIFS($F$40:$F$103,$E$40:$E$103,"Client media funds paid",$D$40:$D$103,"<="&J107) -> 0 | O107: =M107-N107 -> €421,900
J108: 2026-11-08 | K108: =M107 -> €421,900 | L108: =SUMIFS($F$40:$F$103,$D$40:$D$103,J108) -> (€12,000) | M108: =K108+L108 -> €409,900 | N108: =SUMIFS($F$40:$F$103,$E$40:$E$103,"Client media funds received",$D$40:$D$103,"<="&J108)+SUMIFS($F$40:$F$103,$E$40:$E$103,"Client media funds paid",$D$40:$D$103,"<="&J108) -> 0 | O108: =M108-N108 -> €409,900
J109: 2026-11-09 | K109: =M108 -> €409,900 | L109: =SUMIFS($F$40:$F$103,$D$40:$D$103,J109) -> 0 | M109: =K109+L109 -> €409,900 | N109: =SUMIFS($F$40:$F$103,$E$40:$E$103,"Client media funds received",$D$40:$D$103,"<="&J109)+SUMIFS($F$40:$F$103,$E$40:$E$103,"Client media funds paid",$D$40:$D$103,"<="&J109) -> 0 | O109: =M109-N109 -> €409,900
J110: 2026-11-10 | K110: =M109 -> €409,900 | L110: =SUMIFS($F$40:$F$103,$D$40:$D$103,J110) -> (€21,500) | M110: =K110+L110 -> €388,400 | N110: =SUMIFS($F$40:$F$103,$E$40:$E$103,"Client media funds received",$D$40:$D$103,"<="&J110)+SUMIFS($F$40:$F$103,$E$40:$E$103,"Client media funds paid",$D$40:$D$103,"<="&J110) -> 0 | O110: =M110-N110 -> €388,400
J111: 2026-11-11 | K111: =M110 -> €388,400 | L111: =SUMIFS($F$40:$F$103,$D$40:$D$103,J111) -> 0 | M111: =K111+L111 -> €388,400 | N111: =SUMIFS($F$40:$F$103,$E$40:$E$103,"Client media funds received",$D$40:$D$103,"<="&J111)+SUMIFS($F$40:$F$103,$E$40:$E$103,"Client media funds paid",$D$40:$D$103,"<="&J111) -> 0 | O111: =M111-N111 -> €388,400
J112: 2026-11-12 | K112: =M111 -> €388,400 | L112: =SUMIFS($F$40:$F$103,$D$40:$D$103,J112) -> 0 | M112: =K112+L112 -> €388,400 | N112: =SUMIFS($F$40:$F$103,$E$40:$E$103,"Client media funds received",$D$40:$D$103,"<="&J112)+SUMIFS($F$40:$F$103,$E$40:$E$103,"Client media funds paid",$D$40:$D$103,"<="&J112) -> 0 | O112: =M112-N112 -> €388,400
J113: 2026-11-13 | K113: =M112 -> €388,400 | L113: =SUMIFS($F$40:$F$103,$D$40:$D$103,J113) -> 0 | M113: =K113+L113 -> €388,400 | N113: =SUMIFS($F$40:$F$103,$E$40:$E$103,"Client media funds received",$D$40:$D$103,"<="&J113)+SUMIFS($F$40:$F$103,$E$40:$E$103,"Client media funds paid",$D$40:$D$103,"<="&J113) -> 0 | O113: =M113-N113 -> €388,400
J114: 2026-11-14 | K114: =M113 -> €388,400 | L114: =SUMIFS($F$40:$F$103,$D$40:$D$103,J114) -> 0 | M114: =K114+L114 -> €388,400 | N114: =SUMIFS($F$40:$F$103,$E$40:$E$103,"Client media funds received",$D$40:$D$103,"<="&J114)+SUMIFS($F$40:$F$103,$E$40:$E$103,"Client media funds paid",$D$40:$D$103,"<="&J114) -> 0 | O114: =M114-N114 -> €388,400
J115: 2026-11-15 | K115: =M114 -> €388,400 | L115: =SUMIFS($F$40:$F$103,$D$40:$D$103,J115) -> €97,062 | M115: =K115+L115 -> €485,462 | N115: =SUMIFS($F$40:$F$103,$E$40:$E$103,"Client media funds received",$D$40:$D$103,"<="&J115)+SUMIFS($F$40:$F$103,$E$40:$E$103,"Client media funds paid",$D$40:$D$103,"<="&J115) -> 0 | O115: =M115-N115 -> €485,462
J116: 2026-11-16 | K116: =M115 -> €485,462 | L116: =SUMIFS($F$40:$F$103,$D$40:$D$103,J116) -> 0 | M116: =K116+L116 -> €485,462 | N116: =SUMIFS($F$40:$F$103,$E$40:$E$103,"Client media funds received",$D$40:$D$103,"<="&J116)+SUMIFS($F$40:$F$103,$E$40:$E$103,"Client media funds paid",$D$40:$D$103,"<="&J116) -> 0 | O116: =M116-N116 -> €485,462
J117: 2026-11-17 | K117: =M116 -> €485,462 | L117: =SUMIFS($F$40:$F$103,$D$40:$D$103,J117) -> 0 | M117: =K117+L117 -> €485,462 | N117: =SUMIFS($F$40:$F$103,$E$40:$E$103,"Client media funds received",$D$40:$D$103,"<="&J117)+SUMIFS($F$40:$F$103,$E$40:$E$103,"Client media funds paid",$D$40:$D$103,"<="&J117) -> 0 | O117: =M117-N117 -> €485,462
J118: 2026-11-18 | K118: =M117 -> €485,462 | L118: =SUMIFS($F$40:$F$103,$D$40:$D$103,J118) -> 0 | M118: =K118+L118 -> €485,462 | N118: =SUMIFS($F$40:$F$103,$E$40:$E$103,"Client media funds received",$D$40:$D$103,"<="&J118)+SUMIFS($F$40:$F$103,$E$40:$E$103,"Client media funds paid",$D$40:$D$103,"<="&J118) -> 0 | O118: =M118-N118 -> €485,462
J119: 2026-11-19 | K119: =M118 -> €485,462 | L119: =SUMIFS($F$40:$F$103,$D$40:$D$103,J119) -> 0 | M119: =K119+L119 -> €485,462 | N119: =SUMIFS($F$40:$F$103,$E$40:$E$103,"Client media funds received",$D$40:$D$103,"<="&J119)+SUMIFS($F$40:$F$103,$E$40:$E$103,"Client media funds paid",$D$40:$D$103,"<="&J119) -> 0 | O119: =M119-N119 -> €485,462
J120: 2026-11-20 | K120: =M119 -> €485,462 | L120: =SUMIFS($F$40:$F$103,$D$40:$D$103,J120) -> 0 | M120: =K120+L120 -> €485,462 | N120: =SUMIFS($F$40:$F$103,$E$40:$E$103,"Client media funds received",$D$40:$D$103,"<="&J120)+SUMIFS($F$40:$F$103,$E$40:$E$103,"Client media funds paid",$D$40:$D$103,"<="&J120) -> 0 | O120: =M120-N120 -> €485,462
J121: 2026-11-21 | K121: =M120 -> €485,462 | L121: =SUMIFS($F$40:$F$103,$D$40:$D$103,J121) -> 0 | M121: =K121+L121 -> €485,462 | N121: =SUMIFS($F$40:$F$103,$E$40:$E$103,"Client media funds received",$D$40:$D$103,"<="&J121)+SUMIFS($F$40:$F$103,$E$40:$E$103,"Client media funds paid",$D$40:$D$103,"<="&J121) -> 0 | O121: =M121-N121 -> €485,462
J122: 2026-11-22 | K122: =M121 -> €485,462 | L122: =SUMIFS($F$40:$F$103,$D$40:$D$103,J122) -> 0 | M122: =K122+L122 -> €485,462 | N122: =SUMIFS($F$40:$F$103,$E$40:$E$103,"Client media funds received",$D$40:$D$103,"<="&J122)+SUMIFS($F$40:$F$103,$E$40:$E$103,"Client media funds paid",$D$40:$D$103,"<="&J122) -> 0 | O122: =M122-N122 -> €485,462
J123: 2026-11-23 | K123: =M122 -> €485,462 | L123: =SUMIFS($F$40:$F$103,$D$40:$D$103,J123) -> 0 | M123: =K123+L123 -> €485,462 | N123: =SUMIFS($F$40:$F$103,$E$40:$E$103,"Client media funds received",$D$40:$D$103,"<="&J123)+SUMIFS($F$40:$F$103,$E$40:$E$103,"Client media funds paid",$D$40:$D$103,"<="&J123) -> 0 | O123: =M123-N123 -> €485,462
J124: 2026-11-24 | K124: =M123 -> €485,462 | L124: =SUMIFS($F$40:$F$103,$D$40:$D$103,J124) -> 0 | M124: =K124+L124 -> €485,462 | N124: =SUMIFS($F$40:$F$103,$E$40:$E$103,"Client media funds received",$D$40:$D$103,"<="&J124)+SUMIFS($F$40:$F$103,$E$40:$E$103,"Client media funds paid",$D$40:$D$103,"<="&J124) -> 0 | O124: =M124-N124 -> €485,462
J125: 2026-11-25 | K125: =M124 -> €485,462 | L125: =SUMIFS($F$40:$F$103,$D$40:$D$103,J125) -> (€112,500) | M125: =K125+L125 -> €372,962 | N125: =SUMIFS($F$40:$F$103,$E$40:$E$103,"Client media funds received",$D$40:$D$103,"<="&J125)+SUMIFS($F$40:$F$103,$E$40:$E$103,"Client media funds paid",$D$40:$D$103,"<="&J125) -> 0 | O125: =M125-N125 -> €372,962
J126: 2026-11-26 | K126: =M125 -> €372,962 | L126: =SUMIFS($F$40:$F$103,$D$40:$D$103,J126) -> 0 | M126: =K126+L126 -> €372,962 | N126: =SUMIFS($F$40:$F$103,$E$40:$E$103,"Client media funds received",$D$40:$D$103,"<="&J126)+SUMIFS($F$40:$F$103,$E$40:$E$103,"Client media funds paid",$D$40:$D$103,"<="&J126) -> 0 | O126: =M126-N126 -> €372,962
J127: 2026-11-27 | K127: =M126 -> €372,962 | L127: =SUMIFS($F$40:$F$103,$D$40:$D$103,J127) -> 0 | M127: =K127+L127 -> €372,962 | N127: =SUMIFS($F$40:$F$103,$E$40:$E$103,"Client media funds received",$D$40:$D$103,"<="&J127)+SUMIFS($F$40:$F$103,$E$40:$E$103,"Client media funds paid",$D$40:$D$103,"<="&J127) -> 0 | O127: =M127-N127 -> €372,962
J128: 2026-11-28 | K128: =M127 -> €372,962 | L128: =SUMIFS($F$40:$F$103,$D$40:$D$103,J128) -> €113,873 | M128: =K128+L128 -> €486,835 | N128: =SUMIFS($F$40:$F$103,$E$40:$E$103,"Client media funds received",$D$40:$D$103,"<="&J128)+SUMIFS($F$40:$F$103,$E$40:$E$103,"Client media funds paid",$D$40:$D$103,"<="&J128) -> 0 | O128: =M128-N128 -> €486,835
J129: 2026-11-29 | K129: =M128 -> €486,835 | L129: =SUMIFS($F$40:$F$103,$D$40:$D$103,J129) -> 0 | M129: =K129+L129 -> €486,835 | N129: =SUMIFS($F$40:$F$103,$E$40:$E$103,"Client media funds received",$D$40:$D$103,"<="&J129)+SUMIFS($F$40:$F$103,$E$40:$E$103,"Client media funds paid",$D$40:$D$103,"<="&J129) -> 0 | O129: =M129-N129 -> €486,835
J130: 2026-11-30 | K130: =M129 -> €486,835 | L130: =SUMIFS($F$40:$F$103,$D$40:$D$103,J130) -> 0 | M130: =K130+L130 -> €486,835 | N130: =SUMIFS($F$40:$F$103,$E$40:$E$103,"Client media funds received",$D$40:$D$103,"<="&J130)+SUMIFS($F$40:$F$103,$E$40:$E$103,"Client media funds paid",$D$40:$D$103,"<="&J130) -> 0 | O130: =M130-N130 -> €486,835

Sheet Operating model
C2: Operating model
C4: Selected case | E4: ='Assumptions'!$G$4 -> Base | H4: EUR. Entirely fictional.
E6: Actual | F6: Actual | G6: Actual | H6: Actual | I6: Actual | J6: Actual | K6: Actual | L6: Actual | M6: Forecast | N6: Forecast | O6: Forecast | P6: Forecast
E7: 2026-01-01 | F7: 2026-02-01 | G7: 2026-03-01 | H7: 2026-04-01 | I7: 2026-05-01 | J7: 2026-06-01 | K7: 2026-07-01 | L7: 2026-08-01 | M7: 2026-09-01 | N7: 2026-10-01 | O7: 2026-11-01 | P7: 2026-12-01
C8: Managed-service fee revenue | E8: ='Assumptions'!E8*'Assumptions'!E11 -> €84,000 | F8: ='Assumptions'!F8*'Assumptions'!F11 -> €87,000 | G8: ='Assumptions'!G8*'Assumptions'!G11 -> €88,450 | H8: ='Assumptions'!H8*'Assumptions'!H11 -> €91,500 | I8: ='Assumptions'!I8*'Assumptions'!I11 -> €96,100 | J8: ='Assumptions'!J8*'Assumptions'!J11 -> €99,200 | K8: ='Assumptions'!K8*'Assumptions'!K11 -> €103,950 | L8: ='Assumptions'!L8*'Assumptions'!L11 -> €108,800 | M8: ='Assumptions'!M8*'Assumptions'!M11 -> €115,500 | N8: ='Assumptions'!N8*'Assumptions'!N11 -> €120,600 | O8: ='Assumptions'!O8*'Assumptions'!O11 -> €120,600 | P8: ='Assumptions'!P8*'Assumptions'!P11 -> €125,800
C9: Implementation revenue | E9: ='Assumptions'!E20*'Assumptions'!E23 -> €65,000 | F9: ='Assumptions'!F20*'Assumptions'!F23 -> €67,600 | G9: ='Assumptions'!G20*'Assumptions'!G23 -> €74,250 | H9: ='Assumptions'!H20*'Assumptions'!H23 -> €75,600 | I9: ='Assumptions'!I20*'Assumptions'!I23 -> €78,300 | J9: ='Assumptions'!J20*'Assumptions'!J23 -> €75,900 | K9: ='Assumptions'!K20*'Assumptions'!K23 -> €86,800 | L9: ='Assumptions'!L20*'Assumptions'!L23 -> €84,000 | M9: ='Assumptions'!M20*'Assumptions'!M23 -> €94,250 | N9: ='Assumptions'!N20*'Assumptions'!N23 -> €101,500 | O9: ='Assumptions'!O20*'Assumptions'!O23 -> €102,000 | P9: ='Assumptions'!P20*'Assumptions'!P23 -> €90,000
C10: Hardware resale revenue | E10: ='Assumptions'!E26*'Assumptions'!E29 -> €30,720 | F10: ='Assumptions'!F26*'Assumptions'!F29 -> €32,000 | G10: ='Assumptions'!G26*'Assumptions'!G29 -> €35,100 | H10: ='Assumptions'!H26*'Assumptions'!H29 -> €33,800 | I10: ='Assumptions'!I26*'Assumptions'!I29 -> €36,960 | J10: ='Assumptions'!J26*'Assumptions'!J29 -> €39,600 | K10: ='Assumptions'!K26*'Assumptions'!K29 -> €40,500 | L10: ='Assumptions'!L26*'Assumptions'!L29 -> €43,200 | M10: ='Assumptions'!M26*'Assumptions'!M29 -> €46,750 | N10: ='Assumptions'!N26*'Assumptions'!N29 -> €52,250 | O10: ='Assumptions'!O26*'Assumptions'!O29 -> €56,000 | P10: ='Assumptions'!P26*'Assumptions'!P29 -> €44,800
C11: Licence resale revenue | E11: ='Assumptions'!E35*'Assumptions'!E38 -> €17,200 | F11: ='Assumptions'!F35*'Assumptions'!F38 -> €17,600 | G11: ='Assumptions'!G35*'Assumptions'!G38 -> €18,600 | H11: ='Assumptions'!H35*'Assumptions'!H38 -> €19,680 | I11: ='Assumptions'!I35*'Assumptions'!I38 -> €20,500 | J11: ='Assumptions'!J35*'Assumptions'!J38 -> €21,525 | K11: ='Assumptions'!K35*'Assumptions'!K38 -> €23,100 | L11: ='Assumptions'!L35*'Assumptions'!L38 -> €24,360 | M11: ='Assumptions'!M35*'Assumptions'!M38 -> €26,660 | N11: ='Assumptions'!N35*'Assumptions'!N38 -> €27,950 | O11: ='Assumptions'!O35*'Assumptions'!O38 -> €29,480 | P11: ='Assumptions'!P35*'Assumptions'!P38 -> €30,800
C12: Hardware supplier cost | E12: ='Assumptions'!E26*'Assumptions'!E32 -> €24,480 | F12: ='Assumptions'!F26*'Assumptions'!F32 -> €25,500 | G12: ='Assumptions'!G26*'Assumptions'!G32 -> €28,080 | H12: ='Assumptions'!H26*'Assumptions'!H32 -> €27,040 | I12: ='Assumptions'!I26*'Assumptions'!I32 -> €29,400 | J12: ='Assumptions'!J26*'Assumptions'!J32 -> €31,500 | K12: ='Assumptions'!K26*'Assumptions'!K32 -> €32,400 | L12: ='Assumptions'!L26*'Assumptions'!L32 -> €34,560 | M12: ='Assumptions'!M26*'Assumptions'!M32 -> €37,060 | N12: ='Assumptions'!N26*'Assumptions'!N32 -> €41,420 | O12: ='Assumptions'!O26*'Assumptions'!O32 -> €44,000 | P12: ='Assumptions'!P26*'Assumptions'!P32 -> €35,200
C13: Licence supplier cost | E13: ='Assumptions'!E35*'Assumptions'!E41 -> €12,900 | F13: ='Assumptions'!F35*'Assumptions'!F41 -> €13,200 | G13: ='Assumptions'!G35*'Assumptions'!G41 -> €13,950 | H13: ='Assumptions'!H35*'Assumptions'!H41 -> €14,880 | I13: ='Assumptions'!I35*'Assumptions'!I41 -> €15,500 | J13: ='Assumptions'!J35*'Assumptions'!J41 -> €16,275 | K13: ='Assumptions'!K35*'Assumptions'!K41 -> €17,600 | L13: ='Assumptions'!L35*'Assumptions'!L41 -> €18,560 | M13: ='Assumptions'!M35*'Assumptions'!M41 -> €19,840 | N13: ='Assumptions'!N35*'Assumptions'!N41 -> €20,800 | O13: ='Assumptions'!O35*'Assumptions'!O41 -> €22,110 | P13: ='Assumptions'!P35*'Assumptions'!P41 -> €23,100
C14: Support and implementation hours | E14: ='Assumptions'!E8*'Assumptions'!E14+'Assumptions'!E20 -> 1,480.0 | F14: ='Assumptions'!F8*'Assumptions'!F14+'Assumptions'!F20 -> 1,535.0 | G14: ='Assumptions'!G8*'Assumptions'!G14+'Assumptions'!G20 -> 1,594.0 | H14: ='Assumptions'!H8*'Assumptions'!H14+'Assumptions'!H20 -> 1,640.0 | I14: ='Assumptions'!I8*'Assumptions'!I14+'Assumptions'!I20 -> 1,727.0 | J14: ='Assumptions'!J8*'Assumptions'!J14+'Assumptions'!J20 -> 1,734.0 | K14: ='Assumptions'!K8*'Assumptions'!K14+'Assumptions'!K20 -> 1,874.0 | L14: ='Assumptions'!L8*'Assumptions'!L14+'Assumptions'!L20 -> 1,892.0 | M14: ='Assumptions'!M8*'Assumptions'!M14+'Assumptions'!M20 -> 1,980.0 | N14: ='Assumptions'!N8*'Assumptions'!N14+'Assumptions'!N20 -> 2,068.0 | O14: ='Assumptions'!O8*'Assumptions'!O14+'Assumptions'!O20 -> 2,048.0 | P14: ='Assumptions'!P8*'Assumptions'!P14+'Assumptions'!P20 -> 1,969.0
C15: Client media administered | E15: =0 -> 0 | F15: =0 -> 0 | G15: =0 -> 0 | H15: =0 -> 0 | I15: =0 -> 0 | J15: =0 -> 0 | K15: =0 -> 0 | L15: =0 -> 0 | M15: =0 -> 0 | N15: =0 -> 0 | O15: =0 -> 0 | P15: =0 -> 0
C16: Loaded delivery payroll | E16: ='Assumptions'!E44*'Assumptions'!E47 -> €62,400 | F16: ='Assumptions'!F44*'Assumptions'!F47 -> €62,400 | G16: ='Assumptions'!G44*'Assumptions'!G47 -> €63,000 | H16: ='Assumptions'!H44*'Assumptions'!H47 -> €68,900 | I16: ='Assumptions'!I44*'Assumptions'!I47 -> €68,900 | J16: ='Assumptions'!J44*'Assumptions'!J47 -> €70,200 | K16: ='Assumptions'!K44*'Assumptions'!K47 -> €75,600 | L16: ='Assumptions'!L44*'Assumptions'!L47 -> €77,000 | M16: ='Assumptions'!M44*'Assumptions'!M47 -> €77,000 | N16: ='Assumptions'!N44*'Assumptions'!N47 -> €82,500 | O16: ='Assumptions'!O44*'Assumptions'!O47 -> €84,000 | P16: ='Assumptions'!P44*'Assumptions'!P47 -> €84,000
C17: Subcontractor cost | E17: ='Assumptions'!E50*'Assumptions'!E53 -> €8,100 | F17: ='Assumptions'!F50*'Assumptions'!F53 -> €8,550 | G17: ='Assumptions'!G50*'Assumptions'!G53 -> €9,000 | H17: ='Assumptions'!H50*'Assumptions'!H53 -> €9,660 | I17: ='Assumptions'!I50*'Assumptions'!I53 -> €9,660 | J17: ='Assumptions'!J50*'Assumptions'!J53 -> €10,925 | K17: ='Assumptions'!K50*'Assumptions'!K53 -> €11,875 | L17: ='Assumptions'!L50*'Assumptions'!L53 -> €11,400 | M17: ='Assumptions'!M50*'Assumptions'!M53 -> €12,740 | N17: ='Assumptions'!N50*'Assumptions'!N53 -> €13,230 | O17: ='Assumptions'!O50*'Assumptions'!O53 -> €13,000 | P17: ='Assumptions'!P50*'Assumptions'!P53 -> €11,500
C18: Direct software | E18: ='Assumptions'!E56 -> €10,000 | F18: ='Assumptions'!F56 -> €10,500 | G18: ='Assumptions'!G56 -> €10,500 | H18: ='Assumptions'!H56 -> €11,000 | I18: ='Assumptions'!I56 -> €11,500 | J18: ='Assumptions'!J56 -> €12,000 | K18: ='Assumptions'!K56 -> €12,500 | L18: ='Assumptions'!L56 -> €12,500 | M18: ='Assumptions'!M56 -> €13,000 | N18: ='Assumptions'!N56 -> €13,500 | O18: ='Assumptions'!O56 -> €13,500 | P18: ='Assumptions'!P56 -> €14,000
C19: Total recognised revenue | E19: =SUM(E8:E11) -> €196,920 | F19: =SUM(F8:F11) -> €204,200 | G19: =SUM(G8:G11) -> €216,400 | H19: =SUM(H8:H11) -> €220,580 | I19: =SUM(I8:I11) -> €231,860 | J19: =SUM(J8:J11) -> €236,225 | K19: =SUM(K8:K11) -> €254,350 | L19: =SUM(L8:L11) -> €260,360 | M19: =SUM(M8:M11) -> €283,160 | N19: =SUM(N8:N11) -> €302,300 | O19: =SUM(O8:O11) -> €308,080 | P19: =SUM(P8:P11) -> €291,400
C20: Total direct costs | E20: =SUM(E12:E13,E16:E18) -> €117,880 | F20: =SUM(F12:F13,F16:F18) -> €120,150 | G20: =SUM(G12:G13,G16:G18) -> €124,530 | H20: =SUM(H12:H13,H16:H18) -> €131,480 | I20: =SUM(I12:I13,I16:I18) -> €134,960 | J20: =SUM(J12:J13,J16:J18) -> €140,900 | K20: =SUM(K12:K13,K16:K18) -> €149,975 | L20: =SUM(L12:L13,L16:L18) -> €154,020 | M20: =SUM(M12:M13,M16:M18) -> €159,640 | N20: =SUM(N12:N13,N16:N18) -> €171,450 | O20: =SUM(O12:O13,O16:O18) -> €176,610 | P20: =SUM(P12:P13,P16:P18) -> €167,800
C21: Gross profit | E21: =E19-E20 -> €79,040 | F21: =F19-F20 -> €84,050 | G21: =G19-G20 -> €91,870 | H21: =H19-H20 -> €89,100 | I21: =I19-I20 -> €96,900 | J21: =J19-J20 -> €95,325 | K21: =K19-K20 -> €104,375 | L21: =L19-L20 -> €106,340 | M21: =M19-M20 -> €123,520 | N21: =N19-N20 -> €130,850 | O21: =O19-O20 -> €131,470 | P21: =P19-P20 -> €123,600
C22: Gross margin | E22: =E21/E19 -> 40.1% | F22: =F21/F19 -> 41.2% | G22: =G21/G19 -> 42.5% | H22: =H21/H19 -> 40.4% | I22: =I21/I19 -> 41.8% | J22: =J21/J19 -> 40.4% | K22: =K21/K19 -> 41.0% | L22: =L21/L19 -> 40.8% | M22: =M21/M19 -> 43.6% | N22: =N21/N19 -> 43.3% | O22: =O21/O19 -> 42.7% | P22: =P21/P19 -> 42.4%
C23: Operating expenses | E23: ='Assumptions'!E59+'Assumptions'!E62+'Assumptions'!E65+'Assumptions'!E68 -> €41,000 | F23: ='Assumptions'!F59+'Assumptions'!F62+'Assumptions'!F65+'Assumptions'!F68 -> €41,500 | G23: ='Assumptions'!G59+'Assumptions'!G62+'Assumptions'!G65+'Assumptions'!G68 -> €43,000 | H23: ='Assumptions'!H59+'Assumptions'!H62+'Assumptions'!H65+'Assumptions'!H68 -> €43,500 | I23: ='Assumptions'!I59+'Assumptions'!I62+'Assumptions'!I65+'Assumptions'!I68 -> €45,300 | J23: ='Assumptions'!J59+'Assumptions'!J62+'Assumptions'!J65+'Assumptions'!J68 -> €45,500 | K23: ='Assumptions'!K59+'Assumptions'!K62+'Assumptions'!K65+'Assumptions'!K68 -> €47,200 | L23: ='Assumptions'!L59+'Assumptions'!L62+'Assumptions'!L65+'Assumptions'!L68 -> €48,000 | M23: ='Assumptions'!M59+'Assumptions'!M62+'Assumptions'!M65+'Assumptions'!M68 -> €47,700 | N23: ='Assumptions'!N59+'Assumptions'!N62+'Assumptions'!N65+'Assumptions'!N68 -> €49,200 | O23: ='Assumptions'!O59+'Assumptions'!O62+'Assumptions'!O65+'Assumptions'!O68 -> €50,000 | P23: ='Assumptions'!P59+'Assumptions'!P62+'Assumptions'!P65+'Assumptions'!P68 -> €50,000
C24: EBITDA | E24: =E21-E23 -> €38,040 | F24: =F21-F23 -> €42,550 | G24: =G21-G23 -> €48,870 | H24: =H21-H23 -> €45,600 | I24: =I21-I23 -> €51,600 | J24: =J21-J23 -> €49,825 | K24: =K21-K23 -> €57,175 | L24: =L21-L23 -> €58,340 | M24: =M21-M23 -> €75,820 | N24: =N21-N23 -> €81,650 | O24: =O21-O23 -> €81,470 | P24: =P21-P23 -> €73,600
C25: Internal delivery hours | E25: =E14-'Assumptions'!E50 -> 1,390.0 | F25: =F14-'Assumptions'!F50 -> 1,440.0 | G25: =G14-'Assumptions'!G50 -> 1,494.0 | H25: =H14-'Assumptions'!H50 -> 1,535.0 | I25: =I14-'Assumptions'!I50 -> 1,622.0 | J25: =J14-'Assumptions'!J50 -> 1,619.0 | K25: =K14-'Assumptions'!K50 -> 1,749.0 | L25: =L14-'Assumptions'!L50 -> 1,772.0 | M25: =M14-'Assumptions'!M50 -> 1,850.0 | N25: =N14-'Assumptions'!N50 -> 1,933.0 | O25: =O14-'Assumptions'!O50 -> 1,918.0 | P25: =P14-'Assumptions'!P50 -> 1,854.0
C26: Available internal hours | E26: ='Assumptions'!E44*160 -> 1,920.0 | F26: ='Assumptions'!F44*160 -> 1,920.0 | G26: ='Assumptions'!G44*160 -> 1,920.0 | H26: ='Assumptions'!H44*160 -> 2,080.0 | I26: ='Assumptions'!I44*160 -> 2,080.0 | J26: ='Assumptions'!J44*160 -> 2,080.0 | K26: ='Assumptions'!K44*160 -> 2,240.0 | L26: ='Assumptions'!L44*160 -> 2,240.0 | M26: ='Assumptions'!M44*160 -> 2,240.0 | N26: ='Assumptions'!N44*160 -> 2,400.0 | O26: ='Assumptions'!O44*160 -> 2,400.0 | P26: ='Assumptions'!P44*160 -> 2,400.0
C27: Internal capacity utilisation | E27: =E25/E26 -> 72.4% | F27: =F25/F26 -> 75.0% | G27: =G25/G26 -> 77.8% | H27: =H25/H26 -> 73.8% | I27: =I25/I26 -> 78.0% | J27: =J25/J26 -> 77.8% | K27: =K25/K26 -> 78.1% | L27: =L25/L26 -> 79.1% | M27: =M25/M26 -> 82.6% | N27: =N25/N26 -> 80.5% | O27: =O25/O26 -> 79.9% | P27: =P25/P26 -> 77.3%
C28: Unallocated internal hours | E28: =E26-E25 -> 530.0 | F28: =F26-F25 -> 480.0 | G28: =G26-G25 -> 426.0 | H28: =H26-H25 -> 545.0 | I28: =I26-I25 -> 458.0 | J28: =J26-J25 -> 461.0 | K28: =K26-K25 -> 491.0 | L28: =L26-L25 -> 468.0 | M28: =M26-M25 -> 390.0 | N28: =N26-N25 -> 467.0 | O28: =O26-O25 -> 482.0 | P28: =P26-P25 -> 546.0
C29: Billings before contract advances | E29: ='Operating model'!E19+'Working capital'!E8-'Working capital'!E9 -> €208,420 | F29: ='Operating model'!F19+'Working capital'!F8-'Working capital'!F9 -> €203,940 | G29: ='Operating model'!G19+'Working capital'!G8-'Working capital'!G9 -> €214,250 | H29: ='Operating model'!H19+'Working capital'!H8-'Working capital'!H9 -> €220,418 | I29: ='Operating model'!I19+'Working capital'!I8-'Working capital'!I9 -> €230,753 | J29: ='Operating model'!J19+'Working capital'!J8-'Working capital'!J9 -> €235,778 | K29: ='Operating model'!K19+'Working capital'!K8-'Working capital'!K9 -> €251,956 | L29: ='Operating model'!L19+'Working capital'!L8-'Working capital'!L9 -> €258,260 | M29: ='Operating model'!M19+'Working capital'!M8-'Working capital'!M9 -> €286,970 | N29: ='Operating model'!N19+'Working capital'!N8-'Working capital'!N9 -> €301,430 | O29: ='Operating model'!O19+'Working capital'!O8-'Working capital'!O9 -> €310,060 | P29: ='Operating model'!P19+'Working capital'!P8-'Working capital'!P9 -> €292,600
C30: Resale contribution | E30: =E10+E11-E12-E13 -> €10,540 | F30: =F10+F11-F12-F13 -> €10,900 | G30: =G10+G11-G12-G13 -> €11,670 | H30: =H10+H11-H12-H13 -> €11,560 | I30: =I10+I11-I12-I13 -> €12,560 | J30: =J10+J11-J12-J13 -> €13,350 | K30: =K10+K11-K12-K13 -> €13,600 | L30: =L10+L11-L12-L13 -> €14,440 | M30: =M10+M11-M12-M13 -> €16,510 | N30: =N10+N11-N12-N13 -> €17,980 | O30: =O10+O11-O12-O13 -> €19,370 | P30: =P10+P11-P12-P13 -> €17,300
C31: Recurring service fees / revenue | E31: =E8/E19 -> 42.7% | F31: =F8/F19 -> 42.6% | G31: =G8/G19 -> 40.9% | H31: =H8/H19 -> 41.5% | I31: =I8/I19 -> 41.4% | J31: =J8/J19 -> 42.0% | K31: =K8/K19 -> 40.9% | L31: =L8/L19 -> 41.8% | M31: =M8/M19 -> 40.8% | N31: =N8/N19 -> 39.9% | O31: =O8/O19 -> 39.1% | P31: =P8/P19 -> 43.2%
C32: Support tickets | E32: ='Assumptions'!E8*'Assumptions'!E17 -> 812.0 | F32: ='Assumptions'!F8*'Assumptions'!F17 -> 870.0 | G32: ='Assumptions'!G8*'Assumptions'!G17 -> 870.0 | H32: ='Assumptions'!H8*'Assumptions'!H17 -> 930.0 | I32: ='Assumptions'!I8*'Assumptions'!I17 -> 961.0 | J32: ='Assumptions'!J8*'Assumptions'!J17 -> 1,024.0 | K32: ='Assumptions'!K8*'Assumptions'!K17 -> 1,056.0 | L32: ='Assumptions'!L8*'Assumptions'!L17 -> 1,122.0 | M32: ='Assumptions'!M8*'Assumptions'!M17 -> 1,120.0 | N32: ='Assumptions'!N8*'Assumptions'!N17 -> 1,152.0 | O32: ='Assumptions'!O8*'Assumptions'!O17 -> 1,188.0 | P32: ='Assumptions'!P8*'Assumptions'!P17 -> 1,221.0
C43: Hardware is drop-shipped. Licence seats bill monthly.
C45: Available hours: 160 per paid FTE per month, excluding overtime.
C47: Subcontracted hours reduce internal delivery requirements.
C50: August contract and resale economics
C52: Service stream | D52: Fee share | E52: Revenue | F52: Internal hours | G52: Payroll allocation | H52: Subcontractor cost | I52: Other direct cost | J52: Contribution
C53: Managed services | D53: 100.0% | E53: =L8 -> €108,800 | F53: =L25*E53/SUM(L8:L9) -> 1,000.0 | G53: =L16*E53/SUM(L8:L9) -> €43,452 | H53: =L17*E53/SUM(L8:L9) -> €6,433 | I53: =L18*E53/SUM(L8:L9) -> €7,054 | J53: =E53-SUM(G53:I53) -> €51,861
C54: Implementations | D54: 100.0% | E54: =L9 -> €84,000 | F54: =L25*E54/SUM(L8:L9) -> 772.0 | G54: =L16*E54/SUM(L8:L9) -> €33,548 | H54: =L17*E54/SUM(L8:L9) -> €4,967 | I54: =L18*E54/SUM(L8:L9) -> €5,446 | J54: =E54-SUM(G54:I54) -> €40,039
C55: Hardware resale | D55: 100.0% | E55: =L10 -> €43,200 | F55: =0 -> 0 | G55: =0 -> 0 | H55: =0 -> 0 | I55: =L12 -> €34,560 | J55: =E55-SUM(G55:I55) -> €8,640
C56: Licence resale | D56: 100.0% | E56: =L11 -> €24,360 | F56: =0 -> 0 | G56: =0 -> 0 | H56: =0 -> 0 | I56: =L13 -> €18,560 | J56: =E56-SUM(G56:I56) -> €5,800
C60: Costs are fully allocated by service fee share, including bench cost.

Sheet Working capital
C2: Working capital
C4: Selected case | E4: ='Assumptions'!$G$4 -> Base | H4: EUR. Entirely fictional.
E6: Actual | F6: Actual | G6: Actual | H6: Actual | I6: Actual | J6: Actual | K6: Actual | L6: Actual | M6: Forecast | N6: Forecast | O6: Forecast | P6: Forecast
E7: 2026-01-01 | F7: 2026-02-01 | G7: 2026-03-01 | H7: 2026-04-01 | I7: 2026-05-01 | J7: 2026-06-01 | K7: 2026-07-01 | L7: 2026-08-01 | M7: 2026-09-01 | N7: 2026-10-01 | O7: 2026-11-01 | P7: 2026-12-01
C8: Opening unbilled contract assets | E8: ='Source inputs'!$E$52 -> €18,000 | F8: =E9 -> €6,500 | G8: =F9 -> €6,760 | H8: =G9 -> €8,910 | I8: =H9 -> €9,072 | J8: =I9 -> €10,179 | K8: =J9 -> €10,626 | L8: =K9 -> €13,020 | M8: =L9 -> €15,120 | N8: =M9 -> €11,310 | O8: =N9 -> €12,180 | P8: =O9 -> €10,200
C9: Closing unbilled contract assets | E9: ='P&L'!E9*'Assumptions'!E77 -> €6,500 | F9: ='P&L'!F9*'Assumptions'!F77 -> €6,760 | G9: ='P&L'!G9*'Assumptions'!G77 -> €8,910 | H9: ='P&L'!H9*'Assumptions'!H77 -> €9,072 | I9: ='P&L'!I9*'Assumptions'!I77 -> €10,179 | J9: ='P&L'!J9*'Assumptions'!J77 -> €10,626 | K9: ='P&L'!K9*'Assumptions'!K77 -> €13,020 | L9: ='P&L'!L9*'Assumptions'!L77 -> €15,120 | M9: ='P&L'!M9*'Assumptions'!M77 -> €11,310 | N9: ='P&L'!N9*'Assumptions'!N77 -> €12,180 | O9: ='P&L'!O9*'Assumptions'!O77 -> €10,200 | P9: ='P&L'!P9*'Assumptions'!P77 -> €9,000
C10: Opening advance contract billings | E10: ='Source inputs'!$E$53 -> €24,000 | F10: =E11 -> €25,200 | G10: =F11 -> €26,100 | H10: =G11 -> €26,535 | I10: =H11 -> €27,450 | J10: =I11 -> €28,830 | K10: =J11 -> €29,760 | L10: =K11 -> €31,185 | M10: =L11 -> €32,640 | N10: =M11 -> €34,650 | O10: =N11 -> €36,180 | P10: =O11 -> €36,180
C11: Closing advance contract billings | E11: ='P&L'!E8*'Assumptions'!E80 -> €25,200 | F11: ='P&L'!F8*'Assumptions'!F80 -> €26,100 | G11: ='P&L'!G8*'Assumptions'!G80 -> €26,535 | H11: ='P&L'!H8*'Assumptions'!H80 -> €27,450 | I11: ='P&L'!I8*'Assumptions'!I80 -> €28,830 | J11: ='P&L'!J8*'Assumptions'!J80 -> €29,760 | K11: ='P&L'!K8*'Assumptions'!K80 -> €31,185 | L11: ='P&L'!L8*'Assumptions'!L80 -> €32,640 | M11: ='P&L'!M8*'Assumptions'!M80 -> €34,650 | N11: ='P&L'!N8*'Assumptions'!N80 -> €36,180 | O11: ='P&L'!O8*'Assumptions'!O80 -> €36,180 | P11: ='P&L'!P8*'Assumptions'!P80 -> €37,740
C12: Invoices including contract advances | E12: ='P&L'!E12+E8-E9+E11-E10 -> €209,620 | F12: ='P&L'!F12+F8-F9+F11-F10 -> €204,840 | G12: ='P&L'!G12+G8-G9+G11-G10 -> €214,685 | H12: ='P&L'!H12+H8-H9+H11-H10 -> €221,333 | I12: ='P&L'!I12+I8-I9+I11-I10 -> €232,133 | J12: ='P&L'!J12+J8-J9+J11-J10 -> €236,708 | K12: ='P&L'!K12+K8-K9+K11-K10 -> €253,381 | L12: ='P&L'!L12+L8-L9+L11-L10 -> €259,715 | M12: ='P&L'!M12+M8-M9+M11-M10 -> €288,980 | N12: ='P&L'!N12+N8-N9+N11-N10 -> €302,960 | O12: ='P&L'!O12+O8-O9+O11-O10 -> €310,060 | P12: ='P&L'!P12+P8-P9+P11-P10 -> €294,160
C14: Opening accounts receivable | E14: ='Source inputs'!$E$51 -> €175,000 | F14: =E19 -> €185,000 | G14: =F19 -> €198,000 | H14: =G19 -> €213,000 | I14: =H19 -> €231,000 | J14: =I19 -> €250,000 | K14: =J19 -> €276,000 | L14: =K19 -> €297,000 | M14: =L19 -> €330,000 | N14: =M19 -> €288,980 | O14: =N19 -> €341,306 | P14: =O19 -> €349,157
C15: Scheduled opening invoice receipts | E15: =0 -> 0 | F15: =0 -> 0 | G15: =0 -> 0 | H15: =0 -> 0 | I15: =0 -> 0 | J15: =0 -> 0 | K15: =0 -> 0 | L15: =0 -> 0 | M15: =SUMIFS('AR and AP'!$F$9:$F$16,'AR and AP'!$I$9:$I$16,">="&M$7,'AR and AP'!$I$9:$I$16,"<"&EDATE(M$7,1)) -> €330,000 | N15: =SUMIFS('AR and AP'!$F$9:$F$16,'AR and AP'!$I$9:$I$16,">="&N$7,'AR and AP'!$I$9:$I$16,"<"&EDATE(N$7,1)) -> 0 | O15: =SUMIFS('AR and AP'!$F$9:$F$16,'AR and AP'!$I$9:$I$16,">="&O$7,'AR and AP'!$I$9:$I$16,"<"&EDATE(O$7,1)) -> 0 | P15: =SUMIFS('AR and AP'!$F$9:$F$16,'AR and AP'!$I$9:$I$16,">="&P$7,'AR and AP'!$I$9:$I$16,"<"&EDATE(P$7,1)) -> 0
C16: Unpaid opening receivable floor | E16: =0 -> 0 | F16: =0 -> 0 | G16: =0 -> 0 | H16: =0 -> 0 | I16: =0 -> 0 | J16: =0 -> 0 | K16: =0 -> 0 | L16: =0 -> 0 | M16: =SUMIFS('AR and AP'!$F$9:$F$16,'AR and AP'!$I$9:$I$16,">="&EDATE(M$7,1)) -> 0 | N16: =SUMIFS('AR and AP'!$F$9:$F$16,'AR and AP'!$I$9:$I$16,">="&EDATE(N$7,1)) -> 0 | O16: =SUMIFS('AR and AP'!$F$9:$F$16,'AR and AP'!$I$9:$I$16,">="&EDATE(O$7,1)) -> 0 | P16: =SUMIFS('AR and AP'!$F$9:$F$16,'AR and AP'!$I$9:$I$16,">="&EDATE(P$7,1)) -> 0
C17: Target receivables at selected days | E17: ='P&L'!E12*'Assumptions'!E71/31 -> €235,034 | F17: ='P&L'!F12*'Assumptions'!F71/28 -> €269,836 | G17: ='P&L'!G12*'Assumptions'!G71/31 -> €258,284 | H17: ='P&L'!H12*'Assumptions'!H71/30 -> €272,049 | I17: ='P&L'!I12*'Assumptions'!I71/31 -> €276,736 | J17: ='P&L'!J12*'Assumptions'!J71/30 -> €291,344 | K17: ='P&L'!K12*'Assumptions'!K71/31 -> €303,579 | L17: ='P&L'!L12*'Assumptions'!L71/31 -> €310,752 | M17: ='P&L'!M12*'Assumptions'!M71/30 -> €339,792 | N17: ='P&L'!N12*'Assumptions'!N71/31 -> €341,306 | O17: ='P&L'!O12*'Assumptions'!O71/30 -> €349,157 | P17: ='P&L'!P12*'Assumptions'!P71/31 -> €319,600
C18: Receivables after known collections | E18: =E14+E12-E15 -> €384,620 | F18: =F14+F12-F15 -> €389,840 | G18: =G14+G12-G15 -> €412,685 | H18: =H14+H12-H15 -> €434,333 | I18: =I14+I12-I15 -> €463,133 | J18: =J14+J12-J15 -> €486,708 | K18: =K14+K12-K15 -> €529,381 | L18: =L14+L12-L15 -> €556,715 | M18: =M14+M12-M15 -> €288,980 | N18: =N14+N12-N15 -> €591,940 | O18: =O14+O12-O15 -> €651,366 | P18: =P14+P12-P15 -> €643,317
C19: Closing accounts receivable | E19: ='Source inputs'!E68 -> €185,000 | F19: ='Source inputs'!F68 -> €198,000 | G19: ='Source inputs'!G68 -> €213,000 | H19: ='Source inputs'!H68 -> €231,000 | I19: ='Source inputs'!I68 -> €250,000 | J19: ='Source inputs'!J68 -> €276,000 | K19: ='Source inputs'!K68 -> €297,000 | L19: ='Source inputs'!L68 -> €330,000 | M19: =MAX(M16,MIN(M17,M18)) -> €288,980 | N19: =MAX(N16,MIN(N17,N18)) -> €341,306 | O19: =MAX(O16,MIN(O17,O18)) -> €349,157 | P19: =MAX(P16,MIN(P17,P18)) -> €319,600
C20: Customer cash receipts | E20: =E14+E12-E19 -> €199,620 | F20: =F14+F12-F19 -> €191,840 | G20: =G14+G12-G19 -> €199,685 | H20: =H14+H12-H19 -> €203,333 | I20: =I14+I12-I19 -> €213,133 | J20: =J14+J12-J19 -> €210,708 | K20: =K14+K12-K19 -> €232,381 | L20: =L14+L12-L19 -> €226,715 | M20: =M14+M12-M19 -> €330,000 | N20: =N14+N12-N19 -> €250,634 | O20: =O14+O12-O19 -> €302,209 | P20: =P14+P12-P19 -> €323,717
C22: Opening accounts payable | E22: ='Source inputs'!$E$54 -> €52,000 | F22: =E26 -> €56,000 | G22: =F26 -> €58,000 | H22: =G26 -> €61,000 | I22: =H26 -> €62,000 | J22: =I26 -> €65,000 | K22: =J26 -> €67,000 | L22: =K26 -> €72,000 | M22: =L26 -> €79,000 | N22: =M26 -> €95,301 | O22: =N26 -> €98,512 | P22: =O26 -> €104,606
C23: New supplier costs | E23: ='P&L'!E14+'P&L'!E15+'P&L'!E16+'P&L'!E17 -> €55,480 | F23: ='P&L'!F14+'P&L'!F15+'P&L'!F16+'P&L'!F17 -> €57,750 | G23: ='P&L'!G14+'P&L'!G15+'P&L'!G16+'P&L'!G17 -> €61,530 | H23: ='P&L'!H14+'P&L'!H15+'P&L'!H16+'P&L'!H17 -> €62,580 | I23: ='P&L'!I14+'P&L'!I15+'P&L'!I16+'P&L'!I17 -> €66,060 | J23: ='P&L'!J14+'P&L'!J15+'P&L'!J16+'P&L'!J17 -> €70,700 | K23: ='P&L'!K14+'P&L'!K15+'P&L'!K16+'P&L'!K17 -> €74,375 | L23: ='P&L'!L14+'P&L'!L15+'P&L'!L16+'P&L'!L17 -> €77,020 | M23: ='P&L'!M14+'P&L'!M15+'P&L'!M16+'P&L'!M17 -> €82,640 | N23: ='P&L'!N14+'P&L'!N15+'P&L'!N16+'P&L'!N17 -> €88,950 | O23: ='P&L'!O14+'P&L'!O15+'P&L'!O16+'P&L'!O17 -> €92,610 | P23: ='P&L'!P14+'P&L'!P15+'P&L'!P16+'P&L'!P17 -> €83,800
C24: Opening payables not yet scheduled | E24: =0 -> 0 | F24: =0 -> 0 | G24: =0 -> 0 | H24: =0 -> 0 | I24: =0 -> 0 | J24: =0 -> 0 | K24: =0 -> 0 | L24: =0 -> 0 | M24: =SUM('AR and AP'!$H$24:$H$31)-SUMIFS('AR and AP'!$M$24:$M$31,'AR and AP'!$N$24:$N$31,"<"&EDATE(M$7,1)) -> €18,170 | N24: =SUM('AR and AP'!$H$24:$H$31)-SUMIFS('AR and AP'!$M$24:$M$31,'AR and AP'!$N$24:$N$31,"<"&EDATE(N$7,1)) -> €18,170 | O24: =SUM('AR and AP'!$H$24:$H$31)-SUMIFS('AR and AP'!$M$24:$M$31,'AR and AP'!$N$24:$N$31,"<"&EDATE(O$7,1)) -> €18,170 | P24: =SUM('AR and AP'!$H$24:$H$31)-SUMIFS('AR and AP'!$M$24:$M$31,'AR and AP'!$N$24:$N$31,"<"&EDATE(P$7,1)) -> €18,170
C25: New supplier closing payable target | E25: =E23*'Assumptions'!E74/31 -> €50,111 | F25: =F23*'Assumptions'!F74/28 -> €57,750 | G25: =G23*'Assumptions'!G74/31 -> €55,575 | H25: =H23*'Assumptions'!H74/30 -> €58,408 | I25: =I23*'Assumptions'!I74/31 -> €59,667 | J25: =J23*'Assumptions'!J74/30 -> €65,987 | K25: =K23*'Assumptions'!K74/31 -> €67,177 | L25: =L23*'Assumptions'!L74/31 -> €69,566 | M25: =M23*'Assumptions'!M74/30 -> €77,131 | N25: =N23*'Assumptions'!N74/31 -> €80,342 | O25: =O23*'Assumptions'!O74/30 -> €86,436 | P25: =P23*'Assumptions'!P74/31 -> €75,690
C26: Closing accounts payable | E26: ='Source inputs'!E69 -> €56,000 | F26: ='Source inputs'!F69 -> €58,000 | G26: ='Source inputs'!G69 -> €61,000 | H26: ='Source inputs'!H69 -> €62,000 | I26: ='Source inputs'!I69 -> €65,000 | J26: ='Source inputs'!J69 -> €67,000 | K26: ='Source inputs'!K69 -> €72,000 | L26: ='Source inputs'!L69 -> €79,000 | M26: =M24+M25 -> €95,301 | N26: =N24+N25 -> €98,512 | O26: =O24+O25 -> €104,606 | P26: =P24+P25 -> €93,860
C27: Supplier cash payments | E27: =E22+E23-E26 -> €51,480 | F27: =F22+F23-F26 -> €55,750 | G27: =G22+G23-G26 -> €58,530 | H27: =H22+H23-H26 -> €61,580 | I27: =I22+I23-I26 -> €63,060 | J27: =J22+J23-J26 -> €68,700 | K27: =K22+K23-K26 -> €69,375 | L27: =L22+L23-L26 -> €70,020 | M27: =M22+M23-M26 -> €66,339 | N27: =N22+N23-N26 -> €85,739 | O27: =O22+O23-O26 -> €86,516 | P27: =P22+P23-P26 -> €94,546
C29: Implied closing AR days | E29: =E19/'P&L'!E12*31 -> 29.1 | F29: =F19/'P&L'!F12*28 -> 27.1 | G29: =G19/'P&L'!G12*31 -> 30.5 | H29: =H19/'P&L'!H12*30 -> 31.4 | I29: =I19/'P&L'!I12*31 -> 33.4 | J29: =J19/'P&L'!J12*30 -> 35.1 | K29: =K19/'P&L'!K12*31 -> 36.2 | L29: =L19/'P&L'!L12*31 -> 39.3 | M29: =M19/'P&L'!M12*30 -> 30.6 | N29: =N19/'P&L'!N12*31 -> 35.0 | O29: =O19/'P&L'!O12*30 -> 34.0 | P29: =P19/'P&L'!P12*31 -> 34.0
C33: Target AR days is constrained by billings and dated opening receipts.

Sheet Assets debt tax
C2: Assets debt tax
C4: Selected case | E4: ='Assumptions'!$G$4 -> Base | H4: EUR. Entirely fictional.
E6: Actual | F6: Actual | G6: Actual | H6: Actual | I6: Actual | J6: Actual | K6: Actual | L6: Actual | M6: Forecast | N6: Forecast | O6: Forecast | P6: Forecast
E7: 2026-01-01 | F7: 2026-02-01 | G7: 2026-03-01 | H7: 2026-04-01 | I7: 2026-05-01 | J7: 2026-06-01 | K7: 2026-07-01 | L7: 2026-08-01 | M7: 2026-09-01 | N7: 2026-10-01 | O7: 2026-11-01 | P7: 2026-12-01
C8: Opening gross fixed assets | E8: ='Source inputs'!$E$56 -> €115,000 | F8: =E10 -> €127,000 | G8: =F10 -> €127,000 | H8: =G10 -> €145,000 | I8: =H10 -> €145,000 | J8: =I10 -> €155,000 | K8: =J10 -> €155,000 | L8: =K10 -> €171,000 | M8: =L10 -> €171,000 | N8: =M10 -> €216,000 | O8: =N10 -> €226,000 | P8: =O10 -> €238,000
C9: New asset additions | E9: ='Assumptions'!E83 -> €12,000 | F9: ='Assumptions'!F83 -> 0 | G9: ='Assumptions'!G83 -> €18,000 | H9: ='Assumptions'!H83 -> 0 | I9: ='Assumptions'!I83 -> €10,000 | J9: ='Assumptions'!J83 -> 0 | K9: ='Assumptions'!K83 -> €16,000 | L9: ='Assumptions'!L83 -> 0 | M9: ='Assumptions'!M83 -> €45,000 | N9: ='Assumptions'!N83 -> €10,000 | O9: ='Assumptions'!O83 -> €12,000 | P9: ='Assumptions'!P83 -> €10,000
C10: Closing gross fixed assets | E10: =SUM(E8:E9) -> €127,000 | F10: =SUM(F8:F9) -> €127,000 | G10: =SUM(G8:G9) -> €145,000 | H10: =SUM(H8:H9) -> €145,000 | I10: =SUM(I8:I9) -> €155,000 | J10: =SUM(J8:J9) -> €155,000 | K10: =SUM(K8:K9) -> €171,000 | L10: =SUM(L8:L9) -> €171,000 | M10: =SUM(M8:M9) -> €216,000 | N10: =SUM(N8:N9) -> €226,000 | O10: =SUM(O8:O9) -> €238,000 | P10: =SUM(P8:P9) -> €248,000
C11: Opening accumulated depreciation | E11: ='Source inputs'!$E$57 -> €36,000 | F11: =E13 -> €38,133 | G11: =F13 -> €40,267 | H11: =G13 -> €42,900 | I11: =H13 -> €45,533 | J11: =I13 -> €48,444 | K11: =J13 -> €51,356 | L11: =K13 -> €54,711 | M11: =L13 -> €58,067 | N11: =M13 -> €62,672 | O11: =N13 -> €67,556 | P11: =O13 -> €72,772
C12: Depreciation expense | E12: =1800+(E10-'Source inputs'!$E$56)/36 -> €2,133 | F12: =1800+(F10-'Source inputs'!$E$56)/36 -> €2,133 | G12: =1800+(G10-'Source inputs'!$E$56)/36 -> €2,633 | H12: =1800+(H10-'Source inputs'!$E$56)/36 -> €2,633 | I12: =1800+(I10-'Source inputs'!$E$56)/36 -> €2,911 | J12: =1800+(J10-'Source inputs'!$E$56)/36 -> €2,911 | K12: =1800+(K10-'Source inputs'!$E$56)/36 -> €3,356 | L12: =1800+(L10-'Source inputs'!$E$56)/36 -> €3,356 | M12: =1800+(M10-'Source inputs'!$E$56)/36 -> €4,606 | N12: =1800+(N10-'Source inputs'!$E$56)/36 -> €4,883 | O12: =1800+(O10-'Source inputs'!$E$56)/36 -> €5,217 | P12: =1800+(P10-'Source inputs'!$E$56)/36 -> €5,494
C13: Closing accumulated depreciation | E13: =SUM(E11:E12) -> €38,133 | F13: =SUM(F11:F12) -> €40,267 | G13: =SUM(G11:G12) -> €42,900 | H13: =SUM(H11:H12) -> €45,533 | I13: =SUM(I11:I12) -> €48,444 | J13: =SUM(J11:J12) -> €51,356 | K13: =SUM(K11:K12) -> €54,711 | L13: =SUM(L11:L12) -> €58,067 | M13: =SUM(M11:M12) -> €62,672 | N13: =SUM(N11:N12) -> €67,556 | O13: =SUM(O11:O12) -> €72,772 | P13: =SUM(P11:P12) -> €78,267
C14: Net fixed assets | E14: =E10-E13 -> €88,867 | F14: =F10-F13 -> €86,733 | G14: =G10-G13 -> €102,100 | H14: =H10-H13 -> €99,467 | I14: =I10-I13 -> €106,556 | J14: =J10-J13 -> €103,644 | K14: =K10-K13 -> €116,289 | L14: =L10-L13 -> €112,933 | M14: =M10-M13 -> €153,328 | N14: =N10-N13 -> €158,444 | O14: =O10-O13 -> €165,228 | P14: =P10-P13 -> €169,733
C15: Opening debt | E15: ='Source inputs'!$E$58 -> €180,000 | F15: =E17 -> €176,000 | G15: =F17 -> €172,000 | H15: =G17 -> €168,000 | I15: =H17 -> €164,000 | J15: =I17 -> €160,000 | K15: =J17 -> €156,000 | L15: =K17 -> €152,000 | M15: =L17 -> €148,000 | N15: =M17 -> €144,000 | O15: =N17 -> €140,000 | P15: =O17 -> €136,000
C16: Scheduled principal payment | E16: =4000 -> €4,000 | F16: =4000 -> €4,000 | G16: =4000 -> €4,000 | H16: =4000 -> €4,000 | I16: =4000 -> €4,000 | J16: =4000 -> €4,000 | K16: =4000 -> €4,000 | L16: =4000 -> €4,000 | M16: =4000 -> €4,000 | N16: =4000 -> €4,000 | O16: =4000 -> €4,000 | P16: =4000 -> €4,000
C17: Closing debt | E17: =E15-E16 -> €176,000 | F17: =F15-F16 -> €172,000 | G17: =G15-G16 -> €168,000 | H17: =H15-H16 -> €164,000 | I17: =I15-I16 -> €160,000 | J17: =J15-J16 -> €156,000 | K17: =K15-K16 -> €152,000 | L17: =L15-L16 -> €148,000 | M17: =M15-M16 -> €144,000 | N17: =N15-N16 -> €140,000 | O17: =O15-O16 -> €136,000 | P17: =P15-P16 -> €132,000
C18: Interest expense | E18: =E15*0.065/12 -> €975 | F18: =F15*0.065/12 -> €953 | G18: =G15*0.065/12 -> €932 | H18: =H15*0.065/12 -> €910 | I18: =I15*0.065/12 -> €888 | J18: =J15*0.065/12 -> €867 | K18: =K15*0.065/12 -> €845 | L18: =L15*0.065/12 -> €823 | M18: =M15*0.065/12 -> €802 | N18: =N15*0.065/12 -> €780 | O18: =O15*0.065/12 -> €758 | P18: =P15*0.065/12 -> €737
C20: Opening current tax position | E20: ='Source inputs'!$E$59 -> €12,000 | F20: =E23 -> €18,986 | G20: =F23 -> €26,879 | H20: =G23 -> €17,940 | I20: =H23 -> €26,351 | J20: =I23 -> €35,911 | K20: =J23 -> €25,121 | L20: =K23 -> €35,716 | M20: =L23 -> €46,548 | N20: =M23 -> €32,631 | O20: =N23 -> €47,828 | P20: =O23 -> €62,927
C21: Current tax expense | E21: ='P&L'!E26 -> €6,986 | F21: ='P&L'!F26 -> €7,893 | G21: ='P&L'!G26 -> €9,061 | H21: ='P&L'!H26 -> €8,411 | I21: ='P&L'!I26 -> €9,560 | J21: ='P&L'!J26 -> €9,209 | K21: ='P&L'!K26 -> €10,595 | L21: ='P&L'!L26 -> €10,832 | M21: ='P&L'!M26 -> €14,083 | N21: ='P&L'!N26 -> €15,197 | O21: ='P&L'!O26 -> €15,099 | P21: ='P&L'!P26 -> €13,474
C22: Tax paid | E22: ='Assumptions'!E86 -> 0 | F22: ='Assumptions'!F86 -> 0 | G22: ='Assumptions'!G86 -> €18,000 | H22: ='Assumptions'!H86 -> 0 | I22: ='Assumptions'!I86 -> 0 | J22: ='Assumptions'!J86 -> €20,000 | K22: ='Assumptions'!K86 -> 0 | L22: ='Assumptions'!L86 -> 0 | M22: ='Assumptions'!M86 -> €28,000 | N22: ='Assumptions'!N86 -> 0 | O22: ='Assumptions'!O86 -> 0 | P22: ='Assumptions'!P86 -> €22,000
C23: Closing current tax position | E23: =E20+E21-E22 -> €18,986 | F23: =F20+F21-F22 -> €26,879 | G23: =G20+G21-G22 -> €17,940 | H23: =H20+H21-H22 -> €26,351 | I23: =I20+I21-I22 -> €35,911 | J23: =J20+J21-J22 -> €25,121 | K23: =K20+K21-K22 -> €35,716 | L23: =L20+L21-L22 -> €46,548 | M23: =M20+M21-M22 -> €32,631 | N23: =N20+N21-N22 -> €47,828 | O23: =O20+O21-O22 -> €62,927 | P23: =P20+P21-P22 -> €54,401
C27: Opening assets: €1,800 monthly depreciation within remaining life.
C29: New assets: 36-month life, zero residual, full purchase month.
C31: Illustrative tax: 20% positive profit; no jurisdiction tax rules.

Sheet Original budget
C2: Original budget
C4: Selected case | E4: ='Assumptions'!$G$4 -> Base | H4: EUR. Entirely fictional.
E6: Original budget | F6: Original budget | G6: Original budget | H6: Original budget | I6: Original budget | J6: Original budget | K6: Original budget | L6: Original budget | M6: Original budget | N6: Original budget | O6: Original budget | P6: Original budget
E7: 2026-01-01 | F7: 2026-02-01 | G7: 2026-03-01 | H7: 2026-04-01 | I7: 2026-05-01 | J7: 2026-06-01 | K7: 2026-07-01 | L7: 2026-08-01 | M7: 2026-09-01 | N7: 2026-10-01 | O7: 2026-11-01 | P7: 2026-12-01
C8: Recurring fees | E8: =E40*E41 -> €86,100 | F8: =F40*F41 -> €89,175 | G8: =G40*G41 -> €90,661 | H8: =H40*H41 -> €93,788 | I8: =I40*I41 -> €98,503 | J8: =J40*J41 -> €101,680 | K8: =K40*K41 -> €106,549 | L8: =L40*L41 -> €111,520 | M8: =M40*M41 -> €115,500 | N8: =N40*N41 -> €120,600 | O8: =O40*O41 -> €120,600 | P8: =P40*P41 -> €125,800
C9: Project fees | E9: =E44*E45 -> €72,800 | F9: =F44*F45 -> €75,712 | G9: =G44*G45 -> €83,160 | H9: =H44*H45 -> €84,672 | I9: =I44*I45 -> €87,696 | J9: =J44*J45 -> €85,008 | K9: =K44*K45 -> €97,216 | L9: =L44*L45 -> €94,080 | M9: =M44*M45 -> €94,250 | N9: =N44*N45 -> €101,500 | O9: =O44*O45 -> €102,000 | P9: =P44*P45 -> €90,000
C10: Hardware resale revenue | E10: =E46*E47 -> €30,720 | F10: =F46*F47 -> €32,000 | G10: =G46*G47 -> €35,100 | H10: =H46*H47 -> €33,800 | I10: =I46*I47 -> €36,960 | J10: =J46*J47 -> €39,600 | K10: =K46*K47 -> €40,500 | L10: =L46*L47 -> €43,200 | M10: =M46*M47 -> €46,750 | N10: =N46*N47 -> €52,250 | O10: =O46*O47 -> €56,000 | P10: =P46*P47 -> €44,800
C11: Licence resale revenue | E11: =E49*E50 -> €17,200 | F11: =F49*F50 -> €17,600 | G11: =G49*G50 -> €18,600 | H11: =H49*H50 -> €19,680 | I11: =I49*I50 -> €20,500 | J11: =J49*J50 -> €21,525 | K11: =K49*K50 -> €23,100 | L11: =L49*L50 -> €24,360 | M11: =M49*M50 -> €26,660 | N11: =N49*N50 -> €27,950 | O11: =O49*O50 -> €29,480 | P11: =P49*P50 -> €30,800
C12: Revenue | E12: =SUM(E8:E11) -> €206,820 | F12: =SUM(F8:F11) -> €214,487 | G12: =SUM(G8:G11) -> €227,521 | H12: =SUM(H8:H11) -> €231,940 | I12: =SUM(I8:I11) -> €243,659 | J12: =SUM(J8:J11) -> €247,813 | K12: =SUM(K8:K11) -> €267,365 | L12: =SUM(L8:L11) -> €273,160 | M12: =SUM(M8:M11) -> €283,160 | N12: =SUM(N8:N11) -> €302,300 | O12: =SUM(O8:O11) -> €308,080 | P12: =SUM(P8:P11) -> €291,400
C13: Delivery payroll | E13: =E52*E53 -> €62,400 | F13: =F52*F53 -> €62,400 | G13: =G52*G53 -> €63,000 | H13: =H52*H53 -> €68,900 | I13: =I52*I53 -> €68,900 | J13: =J52*J53 -> €70,200 | K13: =K52*K53 -> €75,600 | L13: =L52*L53 -> €77,000 | M13: =M52*M53 -> €77,000 | N13: =N52*N53 -> €82,500 | O13: =O52*O53 -> €84,000 | P13: =P52*P53 -> €84,000
C14: Subcontractors | E14: =E54*E55 -> €8,100 | F14: =F54*F55 -> €8,550 | G14: =G54*G55 -> €9,000 | H14: =H54*H55 -> €9,660 | I14: =I54*I55 -> €9,660 | J14: =J54*J55 -> €10,925 | K14: =K54*K55 -> €11,875 | L14: =L54*L55 -> €11,400 | M14: =M54*M55 -> €12,740 | N14: =N54*N55 -> €13,230 | O14: =O54*O55 -> €13,000 | P14: =P54*P55 -> €11,500
C15: Delivery software | E15: =E56 -> €10,000 | F15: =F56 -> €10,500 | G15: =G56 -> €10,500 | H15: =H56 -> €11,000 | I15: =I56 -> €11,500 | J15: =J56 -> €12,000 | K15: =K56 -> €12,500 | L15: =L56 -> €12,500 | M15: =M56 -> €13,000 | N15: =N56 -> €13,500 | O15: =O56 -> €13,500 | P15: =P56 -> €14,000
C16: Hardware supplier cost | E16: =E46*E48 -> €24,480 | F16: =F46*F48 -> €25,500 | G16: =G46*G48 -> €28,080 | H16: =H46*H48 -> €27,040 | I16: =I46*I48 -> €29,400 | J16: =J46*J48 -> €31,500 | K16: =K46*K48 -> €32,400 | L16: =L46*L48 -> €34,560 | M16: =M46*M48 -> €37,060 | N16: =N46*N48 -> €41,420 | O16: =O46*O48 -> €44,000 | P16: =P46*P48 -> €35,200
C17: Licence supplier cost | E17: =E49*E51 -> €12,900 | F17: =F49*F51 -> €13,200 | G17: =G49*G51 -> €13,950 | H17: =H49*H51 -> €14,880 | I17: =I49*I51 -> €15,500 | J17: =J49*J51 -> €16,275 | K17: =K49*K51 -> €17,600 | L17: =L49*L51 -> €18,560 | M17: =M49*M51 -> €19,840 | N17: =N49*N51 -> €20,800 | O17: =O49*O51 -> €22,110 | P17: =P49*P51 -> €23,100
C18: Direct costs | E18: =SUM(E13:E17) -> €117,880 | F18: =SUM(F13:F17) -> €120,150 | G18: =SUM(G13:G17) -> €124,530 | H18: =SUM(H13:H17) -> €131,480 | I18: =SUM(I13:I17) -> €134,960 | J18: =SUM(J13:J17) -> €140,900 | K18: =SUM(K13:K17) -> €149,975 | L18: =SUM(L13:L17) -> €154,020 | M18: =SUM(M13:M17) -> €159,640 | N18: =SUM(N13:N17) -> €171,450 | O18: =SUM(O13:O17) -> €176,610 | P18: =SUM(P13:P17) -> €167,800
C19: Gross profit | E19: =E12-E18 -> €88,940 | F19: =F12-F18 -> €94,337 | G19: =G12-G18 -> €102,991 | H19: =H12-H18 -> €100,460 | I19: =I12-I18 -> €108,699 | J19: =J12-J18 -> €106,913 | K19: =K12-K18 -> €117,390 | L19: =L12-L18 -> €119,140 | M19: =M12-M18 -> €123,520 | N19: =N12-N18 -> €130,850 | O19: =O12-O18 -> €131,470 | P19: =P12-P18 -> €123,600
C20: Gross margin | E20: =E19/E12 -> 43.0% | F20: =F19/F12 -> 44.0% | G20: =G19/G12 -> 45.3% | H20: =H19/H12 -> 43.3% | I20: =I19/I12 -> 44.6% | J20: =J19/J12 -> 43.1% | K20: =K19/K12 -> 43.9% | L20: =L19/L12 -> 43.6% | M20: =M19/M12 -> 43.6% | N20: =N19/N12 -> 43.3% | O20: =O19/O12 -> 42.7% | P20: =P19/P12 -> 42.4%
C21: Operating expenses | E21: =E57+E58+E59+E60 -> €41,000 | F21: =F57+F58+F59+F60 -> €41,500 | G21: =G57+G58+G59+G60 -> €43,000 | H21: =H57+H58+H59+H60 -> €43,500 | I21: =I57+I58+I59+I60 -> €45,300 | J21: =J57+J58+J59+J60 -> €45,500 | K21: =K57+K58+K59+K60 -> €47,200 | L21: =L57+L58+L59+L60 -> €48,000 | M21: =M57+M58+M59+M60 -> €47,700 | N21: =N57+N58+N59+N60 -> €49,200 | O21: =O57+O58+O59+O60 -> €50,000 | P21: =P57+P58+P59+P60 -> €50,000
C22: EBITDA | E22: =E19-E21 -> €47,940 | F22: =F19-F21 -> €52,837 | G22: =G19-G21 -> €59,991 | H22: =H19-H21 -> €56,960 | I22: =I19-I21 -> €63,399 | J22: =J19-J21 -> €61,413 | K22: =K19-K21 -> €70,190 | L22: =L19-L21 -> €71,140 | M22: =M19-M21 -> €75,820 | N22: =N19-N21 -> €81,650 | O22: =O19-O21 -> €81,470 | P22: =P19-P21 -> €73,600
C23: Depreciation | E23: =1800+SUM($E65:E65)/36 -> €2,133 | F23: =1800+SUM($E65:F65)/36 -> €2,133 | G23: =1800+SUM($E65:G65)/36 -> €2,633 | H23: =1800+SUM($E65:H65)/36 -> €2,633 | I23: =1800+SUM($E65:I65)/36 -> €2,911 | J23: =1800+SUM($E65:J65)/36 -> €2,911 | K23: =1800+SUM($E65:K65)/36 -> €3,356 | L23: =1800+SUM($E65:L65)/36 -> €3,356 | M23: =1800+SUM($E65:M65)/36 -> €4,606 | N23: =1800+SUM($E65:N65)/36 -> €4,883 | O23: =1800+SUM($E65:O65)/36 -> €5,217 | P23: =1800+SUM($E65:P65)/36 -> €5,494
C24: Interest | E24: =('Source inputs'!$E$58-0*4000)*0.065/12 -> €975 | F24: =('Source inputs'!$E$58-1*4000)*0.065/12 -> €953 | G24: =('Source inputs'!$E$58-2*4000)*0.065/12 -> €932 | H24: =('Source inputs'!$E$58-3*4000)*0.065/12 -> €910 | I24: =('Source inputs'!$E$58-4*4000)*0.065/12 -> €888 | J24: =('Source inputs'!$E$58-5*4000)*0.065/12 -> €867 | K24: =('Source inputs'!$E$58-6*4000)*0.065/12 -> €845 | L24: =('Source inputs'!$E$58-7*4000)*0.065/12 -> €823 | M24: =('Source inputs'!$E$58-8*4000)*0.065/12 -> €802 | N24: =('Source inputs'!$E$58-9*4000)*0.065/12 -> €780 | O24: =('Source inputs'!$E$58-10*4000)*0.065/12 -> €758 | P24: =('Source inputs'!$E$58-11*4000)*0.065/12 -> €737
C25: Profit before tax | E25: =E22-E23-E24 -> €44,832 | F25: =F22-F23-F24 -> €49,750 | G25: =G22-G23-G24 -> €56,426 | H25: =H22-H23-H24 -> €53,416 | I25: =I22-I23-I24 -> €59,599 | J25: =J22-J23-J24 -> €57,635 | K25: =K22-K23-K24 -> €65,989 | L25: =L22-L23-L24 -> €66,961 | M25: =M22-M23-M24 -> €70,413 | N25: =N22-N23-N24 -> €75,987 | O25: =O22-O23-O24 -> €75,495 | P25: =P22-P23-P24 -> €67,369
C26: Illustrative tax | E26: =MAX(0,E25)*0.2 -> €8,966 | F26: =MAX(0,F25)*0.2 -> €9,950 | G26: =MAX(0,G25)*0.2 -> €11,285 | H26: =MAX(0,H25)*0.2 -> €10,683 | I26: =MAX(0,I25)*0.2 -> €11,920 | J26: =MAX(0,J25)*0.2 -> €11,527 | K26: =MAX(0,K25)*0.2 -> €13,198 | L26: =MAX(0,L25)*0.2 -> €13,392 | M26: =MAX(0,M25)*0.2 -> €14,083 | N26: =MAX(0,N25)*0.2 -> €15,197 | O26: =MAX(0,O25)*0.2 -> €15,099 | P26: =MAX(0,P25)*0.2 -> €13,474
C27: Net profit | E27: =E25-E26 -> €35,865 | F27: =F25-F26 -> €39,800 | G27: =G25-G26 -> €45,141 | H27: =H25-H26 -> €42,733 | I27: =I25-I26 -> €47,679 | J27: =J25-J26 -> €46,108 | K27: =K25-K26 -> €52,791 | L27: =L25-L26 -> €53,569 | M27: =M25-M26 -> €56,330 | N27: =N25-N26 -> €60,789 | O27: =O25-O26 -> €60,396 | P27: =P25-P26 -> €53,895
C37: Fixed original plan inputs
C40: Managed-service contracts | E40: 28.0 | F40: 29.0 | G40: 29.0 | H40: 30.0 | I40: 31.0 | J40: 32.0 | K40: 33.0 | L40: 34.0 | M40: 35.0 | N40: 36.0 | O40: 36.0 | P40: 37.0
C41: Monthly managed-service fee | E41: €3,075 | F41: €3,075 | G41: €3,126 | H41: €3,126 | I41: €3,178 | J41: €3,178 | K41: €3,229 | L41: €3,280 | M41: €3,300 | N41: €3,350 | O41: €3,350 | P41: €3,400
C42: Monthly support hours per contract | E42: 35.0 | F42: 35.0 | G42: 36.0 | H42: 36.0 | I42: 37.0 | J42: 37.0 | K42: 38.0 | L42: 38.0 | M42: 38.0 | N42: 38.0 | O42: 38.0 | P42: 37.0
C43: Monthly tickets per contract | E43: 29.0 | F43: 30.0 | G43: 30.0 | H43: 31.0 | I43: 31.0 | J43: 32.0 | K43: 32.0 | L43: 33.0 | M43: 32.0 | N43: 32.0 | O43: 33.0 | P43: 33.0
C44: Implementation hours | E44: 560.0 | F44: 582.4 | G44: 616.0 | H44: 627.2 | I44: 649.6 | J44: 616.0 | K44: 694.4 | L44: 672.0 | M44: 650.0 | N44: 700.0 | O44: 680.0 | P44: 600.0
C45: Implementation hourly rate | E45: €130 | F45: €130 | G45: €135 | H45: €135 | I45: €135 | J45: €138 | K45: €140 | L45: €140 | M45: €145 | N45: €145 | O45: €150 | P45: €150
C46: Hardware units delivered | E46: 24.0 | F46: 25.0 | G46: 27.0 | H46: 26.0 | I46: 28.0 | J46: 30.0 | K46: 30.0 | L46: 32.0 | M46: 34.0 | N46: 38.0 | O46: 40.0 | P46: 32.0
C47: Hardware selling price per unit | E47: €1,280 | F47: €1,280 | G47: €1,300 | H47: €1,300 | I47: €1,320 | J47: €1,320 | K47: €1,350 | L47: €1,350 | M47: €1,375 | N47: €1,375 | O47: €1,400 | P47: €1,400
C48: Hardware supplier cost per unit | E48: €1,020 | F48: €1,020 | G48: €1,040 | H48: €1,040 | I48: €1,050 | J48: €1,050 | K48: €1,080 | L48: €1,080 | M48: €1,090 | N48: €1,090 | O48: €1,100 | P48: €1,100
C49: Monthly licence seats | E49: 430.0 | F49: 440.0 | G49: 465.0 | H49: 480.0 | I49: 500.0 | J49: 525.0 | K49: 550.0 | L49: 580.0 | M49: 620.0 | N49: 650.0 | O49: 670.0 | P49: 700.0
C50: Licence selling price per seat | E50: €40 | F50: €40 | G50: €40 | H50: €41 | I50: €41 | J50: €41 | K50: €42 | L50: €42 | M50: €43 | N50: €43 | O50: €44 | P50: €44
C51: Licence supplier cost per seat | E51: €30 | F51: €30 | G51: €30 | H51: €31 | I51: €31 | J51: €31 | K51: €32 | L51: €32 | M51: €32 | N51: €32 | O51: €33 | P51: €33
C52: Paid delivery FTE | E52: 12.0 | F52: 12.0 | G52: 12.0 | H52: 13.0 | I52: 13.0 | J52: 13.0 | K52: 14.0 | L52: 14.0 | M52: 14.0 | N52: 15.0 | O52: 15.0 | P52: 15.0
C53: Loaded monthly pay per FTE | E53: €5,200 | F53: €5,200 | G53: €5,250 | H53: €5,300 | I53: €5,300 | J53: €5,400 | K53: €5,400 | L53: €5,500 | M53: €5,500 | N53: €5,500 | O53: €5,600 | P53: €5,600
C54: Subcontractor hours | E54: 90.0 | F54: 95.0 | G54: 100.0 | H54: 105.0 | I54: 105.0 | J54: 115.0 | K54: 125.0 | L54: 120.0 | M54: 130.0 | N54: 135.0 | O54: 130.0 | P54: 115.0
C55: Subcontractor hourly rate | E55: €90 | F55: €90 | G55: €90 | H55: €92 | I55: €92 | J55: €95 | K55: €95 | L55: €95 | M55: €98 | N55: €98 | O55: €100 | P55: €100
C56: Direct delivery software | E56: €10,000 | F56: €10,500 | G56: €10,500 | H56: €11,000 | I56: €11,500 | J56: €12,000 | K56: €12,500 | L56: €12,500 | M56: €13,000 | N56: €13,500 | O56: €13,500 | P56: €14,000
C57: Management and admin payroll | E57: €24,000 | F57: €24,000 | G57: €25,000 | H57: €25,000 | I57: €26,000 | J57: €26,000 | K57: €27,000 | L57: €27,500 | M57: €27,500 | N57: €28,500 | O57: €28,500 | P57: €29,000
C58: Sales and marketing | E58: €7,000 | F58: €7,000 | G58: €7,500 | H58: €7,500 | I58: €8,000 | J58: €8,000 | K58: €8,500 | L58: €8,500 | M58: €8,500 | N58: €9,000 | O58: €9,000 | P58: €8,500
C59: Office and general costs | E59: €6,500 | F59: €6,500 | G59: €6,500 | H59: €6,800 | I59: €6,800 | J59: €7,000 | K59: €7,200 | L59: €7,200 | M59: €7,200 | N59: €7,200 | O59: €7,500 | P59: €7,500
C60: Professional fees | E60: €3,500 | F60: €4,000 | G60: €4,000 | H60: €4,200 | I60: €4,500 | J60: €4,500 | K60: €4,500 | L60: €4,800 | M60: €4,500 | N60: €4,500 | O60: €5,000 | P60: €5,000
C61: Target closing AR days | E61: 37.0 | F61: 37.0 | G61: 37.0 | H61: 37.0 | I61: 37.0 | J61: 37.0 | K61: 37.0 | L61: 37.0 | M61: 36.0 | N61: 35.0 | O61: 34.0 | P61: 34.0
C62: New supplier payable days | E62: 28.0 | F62: 28.0 | G62: 28.0 | H62: 28.0 | I62: 28.0 | J62: 28.0 | K62: 28.0 | L62: 28.0 | M62: 28.0 | N62: 28.0 | O62: 28.0 | P62: 28.0
C63: Unbilled project revenue share | E63: 10.0% | F63: 10.0% | G63: 12.0% | H63: 12.0% | I63: 13.0% | J63: 14.0% | K63: 15.0% | L63: 18.0% | M63: 12.0% | N63: 12.0% | O63: 10.0% | P63: 10.0%
C64: Advance contract billing share | E64: 30.0% | F64: 30.0% | G64: 30.0% | H64: 30.0% | I64: 30.0% | J64: 30.0% | K64: 30.0% | L64: 30.0% | M64: 30.0% | N64: 30.0% | O64: 30.0% | P64: 30.0%
C65: Capital purchases | E65: €12,000 | F65: 0 | G65: €18,000 | H65: 0 | I65: €10,000 | J65: 0 | K65: €16,000 | L65: 0 | M65: €45,000 | N65: €10,000 | O65: €12,000 | P65: €10,000
C66: Cash tax paid | E66: 0 | F66: 0 | G66: €18,000 | H66: 0 | I66: 0 | J66: €20,000 | K66: 0 | L66: 0 | M66: €28,000 | N66: 0 | O66: 0 | P66: €22,000
C67: Opening AR collection delay days | E67: 0 | F67: 0 | G67: 0 | H67: 0 | I67: 0 | J67: 0 | K67: 0 | L67: 0 | M67: 0 | N67: 0 | O67: 0 | P67: 0

Sheet Source inputs
C2: Source inputs
C4: Selected case | E4: ='Assumptions'!$G$4 -> Base | H4: EUR. Entirely fictional.
E6: Actual | F6: Actual | G6: Actual | H6: Actual | I6: Actual | J6: Actual | K6: Actual | L6: Actual | M6: Forecast | N6: Forecast | O6: Forecast | P6: Forecast
E7: 2026-01-01 | F7: 2026-02-01 | G7: 2026-03-01 | H7: 2026-04-01 | I7: 2026-05-01 | J7: 2026-06-01 | K7: 2026-07-01 | L7: 2026-08-01 | M7: 2026-09-01 | N7: 2026-10-01 | O7: 2026-11-01 | P7: 2026-12-01
C8: Managed-service contracts | E8: 28.0 | F8: 29.0 | G8: 29.0 | H8: 30.0 | I8: 31.0 | J8: 32.0 | K8: 33.0 | L8: 34.0
C9: Monthly managed-service fee | E9: €3,000 | F9: €3,000 | G9: €3,050 | H9: €3,050 | I9: €3,100 | J9: €3,100 | K9: €3,150 | L9: €3,200
C10: Monthly support hours per contract | E10: 35.0 | F10: 35.0 | G10: 36.0 | H10: 36.0 | I10: 37.0 | J10: 37.0 | K10: 38.0 | L10: 38.0
C11: Monthly tickets per contract | E11: 29.0 | F11: 30.0 | G11: 30.0 | H11: 31.0 | I11: 31.0 | J11: 32.0 | K11: 32.0 | L11: 33.0
C12: Implementation hours | E12: 500.0 | F12: 520.0 | G12: 550.0 | H12: 560.0 | I12: 580.0 | J12: 550.0 | K12: 620.0 | L12: 600.0
C13: Implementation hourly rate | E13: €130 | F13: €130 | G13: €135 | H13: €135 | I13: €135 | J13: €138 | K13: €140 | L13: €140
C14: Hardware units delivered | E14: 24.0 | F14: 25.0 | G14: 27.0 | H14: 26.0 | I14: 28.0 | J14: 30.0 | K14: 30.0 | L14: 32.0
C15: Hardware selling price per unit | E15: €1,280 | F15: €1,280 | G15: €1,300 | H15: €1,300 | I15: €1,320 | J15: €1,320 | K15: €1,350 | L15: €1,350
C16: Hardware supplier cost per unit | E16: €1,020 | F16: €1,020 | G16: €1,040 | H16: €1,040 | I16: €1,050 | J16: €1,050 | K16: €1,080 | L16: €1,080
C17: Monthly licence seats | E17: 430.0 | F17: 440.0 | G17: 465.0 | H17: 480.0 | I17: 500.0 | J17: 525.0 | K17: 550.0 | L17: 580.0
C18: Licence selling price per seat | E18: €40 | F18: €40 | G18: €40 | H18: €41 | I18: €41 | J18: €41 | K18: €42 | L18: €42
C19: Licence supplier cost per seat | E19: €30 | F19: €30 | G19: €30 | H19: €31 | I19: €31 | J19: €31 | K19: €32 | L19: €32
C20: Paid delivery FTE | E20: 12.0 | F20: 12.0 | G20: 12.0 | H20: 13.0 | I20: 13.0 | J20: 13.0 | K20: 14.0 | L20: 14.0
C21: Loaded monthly pay per FTE | E21: €5,200 | F21: €5,200 | G21: €5,250 | H21: €5,300 | I21: €5,300 | J21: €5,400 | K21: €5,400 | L21: €5,500
C22: Subcontractor hours | E22: 90.0 | F22: 95.0 | G22: 100.0 | H22: 105.0 | I22: 105.0 | J22: 115.0 | K22: 125.0 | L22: 120.0
C23: Subcontractor hourly rate | E23: €90 | F23: €90 | G23: €90 | H23: €92 | I23: €92 | J23: €95 | K23: €95 | L23: €95
C24: Direct delivery software | E24: €10,000 | F24: €10,500 | G24: €10,500 | H24: €11,000 | I24: €11,500 | J24: €12,000 | K24: €12,500 | L24: €12,500
C25: Management and admin payroll | E25: €24,000 | F25: €24,000 | G25: €25,000 | H25: €25,000 | I25: €26,000 | J25: €26,000 | K25: €27,000 | L25: €27,500
C26: Sales and marketing | E26: €7,000 | F26: €7,000 | G26: €7,500 | H26: €7,500 | I26: €8,000 | J26: €8,000 | K26: €8,500 | L26: €8,500
C27: Office and general costs | E27: €6,500 | F27: €6,500 | G27: €6,500 | H27: €6,800 | I27: €6,800 | J27: €7,000 | K27: €7,200 | L27: €7,200
C28: Professional fees | E28: €3,500 | F28: €4,000 | G28: €4,000 | H28: €4,200 | I28: €4,500 | J28: €4,500 | K28: €4,500 | L28: €4,800
C29: Target closing AR days | E29: 37.0 | F29: 37.0 | G29: 37.0 | H29: 37.0 | I29: 37.0 | J29: 37.0 | K29: 37.0 | L29: 37.0
C30: New supplier payable days | E30: 28.0 | F30: 28.0 | G30: 28.0 | H30: 28.0 | I30: 28.0 | J30: 28.0 | K30: 28.0 | L30: 28.0
C31: Unbilled project revenue share | E31: 10.0% | F31: 10.0% | G31: 12.0% | H31: 12.0% | I31: 13.0% | J31: 14.0% | K31: 15.0% | L31: 18.0%
C32: Advance contract billing share | E32: 30.0% | F32: 30.0% | G32: 30.0% | H32: 30.0% | I32: 30.0% | J32: 30.0% | K32: 30.0% | L32: 30.0%
C33: Capital purchases | E33: €12,000 | F33: 0 | G33: €18,000 | H33: 0 | I33: €10,000 | J33: 0 | K33: €16,000 | L33: 0
C34: Cash tax paid | E34: 0 | F34: 0 | G34: €18,000 | H34: 0 | I34: 0 | J34: €20,000 | K34: 0 | L34: 0
C35: Opening AR collection delay days | E35: 0 | F35: 0 | G35: 0 | H35: 0 | I35: 0 | J35: 0 | K35: 0 | L35: 0
C47: Opening balances at 31 December 2025
C50: Opening cash | E50: 200,000.0
C51: Opening ar | E51: 175,000.0
C52: Opening wip | E52: 18,000.0
C53: Opening deferred | E53: 24,000.0
C54: Opening ap | E54: 52,000.0
C55: Opening accrual | E55: 20,000.0
C56: Opening gross | E56: 115,000.0
C57: Opening accum | E57: 36,000.0
C58: Opening debt | E58: 180,000.0
C59: Opening tax | E59: 12,000.0
C60: Opening capital | E60: 65,000.0
C61: Opening equity | E61: 119,000.0
C66: Invented inputs for a fictional business. No client data.
C68: Closing receivables | E68: 185,000.0 | F68: 198,000.0 | G68: 213,000.0 | H68: 231,000.0 | I68: 250,000.0 | J68: 276,000.0 | K68: 297,000.0 | L68: 330,000.0
C69: Closing payables | E69: 56,000.0 | F69: 58,000.0 | G69: 61,000.0 | H69: 62,000.0 | I69: 65,000.0 | J69: 67,000.0 | K69: 72,000.0 | L69: 79,000.0

Sheet AR and AP
C2: AR and AP
C4: Selected case | E4: ='Assumptions'!$G$4 -> Base | H4: EUR. Entirely fictional.
C8: Receivable | D8: Invoice date | E8: Due date | F8: Outstanding | G8: Receipt plan | H8: Delay days | I8: Effective date | J8: Days overdue
C9: AR-1 | D9: 2026-06-05 | E9: 2026-07-05 | F9: 36,300.0 | G9: 2026-09-04 | H9: ='Assumptions'!M89 -> 0 | I9: =G9+H9 -> 2026-09-04 | J9: =MAX(0,DATE(2026,8,31)-E9) -> 57.0
C10: AR-2 | D10: 2026-06-07 | E10: 2026-07-07 | F10: 39,600.0 | G10: 2026-09-11 | H10: ='Assumptions'!M89 -> 0 | I10: =G10+H10 -> 2026-09-11 | J10: =MAX(0,DATE(2026,8,31)-E10) -> 55.0
C11: AR-3 | D11: 2026-06-09 | E11: 2026-07-09 | F11: 42,900.0 | G11: 2026-09-18 | H11: ='Assumptions'!M89 -> 0 | I11: =G11+H11 -> 2026-09-18 | J11: =MAX(0,DATE(2026,8,31)-E11) -> 53.0
C12: AR-4 | D12: 2026-07-11 | E12: 2026-08-11 | F12: 33,000.0 | G12: 2026-09-25 | H12: ='Assumptions'!M89 -> 0 | I12: =G12+H12 -> 2026-09-25 | J12: =MAX(0,DATE(2026,8,31)-E12) -> 20.0
C13: AR-5 | D13: 2026-07-13 | E13: 2026-08-13 | F13: 46,200.0 | G13: 2026-09-04 | H13: ='Assumptions'!M89 -> 0 | I13: =G13+H13 -> 2026-09-04 | J13: =MAX(0,DATE(2026,8,31)-E13) -> 18.0
C14: AR-6 | D14: 2026-08-15 | E14: 2026-09-15 | F14: 39,600.0 | G14: 2026-09-11 | H14: ='Assumptions'!M89 -> 0 | I14: =G14+H14 -> 2026-09-11 | J14: =MAX(0,DATE(2026,8,31)-E14) -> 0
C15: AR-7 | D15: 2026-08-17 | E15: 2026-09-17 | F15: 49,500.0 | G15: 2026-09-18 | H15: ='Assumptions'!M89 -> 0 | I15: =G15+H15 -> 2026-09-18 | J15: =MAX(0,DATE(2026,8,31)-E15) -> 0
C16: AR-8 | D16: 2026-08-19 | E16: 2026-09-19 | F16: 42,900.0 | G16: 2026-09-25 | H16: ='Assumptions'!M89 -> 0 | I16: =G16+H16 -> 2026-09-25 | J16: =MAX(0,DATE(2026,8,31)-E16) -> 0
C23: Payable | D23: Invoice date | E23: Due date | F23: Invoice total | G23: Paid to date | H23: Outstanding | I23: Payment plan | J23: Approval | K23: Review | L23: Hold | M23: Eligible payment | N23: Effective date | O23: Next action
C24: AP-1 | D24: 2026-07-03 | E24: 2026-08-03 | F24: 10,690.0 | G24: 2,000.0 | H24: =F24-G24 -> 8,690.0 | I24: 2026-09-04 | J24: Pending | K24: Complete | L24: Yes | M24: =IF(AND(J24="Approved",K24="Complete",L24="No"),H24,0) -> 0 | N24: =IF(AND(J24="Approved",K24="Complete",L24="No"),I24,0) -> 00:00:00 | O24: =IF(AND(J24="Approved",K24="Complete",L24="No"),"Scheduled",IF(J24<>"Approved","Approval. ","")&IF(K24<>"Complete","Review. ","")&IF(L24="Yes","Release hold.","")) -> Approval. Release hold.
C25: AP-2 | D25: 2026-07-06 | E25: 2026-08-06 | F25: 10,270.0 | G25: 0 | H25: =F25-G25 -> 10,270.0 | I25: 2026-09-04 | J25: Approved | K25: Complete | L25: No | M25: =IF(AND(J25="Approved",K25="Complete",L25="No"),H25,0) -> 10,270.0 | N25: =IF(AND(J25="Approved",K25="Complete",L25="No"),I25,0) -> 2026-09-04 | O25: =IF(AND(J25="Approved",K25="Complete",L25="No"),"Scheduled",IF(J25<>"Approved","Approval. ","")&IF(K25<>"Complete","Review. ","")&IF(L25="Yes","Release hold.","")) -> Scheduled
C26: AP-3 | D26: 2026-07-09 | E26: 2026-08-09 | F26: 11,060.0 | G26: 0 | H26: =F26-G26 -> 11,060.0 | I26: 2026-09-11 | J26: Approved | K26: Complete | L26: No | M26: =IF(AND(J26="Approved",K26="Complete",L26="No"),H26,0) -> 11,060.0 | N26: =IF(AND(J26="Approved",K26="Complete",L26="No"),I26,0) -> 2026-09-11 | O26: =IF(AND(J26="Approved",K26="Complete",L26="No"),"Scheduled",IF(J26<>"Approved","Approval. ","")&IF(K26<>"Complete","Review. ","")&IF(L26="Yes","Release hold.","")) -> Scheduled
C27: AP-4 | D27: 2026-07-12 | E27: 2026-08-12 | F27: 11,480.0 | G27: 2,000.0 | H27: =F27-G27 -> 9,480.0 | I27: 2026-09-11 | J27: Approved | K27: Pending | L27: No | M27: =IF(AND(J27="Approved",K27="Complete",L27="No"),H27,0) -> 0 | N27: =IF(AND(J27="Approved",K27="Complete",L27="No"),I27,0) -> 00:00:00 | O27: =IF(AND(J27="Approved",K27="Complete",L27="No"),"Scheduled",IF(J27<>"Approved","Approval. ","")&IF(K27<>"Complete","Review. ","")&IF(L27="Yes","Release hold.","")) -> Review.
C28: AP-5 | D28: 2026-08-15 | E28: 2026-09-15 | F28: 12,640.0 | G28: 0 | H28: =F28-G28 -> 12,640.0 | I28: 2026-09-18 | J28: Approved | K28: Complete | L28: No | M28: =IF(AND(J28="Approved",K28="Complete",L28="No"),H28,0) -> 12,640.0 | N28: =IF(AND(J28="Approved",K28="Complete",L28="No"),I28,0) -> 2026-09-18 | O28: =IF(AND(J28="Approved",K28="Complete",L28="No"),"Scheduled",IF(J28<>"Approved","Approval. ","")&IF(K28<>"Complete","Review. ","")&IF(L28="Yes","Release hold.","")) -> Scheduled
C29: AP-6 | D29: 2026-08-18 | E29: 2026-09-18 | F29: 8,690.0 | G29: 0 | H29: =F29-G29 -> 8,690.0 | I29: 2026-09-18 | J29: Approved | K29: Complete | L29: No | M29: =IF(AND(J29="Approved",K29="Complete",L29="No"),H29,0) -> 8,690.0 | N29: =IF(AND(J29="Approved",K29="Complete",L29="No"),I29,0) -> 2026-09-18 | O29: =IF(AND(J29="Approved",K29="Complete",L29="No"),"Scheduled",IF(J29<>"Approved","Approval. ","")&IF(K29<>"Complete","Review. ","")&IF(L29="Yes","Release hold.","")) -> Scheduled
C30: AP-7 | D30: 2026-08-21 | E30: 2026-09-21 | F30: 11,480.0 | G30: 2,000.0 | H30: =F30-G30 -> 9,480.0 | I30: 2026-09-25 | J30: Approved | K30: Complete | L30: No | M30: =IF(AND(J30="Approved",K30="Complete",L30="No"),H30,0) -> 9,480.0 | N30: =IF(AND(J30="Approved",K30="Complete",L30="No"),I30,0) -> 2026-09-25 | O30: =IF(AND(J30="Approved",K30="Complete",L30="No"),"Scheduled",IF(J30<>"Approved","Approval. ","")&IF(K30<>"Complete","Review. ","")&IF(L30="Yes","Release hold.","")) -> Scheduled
C31: AP-8 | D31: 2026-08-24 | E31: 2026-09-24 | F31: 8,690.0 | G31: 0 | H31: =F31-G31 -> 8,690.0 | I31: 2026-09-25 | J31: Approved | K31: Complete | L31: No | M31: =IF(AND(J31="Approved",K31="Complete",L31="No"),H31,0) -> 8,690.0 | N31: =IF(AND(J31="Approved",K31="Complete",L31="No"),I31,0) -> 2026-09-25 | O31: =IF(AND(J31="Approved",K31="Complete",L31="No"),"Scheduled",IF(J31<>"Approved","Approval. ","")&IF(K31<>"Complete","Review. ","")&IF(L31="Yes","Release hold.","")) -> Scheduled
C35: Held/incomplete invoices remain payable but have no scheduled payment.
C37: Authorised client approvers retain payment authority.

Sheet Forecast checks
C2: Forecast checks
C4: Selected case | E4: ='Assumptions'!$G$4 -> Base | H4: EUR. Entirely fictional.
E6: Actual | F6: Actual | G6: Actual | H6: Actual | I6: Actual | J6: Actual | K6: Actual | L6: Actual | M6: Forecast | N6: Forecast | O6: Forecast | P6: Forecast
E7: 2026-01-01 | F7: 2026-02-01 | G7: 2026-03-01 | H7: 2026-04-01 | I7: 2026-05-01 | J7: 2026-06-01 | K7: 2026-07-01 | L7: 2026-08-01 | M7: 2026-09-01 | N7: 2026-10-01 | O7: 2026-11-01 | P7: 2026-12-01
C8: Balance sheet balances | E8: ='Balance sheet'!E23 -> (0.00) | F8: ='Balance sheet'!F23 -> 0.00 | G8: ='Balance sheet'!G23 -> 0.00 | H8: ='Balance sheet'!H23 -> (0.00) | I8: ='Balance sheet'!I23 -> 0.00 | J8: ='Balance sheet'!J23 -> 0.00 | K8: ='Balance sheet'!K23 -> 0.00 | L8: ='Balance sheet'!L23 -> 0.00 | M8: ='Balance sheet'!M23 -> 0.00 | N8: ='Balance sheet'!N23 -> 0.00 | O8: ='Balance sheet'!O23 -> 0.00 | P8: ='Balance sheet'!P23 -> 0.00
C9: Cash flow closes to balance sheet cash | E9: ='Cash flow'!E20-'Balance sheet'!E8 -> 0.00 | F9: ='Cash flow'!F20-'Balance sheet'!F8 -> 0.00 | G9: ='Cash flow'!G20-'Balance sheet'!G8 -> 0.00 | H9: ='Cash flow'!H20-'Balance sheet'!H8 -> 0.00 | I9: ='Cash flow'!I20-'Balance sheet'!I8 -> 0.00 | J9: ='Cash flow'!J20-'Balance sheet'!J8 -> 0.00 | K9: ='Cash flow'!K20-'Balance sheet'!K8 -> 0.00 | L9: ='Cash flow'!L20-'Balance sheet'!L8 -> 0.00 | M9: ='Cash flow'!M20-'Balance sheet'!M8 -> 0.00 | N9: ='Cash flow'!N20-'Balance sheet'!N8 -> 0.00 | O9: ='Cash flow'!O20-'Balance sheet'!O8 -> 0.00 | P9: ='Cash flow'!P20-'Balance sheet'!P8 -> 0.00
C10: Receivables roll forward | E10: ='Working capital'!E14+'Working capital'!E12-'Working capital'!E20-'Working capital'!E19 -> 0.00 | F10: ='Working capital'!F14+'Working capital'!F12-'Working capital'!F20-'Working capital'!F19 -> 0.00 | G10: ='Working capital'!G14+'Working capital'!G12-'Working capital'!G20-'Working capital'!G19 -> 0.00 | H10: ='Working capital'!H14+'Working capital'!H12-'Working capital'!H20-'Working capital'!H19 -> 0.00 | I10: ='Working capital'!I14+'Working capital'!I12-'Working capital'!I20-'Working capital'!I19 -> 0.00 | J10: ='Working capital'!J14+'Working capital'!J12-'Working capital'!J20-'Working capital'!J19 -> 0.00 | K10: ='Working capital'!K14+'Working capital'!K12-'Working capital'!K20-'Working capital'!K19 -> 0.00 | L10: ='Working capital'!L14+'Working capital'!L12-'Working capital'!L20-'Working capital'!L19 -> 0.00 | M10: ='Working capital'!M14+'Working capital'!M12-'Working capital'!M20-'Working capital'!M19 -> 0.00 | N10: ='Working capital'!N14+'Working capital'!N12-'Working capital'!N20-'Working capital'!N19 -> 0.00 | O10: ='Working capital'!O14+'Working capital'!O12-'Working capital'!O20-'Working capital'!O19 -> 0.00 | P10: ='Working capital'!P14+'Working capital'!P12-'Working capital'!P20-'Working capital'!P19 -> 0.00
C11: Payables roll forward | E11: ='Working capital'!E22+'Working capital'!E23-'Working capital'!E27-'Working capital'!E26 -> 0.00 | F11: ='Working capital'!F22+'Working capital'!F23-'Working capital'!F27-'Working capital'!F26 -> 0.00 | G11: ='Working capital'!G22+'Working capital'!G23-'Working capital'!G27-'Working capital'!G26 -> 0.00 | H11: ='Working capital'!H22+'Working capital'!H23-'Working capital'!H27-'Working capital'!H26 -> 0.00 | I11: ='Working capital'!I22+'Working capital'!I23-'Working capital'!I27-'Working capital'!I26 -> 0.00 | J11: ='Working capital'!J22+'Working capital'!J23-'Working capital'!J27-'Working capital'!J26 -> 0.00 | K11: ='Working capital'!K22+'Working capital'!K23-'Working capital'!K27-'Working capital'!K26 -> 0.00 | L11: ='Working capital'!L22+'Working capital'!L23-'Working capital'!L27-'Working capital'!L26 -> 0.00 | M11: ='Working capital'!M22+'Working capital'!M23-'Working capital'!M27-'Working capital'!M26 -> 0.00 | N11: ='Working capital'!N22+'Working capital'!N23-'Working capital'!N27-'Working capital'!N26 -> 0.00 | O11: ='Working capital'!O22+'Working capital'!O23-'Working capital'!O27-'Working capital'!O26 -> 0.00 | P11: ='Working capital'!P22+'Working capital'!P23-'Working capital'!P27-'Working capital'!P26 -> 0.00
C12: Opening AR records tie to August | E12: =SUM('AR and AP'!F9:F16)-'Balance sheet'!L9 -> 0.00 | F12: =SUM('AR and AP'!F9:F16)-'Balance sheet'!L9 -> 0.00 | G12: =SUM('AR and AP'!F9:F16)-'Balance sheet'!L9 -> 0.00 | H12: =SUM('AR and AP'!F9:F16)-'Balance sheet'!L9 -> 0.00 | I12: =SUM('AR and AP'!F9:F16)-'Balance sheet'!L9 -> 0.00 | J12: =SUM('AR and AP'!F9:F16)-'Balance sheet'!L9 -> 0.00 | K12: =SUM('AR and AP'!F9:F16)-'Balance sheet'!L9 -> 0.00 | L12: =SUM('AR and AP'!F9:F16)-'Balance sheet'!L9 -> 0.00 | M12: =SUM('AR and AP'!F9:F16)-'Balance sheet'!L9 -> 0.00 | N12: =SUM('AR and AP'!F9:F16)-'Balance sheet'!L9 -> 0.00 | O12: =SUM('AR and AP'!F9:F16)-'Balance sheet'!L9 -> 0.00 | P12: =SUM('AR and AP'!F9:F16)-'Balance sheet'!L9 -> 0.00
C13: Opening AP records tie to August | E13: =SUM('AR and AP'!H24:H31)-'Balance sheet'!L14 -> 0.00 | F13: =SUM('AR and AP'!H24:H31)-'Balance sheet'!L14 -> 0.00 | G13: =SUM('AR and AP'!H24:H31)-'Balance sheet'!L14 -> 0.00 | H13: =SUM('AR and AP'!H24:H31)-'Balance sheet'!L14 -> 0.00 | I13: =SUM('AR and AP'!H24:H31)-'Balance sheet'!L14 -> 0.00 | J13: =SUM('AR and AP'!H24:H31)-'Balance sheet'!L14 -> 0.00 | K13: =SUM('AR and AP'!H24:H31)-'Balance sheet'!L14 -> 0.00 | L13: =SUM('AR and AP'!H24:H31)-'Balance sheet'!L14 -> 0.00 | M13: =SUM('AR and AP'!H24:H31)-'Balance sheet'!L14 -> 0.00 | N13: =SUM('AR and AP'!H24:H31)-'Balance sheet'!L14 -> 0.00 | O13: =SUM('AR and AP'!H24:H31)-'Balance sheet'!L14 -> 0.00 | P13: =SUM('AR and AP'!H24:H31)-'Balance sheet'!L14 -> 0.00
C14: Dated events tie to monthly cash flow | E14: =0 -> 0.00 | F14: =0 -> 0.00 | G14: =0 -> 0.00 | H14: =0 -> 0.00 | I14: =0 -> 0.00 | J14: =0 -> 0.00 | K14: =0 -> 0.00 | L14: =0 -> 0.00 | M14: =SUMIFS('13 week cash'!$F$40:$F$103,'13 week cash'!$D$40:$D$103,">="&M$7,'13 week cash'!$D$40:$D$103,"<"&EDATE(M$7,1))-'Cash flow'!M18 -> 0.00 | N14: =SUMIFS('13 week cash'!$F$40:$F$103,'13 week cash'!$D$40:$D$103,">="&N$7,'13 week cash'!$D$40:$D$103,"<"&EDATE(N$7,1))-'Cash flow'!N18 -> (0.00) | O14: =SUMIFS('13 week cash'!$F$40:$F$103,'13 week cash'!$D$40:$D$103,">="&O$7,'13 week cash'!$D$40:$D$103,"<"&EDATE(O$7,1))-'Cash flow'!O18 -> 0.00 | P14: =SUMIFS('13 week cash'!$F$40:$F$103,'13 week cash'!$D$40:$D$103,">="&P$7,'13 week cash'!$D$40:$D$103,"<"&EDATE(P$7,1))-'Cash flow'!P18 -> (0.00)
C15: Contribution ties to August gross profit | E15: =SUM('Operating model'!J53:J56)-'Operating model'!L21 -> 0.00 | F15: =SUM('Operating model'!J53:J56)-'Operating model'!L21 -> 0.00 | G15: =SUM('Operating model'!J53:J56)-'Operating model'!L21 -> 0.00 | H15: =SUM('Operating model'!J53:J56)-'Operating model'!L21 -> 0.00 | I15: =SUM('Operating model'!J53:J56)-'Operating model'!L21 -> 0.00 | J15: =SUM('Operating model'!J53:J56)-'Operating model'!L21 -> 0.00 | K15: =SUM('Operating model'!J53:J56)-'Operating model'!L21 -> 0.00 | L15: =SUM('Operating model'!J53:J56)-'Operating model'!L21 -> 0.00 | M15: =SUM('Operating model'!J53:J56)-'Operating model'!L21 -> 0.00 | N15: =SUM('Operating model'!J53:J56)-'Operating model'!L21 -> 0.00 | O15: =SUM('Operating model'!J53:J56)-'Operating model'!L21 -> 0.00 | P15: =SUM('Operating model'!J53:J56)-'Operating model'!L21 -> 0.00
C16: Media receipts equal media payments | E16: =0+0 -> 0.00 | F16: =0+0 -> 0.00 | G16: =0+0 -> 0.00 | H16: =0+0 -> 0.00 | I16: =0+0 -> 0.00 | J16: =0+0 -> 0.00 | K16: =0+0 -> 0.00 | L16: =0+0 -> 0.00 | M16: =0+0 -> 0.00 | N16: =0+0 -> 0.00 | O16: =0+0 -> 0.00 | P16: =0+0 -> 0.00
C20: Differences should be zero within €0.01. No forecast depends on checks.

Sheet Guide
C2: Guide
C4: Selected case | E4: ='Assumptions'!$G$4 -> Base | H4: EUR. Entirely fictional.
C8: Managed services and licences billed monthly. Implementation revenue follows delivered hours. Hardware is drop-shipped in the same period and treated as principal gross sales with separate supplier cost. No inventory or annual prepaid licence deferral is assumed. Licence seat loss and vendor repricing are explicit renewal economics.
C11: One editable selector on Assumptions E4: 1 Base, 2 Downside. Active forecast inputs update the same operating and accounting build.
C14: Jan–Aug actuals are entirely invented. Original budget has separate dated inputs and never changes with the selected case.
C17: Working capital distinguishes unbilled work, invoices, collections, advance billings and supplier settlement. Known opening invoice dates constrain forecast collections.
C20: Client and supplier records are fictional. Approval, review completion and hold release are independent prerequisites to scheduling a payable.
C23: Amounts are EUR units. Costs are positive in the P&L; cash outflows are negative. No VAT, deferred tax, foreign exchange or jurisdiction tax rules are modelled.
C26: The 13-week forecast starts 1 September after 31 August close, ends 29 November and includes 30 November separately for month-end reconciliation.
C29: Bank cash is reduced by client media funds to show available cash. Negative available cash is an unfunded need, not an approved facility. Weekly closing cash can hide earlier daily lows.
C32: Known invoices are scheduled first. Residual new monthly receipts and supplier payments settle 45% on day 15 and 55% on day 28. No double counting.
C35: Agency media is client-prefunded on day 5 and paid on day 10. These funds are reserved for that purpose. IT managed services and licences are billed monthly.
C38: Available delivery hours are 160 per paid FTE per month. Payroll is fully loaded. New assets depreciate over 36 months from the purchase month; opening depreciation is €1,800 monthly.
C41: This is a public demonstration of financial methods and deliverables, not an achieved client result.
